Body Name,Vendor Number,Vendor Name,Cost Centre,Service Label,BV Code,Amount,Period
Slough Borough Council,806064,24 X 7 Buckinghamshire Ltd,F123,Education & Inclusion,Supplies and Services,"2,123.20",Mar-23
Slough Borough Council,804709,247 Careservices Ltd,M44D,Adult Social Care Operations,Supplies and Services,"11,520.00",Mar-23
Slough Borough Council,804709,247 Careservices Ltd,M44D,Adult Social Care Operations,Supplies and Services,"10,080.00",Mar-23
Slough Borough Council,1869,3Ms Gold Services Limited,P006,Capital,Capital Charges,"6,143.08",Mar-23
Slough Borough Council,806901,4way Consulting Ltd,P209,Capital,Capital Charges,"5,005.59",Mar-23
Slough Borough Council,1055,A J Chapman,F123,Education & Inclusion,Supplies and Services,"69,852.24",Mar-23
Slough Borough Council,1055,A J Chapman,F123,Education & Inclusion,Supplies and Services,"2,535.00",Mar-23
Slough Borough Council,1055,A J Chapman,F123,Education & Inclusion,Supplies and Services,927.00,Mar-23
Slough Borough Council,1055,A J Chapman,F123,Education & Inclusion,Supplies and Services,"2,535.00",Mar-23
Slough Borough Council,1055,A J Chapman,F123,Education & Inclusion,Supplies and Services,"52,543.75",Mar-23
Slough Borough Council,1055,A J Chapman,F123,Education & Inclusion,Supplies and Services,"1,116.00",Mar-23
Slough Borough Council,1055,A J Chapman,F123,Education & Inclusion,Supplies and Services,992.00,Mar-23
Slough Borough Council,1055,A J Chapman,F123,Education & Inclusion,Supplies and Services,"1,044.00",Mar-23
Slough Borough Council,1055,A J Chapman,F123,Education & Inclusion,Supplies and Services,"-1,044.00",Mar-23
Slough Borough Council,1055,A J Chapman,F123,Education & Inclusion,Supplies and Services,"1,044.00",Mar-23
Slough Borough Council,1055,A J Chapman,M50A,Place Operations,Transport,"1,635.00",Mar-23
Slough Borough Council,2898,Achieve Together t/a The Regard Partnership Ltd,M26E,Adult Social Care Operations,Supplies and Services,"7,521.04",Mar-23
Slough Borough Council,2898,Achieve Together t/a The Regard Partnership Ltd,M26E,Adult Social Care Operations,Supplies and Services,"6,352.08",Mar-23
Slough Borough Council,2898,Achieve Together t/a The Regard Partnership Ltd,M42E,Adult Social Care Operations,Supplies and Services,"5,235.10",Mar-23
Slough Borough Council,2898,Achieve Together t/a The Regard Partnership Ltd,M42E,Adult Social Care Operations,Supplies and Services,"5,567.29",Mar-23
Slough Borough Council,2898,Achieve Together t/a The Regard Partnership Ltd,M42E,Adult Social Care Operations,Supplies and Services,"5,334.52",Mar-23
Slough Borough Council,2898,Achieve Together t/a The Regard Partnership Ltd,M42E,Adult Social Care Operations,Supplies and Services,"6,781.47",Mar-23
Slough Borough Council,2898,Achieve Together t/a The Regard Partnership Ltd,M42E,Adult Social Care Operations,Supplies and Services,"7,013.22",Mar-23
Slough Borough Council,2898,Achieve Together t/a The Regard Partnership Ltd,M42E,Adult Social Care Operations,Supplies and Services,"5,208.04",Mar-23
Slough Borough Council,2898,Achieve Together t/a The Regard Partnership Ltd,M42E,Adult Social Care Operations,Supplies and Services,"6,559.16",Mar-23
Slough Borough Council,2898,Achieve Together t/a The Regard Partnership Ltd,M44D,Adult Social Care Operations,Supplies and Services,"4,840.87",Mar-23
Slough Borough Council,2898,Achieve Together t/a The Regard Partnership Ltd,M44E,Adult Social Care Operations,Supplies and Services,"5,818.48",Mar-23
Slough Borough Council,808816,ACM Guildford Limited,F558,Children & Families,Supplies and Services,"22,290.99",Mar-23
Slough Borough Council,807554,Acorn Care & Education Ltd,F558,Children & Families,Supplies and Services,"39,564.00",Mar-23
Slough Borough Council,805529,Action First Recrutiment Ltd,A02A,People Adults,Supplies and Services,570.00,Mar-23
Slough Borough Council,805529,Action First Recrutiment Ltd,A02A,People Adults,Supplies and Services,550.00,Mar-23
Slough Borough Council,805529,Action First Recrutiment Ltd,A02A,People Adults,Supplies and Services,760.00,Mar-23
Slough Borough Council,4013,Adass (Association Of Directors Of Social Services),A01D,People Adults,Supplies and Services,"2,293.00",Mar-23
Slough Borough Council,2855,Advance Housing & Support Ltd,M42F,Adult Social Care Operations,Supplies and Services,760.86,Mar-23
Slough Borough Council,2855,Advance Housing & Support Ltd,M42F,Adult Social Care Operations,Supplies and Services,"1,217.38",Mar-23
Slough Borough Council,2855,Advance Housing & Support Ltd,M42F,Adult Social Care Operations,Supplies and Services,"1,673.90",Mar-23
Slough Borough Council,2855,Advance Housing & Support Ltd,M42F,Adult Social Care Operations,Supplies and Services,"1,978.25",Mar-23
Slough Borough Council,2855,Advance Housing & Support Ltd,M42F,Adult Social Care Operations,Supplies and Services,"1,141.32",Mar-23
Slough Borough Council,2135,Adventure Learning Childcare Limited,F909,Children & Families,Supplies and Services,"1,113.53",Mar-23
Slough Borough Council,2135,Adventure Learning Childcare Limited,F909,Children & Families,Supplies and Services,"11,657.00",Mar-23
Slough Borough Council,1603,Advision Security Ltd,A07M,Mental Health Services,Premises,"1,450.00",Mar-23
Slough Borough Council,805178,AFM Transport Limited,D880,Place Operations,Supplies and Services,"1,387.26",Mar-23
Slough Borough Council,805178,AFM Transport Limited,D880,Place Operations,Supplies and Services,"4,746.90",Mar-23
Slough Borough Council,805178,AFM Transport Limited,D880,Place Operations,Supplies and Services,"3,871.96",Mar-23
Slough Borough Council,805178,AFM Transport Limited,D880,Place Operations,Supplies and Services,863.20,Mar-23
Slough Borough Council,805178,AFM Transport Limited,D880,Place Operations,Supplies and Services,875.13,Mar-23
Slough Borough Council,805178,AFM Transport Limited,D880,Place Operations,Supplies and Services,"1,314.00",Mar-23
Slough Borough Council,805178,AFM Transport Limited,D880,Place Operations,Supplies and Services,"3,120.00",Mar-23
Slough Borough Council,805178,AFM Transport Limited,D880,Place Operations,Supplies and Services,"2,151.80",Mar-23
Slough Borough Council,805178,AFM Transport Limited,D880,Place Operations,Supplies and Services,"3,160.00",Mar-23
Slough Borough Council,805178,AFM Transport Limited,D880,Place Operations,Supplies and Services,813.02,Mar-23
Slough Borough Council,805178,AFM Transport Limited,D880,Place Operations,Supplies and Services,"1,883.93",Mar-23
Slough Borough Council,805178,AFM Transport Limited,D880,Place Operations,Supplies and Services,"2,535.48",Mar-23
Slough Borough Council,805178,AFM Transport Limited,D880,Place Operations,Supplies and Services,"2,880.84",Mar-23
Slough Borough Council,805178,AFM Transport Limited,D880,Place Operations,Supplies and Services,628.59,Mar-23
Slough Borough Council,805178,AFM Transport Limited,D880,Place Operations,Supplies and Services,"4,306.11",Mar-23
Slough Borough Council,805178,AFM Transport Limited,D880,Place Operations,Supplies and Services,"2,504.00",Mar-23
Slough Borough Council,805178,AFM Transport Limited,D880,Place Operations,Supplies and Services,"2,557.25",Mar-23
Slough Borough Council,805178,AFM Transport Limited,D880,Place Operations,Supplies and Services,"3,440.64",Mar-23
Slough Borough Council,1656,Agile Applications Limited,D224,Place Regulation,Supplies and Services,"15,000.00",Mar-23
Slough Borough Council,2301,Aik Saath,B326,Finance & Commercial,Supplies and Services,"10,000.00",Mar-23
Slough Borough Council,807466,Airport Facilities Heathrow Ltd,P006,Capital,Capital Charges,"6,369.75",Mar-23
Slough Borough Council,804528,Alexander First School,F552,Children & Families,Supplies and Services,"2,788.00",Mar-23
Slough Borough Council,222,Altwood Church Of England School,F552,Children & Families,Supplies and Services,"5,000.00",Mar-23
Slough Borough Council,2197,Altwood Housing Ltd,H205,Housing (People) Services,Supplies and Services,840.00,Mar-23
Slough Borough Council,2197,Altwood Housing Ltd,H205,Housing (People) Services,Supplies and Services,840.00,Mar-23
Slough Borough Council,2197,Altwood Housing Ltd,H205,Housing (People) Services,Supplies and Services,840.00,Mar-23
Slough Borough Council,2197,Altwood Housing Ltd,H205,Housing (People) Services,Supplies and Services,840.00,Mar-23
Slough Borough Council,2197,Altwood Housing Ltd,H205,Housing (People) Services,Supplies and Services,"1,120.00",Mar-23
Slough Borough Council,2197,Altwood Housing Ltd,H205,Housing (People) Services,Supplies and Services,840.00,Mar-23
Slough Borough Council,2197,Altwood Housing Ltd,H205,Housing (People) Services,Supplies and Services,840.00,Mar-23
Slough Borough Council,2197,Altwood Housing Ltd,H205,Housing (People) Services,Supplies and Services,672.00,Mar-23
Slough Borough Council,2197,Altwood Housing Ltd,H205,Housing (People) Services,Supplies and Services,840.00,Mar-23
Slough Borough Council,2197,Altwood Housing Ltd,H205,Housing (People) Services,Supplies and Services,"1,624.00",Mar-23
Slough Borough Council,2197,Altwood Housing Ltd,H205,Housing (People) Services,Supplies and Services,"1,540.00",Mar-23
Slough Borough Council,2197,Altwood Housing Ltd,H205,Housing (People) Services,Supplies and Services,"8,400.00",Mar-23
Slough Borough Council,86,Altwood Properties Ltd,H205,Housing (People) Services,Premises,"51,246.49",Mar-23
Slough Borough Council,807515,Always Growing Together Community Interest Company Limited,F909,Children & Families,Supplies and Services,971.40,Mar-23
Slough Borough Council,807515,Always Growing Together Community Interest Company Limited,F909,Children & Families,Supplies and Services,"9,481.13",Mar-23
Slough Borough Council,808191,Ambrose Adrian Healthcare Ltd,M44E,Adult Social Care Operations,Supplies and Services,"3,800.00",Mar-23
Slough Borough Council,805264,Ameresco Limited,P168,Capital,Supplies and Services,"1,886.70",Mar-23
Slough Borough Council,808368,Anthony Toby Homes Trust,M26E,Adult Social Care Operations,Supplies and Services,"5,413.80",Mar-23
Slough Borough Council,1426,Apple Travel Ltd,F253,Children & Families,Transport,505.00,Mar-23
Slough Borough Council,3137,Applegarth Care Home Ltd,M25C,Adult Social Care Operations,Supplies and Services,"3,200.00",Mar-23
Slough Borough Council,3137,Applegarth Care Home Ltd,M27C,Adult Social Care Operations,Supplies and Services,540.00,Mar-23
Slough Borough Council,3137,Applegarth Care Home Ltd,M28C,Adult Social Care Operations,Supplies and Services,"3,214.25",Mar-23
Slough Borough Council,808415,APTUS EA LTD,H205,Housing (People) Services,Supplies and Services,"128,455.00",Mar-23
Slough Borough Council,511,Aquaneed Limited,P006,Capital,Capital Charges,"15,349.40",Mar-23
Slough Borough Council,3350,Arbour Vale School,B297,Finance & Commercial,Government Grants,"1,980.00",Mar-23
Slough Borough Council,3350,Arbour Vale School,B297,Finance & Commercial,Government Grants,"1,980.00",Mar-23
Slough Borough Council,3350,Arbour Vale School,B297,Finance & Commercial,Government Grants,"3,960.00",Mar-23
Slough Borough Council,3350,Arbour Vale School,E610,Children & Families,Supplies and Services,"26,970.72",Mar-23
Slough Borough Council,2073,Arc Preschool,F909,Children & Families,Supplies and Services,"2,227.50",Mar-23
Slough Borough Council,2073,Arc Preschool,F909,Children & Families,Supplies and Services,"4,963.14",Mar-23
Slough Borough Council,831,Argos Business Solutions Ltd,H055,Finance & Commercial,Supplies and Services,"13,890.25",Mar-23
Slough Borough Council,831,Argos Business Solutions Ltd,H055,Finance & Commercial,Supplies and Services,"13,530.75",Mar-23
Slough Borough Council,831,Argos Business Solutions Ltd,H055,Finance & Commercial,Supplies and Services,"17,986.50",Mar-23
Slough Borough Council,1985,Ascentis,F210,Community,Supplies and Services,569.00,Mar-23
Slough Borough Council,1985,Ascentis,F210,Community,Supplies and Services,660.00,Mar-23
Slough Borough Council,420,Ashburn Estate Agents,H205,Housing (People) Services,Premises,"110,742.00",Mar-23
Slough Borough Council,3666,Assisted Living South West,M26E,Adult Social Care Operations,Supplies and Services,"6,778.96",Mar-23
Slough Borough Council,3666,Assisted Living South West,M26E,Adult Social Care Operations,Supplies and Services,"5,105.00",Mar-23
Slough Borough Council,803499,Association of Directors of Public Health,A01P,Public Health,Supplies and Services,"3,900.00",Mar-23
Slough Borough Council,1292,Association Of Electoral Administrators,B240,Business Services,Salaries and Wages,"4,584.76",Mar-23
Slough Borough Council,804324,Astoria Healthcare,M27F,Adult Social Care Operations,Supplies and Services,"4,417.50",Mar-23
Slough Borough Council,570,Atkins Limited,D015,Place Strategy & Infrastructure,Supplies and Services,"2,052.00",Mar-23
Slough Borough Council,570,Atkins Limited,D015,Place Strategy & Infrastructure,Supplies and Services,684.00,Mar-23
Slough Borough Council,570,Atkins Limited,P212,Capital,Capital Charges,"1,725.00",Mar-23
Slough Borough Council,570,Atkins Limited,P240,Capital,Capital Charges,"15,000.00",Mar-23
Slough Borough Council,1286,Barnardos,F462,Children & Families,Supplies and Services,"32,281.40",Mar-23
Slough Borough Council,1286,Barnardos,F462,Children & Families,Supplies and Services,601.00,Mar-23
Slough Borough Council,1286,Barnardos,F462,Children & Families,Supplies and Services,"32,281.40",Mar-23
Slough Borough Council,1286,Barnardos,F462,Children & Families,Supplies and Services,601.00,Mar-23
Slough Borough Council,1286,Barnardos,F462,Children & Families,Supplies and Services,"31,667.00",Mar-23
Slough Borough Council,1286,Barnardos,F462,Children & Families,Supplies and Services,601.00,Mar-23
Slough Borough Council,1286,Barnardos,F462,Children & Families,Supplies and Services,"32,281.40",Mar-23
Slough Borough Council,1286,Barnardos,F462,Children & Families,Supplies and Services,601.00,Mar-23
Slough Borough Council,808535,Baylis Community Media CIC,D124,Place Strategy & Infrastructure,Supplies and Services,"3,346.56",Mar-23
Slough Borough Council,808535,Baylis Community Media CIC,F382,Children & Families,Supplies and Services,673.61,Mar-23
Slough Borough Council,3370,Baylis Court School,E610,Children & Families,Supplies and Services,"4,333.34",Mar-23
Slough Borough Council,1681,Bcq,F253,Children & Families,Supplies and Services,650.00,Mar-23
Slough Borough Council,1681,Bcq,H253,Community,Supplies and Services,845.00,Mar-23
Slough Borough Council,3208,Be Happy Pre School,F549,Children & Families,Supplies and Services,"4,620.00",Mar-23
Slough Borough Council,3208,Be Happy Pre School,F549,Children & Families,Supplies and Services,"4,620.00",Mar-23
Slough Borough Council,3208,Be Happy Pre School,F549,Children & Families,Supplies and Services,"4,620.00",Mar-23
Slough Borough Council,3208,Be Happy Pre School,F909,Children & Families,Supplies and Services,720.00,Mar-23
Slough Borough Council,3208,Be Happy Pre School,F909,Children & Families,Supplies and Services,"42,334.11",Mar-23
Slough Borough Council,3208,Be Happy Pre School,F909,Children & Families,Supplies and Services,"10,575.13",Mar-23
Slough Borough Council,3208,Be Happy Pre School,F909,Children & Families,Supplies and Services,"12,214.36",Mar-23
Slough Borough Council,3208,Be Happy Pre School,F909,Children & Families,Supplies and Services,"6,747.25",Mar-23
Slough Borough Council,805539,Beech Haven Ltd,M27C,Adult Social Care Operations,Supplies and Services,"3,171.43",Mar-23
Slough Borough Council,804471,Beech Lodge School Ltd,F462,Children & Families,Supplies and Services,"15,402.00",Mar-23
Slough Borough Council,804471,Beech Lodge School Ltd,F462,Children & Families,Supplies and Services,"12,270.00",Mar-23
Slough Borough Council,804471,Beech Lodge School Ltd,F462,Children & Families,Supplies and Services,"20,101.00",Mar-23
Slough Borough Council,609,Beechwood Secondary School,B326,Finance & Commercial,Supplies and Services,"2,045.00",Mar-23
Slough Borough Council,609,Beechwood Secondary School,E610,Children & Families,Supplies and Services,"5,502.85",Mar-23
Slough Borough Council,804588,BEN Motor & Allied Trades Bev.Fnd,M15D,Adult Social Care Operations,Supplies and Services,"6,400.00",Mar-23
Slough Borough Council,804588,BEN Motor & Allied Trades Bev.Fnd,M27C,Adult Social Care Operations,Supplies and Services,"5,600.00",Mar-23
Slough Borough Council,612,Berkshire Healthcare Nhs Foundation Trust,A04C,Adult Social Care Operations,Supplies and Services,"9,200.00",Mar-23
Slough Borough Council,612,Berkshire Healthcare Nhs Foundation Trust,A07M,Mental Health Services,Agency Staff,804.58,Mar-23
Slough Borough Council,612,Berkshire Healthcare Nhs Foundation Trust,A07M,Mental Health Services,Agency Staff,"8,252.33",Mar-23
Slough Borough Council,612,Berkshire Healthcare Nhs Foundation Trust,A07M,Mental Health Services,Agency Staff,"2,801.08",Mar-23
Slough Borough Council,612,Berkshire Healthcare Nhs Foundation Trust,A07M,Mental Health Services,Agency Staff,"3,192.75",Mar-23
Slough Borough Council,612,Berkshire Healthcare Nhs Foundation Trust,A07M,Mental Health Services,Agency Staff,"5,602.50",Mar-23
Slough Borough Council,612,Berkshire Healthcare Nhs Foundation Trust,A07M,Mental Health Services,Agency Staff,"3,901.00",Mar-23
Slough Borough Council,612,Berkshire Healthcare Nhs Foundation Trust,A07M,Mental Health Services,Agency Staff,665.75,Mar-23
Slough Borough Council,612,Berkshire Healthcare Nhs Foundation Trust,A07M,Mental Health Services,Agency Staff,"4,781.33",Mar-23
Slough Borough Council,612,Berkshire Healthcare Nhs Foundation Trust,A07M,Mental Health Services,Agency Staff,777.00,Mar-23
Slough Borough Council,612,Berkshire Healthcare Nhs Foundation Trust,A07M,Mental Health Services,Agency Staff,777.00,Mar-23
Slough Borough Council,612,Berkshire Healthcare Nhs Foundation Trust,A07M,Mental Health Services,Agency Staff,804.58,Mar-23
Slough Borough Council,612,Berkshire Healthcare Nhs Foundation Trust,A07M,Mental Health Services,Agency Staff,"8,252.33",Mar-23
Slough Borough Council,612,Berkshire Healthcare Nhs Foundation Trust,A07M,Mental Health Services,Agency Staff,"3,766.25",Mar-23
Slough Borough Council,612,Berkshire Healthcare Nhs Foundation Trust,A07M,Mental Health Services,Agency Staff,"2,801.08",Mar-23
Slough Borough Council,612,Berkshire Healthcare Nhs Foundation Trust,A07M,Mental Health Services,Agency Staff,"3,192.75",Mar-23
Slough Borough Council,612,Berkshire Healthcare Nhs Foundation Trust,A07M,Mental Health Services,Agency Staff,"5,602.50",Mar-23
Slough Borough Council,612,Berkshire Healthcare Nhs Foundation Trust,A07M,Mental Health Services,Agency Staff,"3,901.00",Mar-23
Slough Borough Council,612,Berkshire Healthcare Nhs Foundation Trust,A07M,Mental Health Services,Agency Staff,665.75,Mar-23
Slough Borough Council,612,Berkshire Healthcare Nhs Foundation Trust,A07M,Mental Health Services,Agency Staff,"4,781.33",Mar-23
Slough Borough Council,612,Berkshire Healthcare Nhs Foundation Trust,A07M,Mental Health Services,Agency Staff,"3,901.00",Mar-23
Slough Borough Council,612,Berkshire Healthcare Nhs Foundation Trust,A07M,Mental Health Services,Agency Staff,665.75,Mar-23
Slough Borough Council,612,Berkshire Healthcare Nhs Foundation Trust,A07M,Mental Health Services,Agency Staff,"4,781.33",Mar-23
Slough Borough Council,612,Berkshire Healthcare Nhs Foundation Trust,A07M,Mental Health Services,Agency Staff,"3,192.75",Mar-23
Slough Borough Council,612,Berkshire Healthcare Nhs Foundation Trust,A07M,Mental Health Services,Agency Staff,"2,801.08",Mar-23
Slough Borough Council,612,Berkshire Healthcare Nhs Foundation Trust,A07M,Mental Health Services,Agency Staff,"8,252.33",Mar-23
Slough Borough Council,612,Berkshire Healthcare Nhs Foundation Trust,A07M,Mental Health Services,Agency Staff,804.58,Mar-23
Slough Borough Council,612,Berkshire Healthcare Nhs Foundation Trust,A07M,Mental Health Services,Agency Staff,777.00,Mar-23
Slough Borough Council,612,Berkshire Healthcare Nhs Foundation Trust,A07M,Mental Health Services,Agency Staff,"3,766.25",Mar-23
Slough Borough Council,612,Berkshire Healthcare Nhs Foundation Trust,A07M,Mental Health Services,Agency Staff,"5,602.00",Mar-23
Slough Borough Council,612,Berkshire Healthcare Nhs Foundation Trust,A07R,Adult Social Care Operations,Supplies and Services,"6,582.00",Mar-23
Slough Borough Council,612,Berkshire Healthcare Nhs Foundation Trust,F417,Education & Inclusion,Supplies and Services,"252,000.00",Mar-23
Slough Borough Council,808116,BeSpoke Cycling Instruction Ltd,P243,Capital,Capital Charges,"6,607.00",Mar-23
Slough Borough Council,2308,Bespoke Supportive Tenancies Ltd,A04L,Adult Social Care Operations,Supplies and Services,"1,783.43",Mar-23
Slough Borough Council,2308,Bespoke Supportive Tenancies Ltd,A04L,Adult Social Care Operations,Supplies and Services,"1,783.43",Mar-23
Slough Borough Council,2308,Bespoke Supportive Tenancies Ltd,A04L,Adult Social Care Operations,Supplies and Services,"1,610.84",Mar-23
Slough Borough Council,808148,BEST CHOICE CARE LTD,M44C,Adult Social Care Operations,Supplies and Services,"1,225.00",Mar-23
Slough Borough Council,808755,BHANDAL INVESTMENTS LTD,H205,Housing (People) Services,Supplies and Services,"1,540.00",Mar-23
Slough Borough Council,803828,Blue Willow Day Nursery Ltd,F909,Children & Families,Supplies and Services,660.00,Mar-23
Slough Borough Council,803828,Blue Willow Day Nursery Ltd,F909,Children & Families,Supplies and Services,"63,503.42",Mar-23
Slough Borough Council,803828,Blue Willow Day Nursery Ltd,F909,Children & Families,Supplies and Services,"27,353.32",Mar-23
Slough Borough Council,805160,Bouygues E&S FM UK Limited,B060,Business Services,Premises,"15,860.00",Mar-23
Slough Borough Council,805160,Bouygues E&S FM UK Limited,B060,Business Services,Transport,"6,081.50",Mar-23
Slough Borough Council,805160,Bouygues E&S FM UK Limited,K522,Business Services,Premises,"42,661.26",Mar-23
Slough Borough Council,805160,Bouygues E&S FM UK Limited,K522,Business Services,Supplies and Services,"7,367.90",Mar-23
Slough Borough Council,805160,Bouygues E&S FM UK Limited,K523,Business Services,Premises,"50,804.37",Mar-23
Slough Borough Council,805160,Bouygues E&S FM UK Limited,K525,Business Services,Premises,"3,400.95",Mar-23
Slough Borough Council,805060,BPS Dorking Ltd t/a BPS Chartered Surveyors,D224,Place Regulation,Supplies and Services,"4,770.00",Mar-23
Slough Borough Council,805179,Braywood Tree Surgery Ltd,P220,Capital,Capital Charges,"1,056.72",Mar-23
Slough Borough Council,805179,Braywood Tree Surgery Ltd,P220,Capital,Capital Charges,"1,200.00",Mar-23
Slough Borough Council,1745,Bre Global,D224,Place Regulation,Indirect Employee Expenses,"2,000.00",Mar-23
Slough Borough Council,805817,Bright World Nurseries,F909,Children & Families,Supplies and Services,"6,806.49",Mar-23
Slough Borough Council,805817,Bright World Nurseries,F909,Children & Families,Supplies and Services,"10,772.90",Mar-23
Slough Borough Council,504,Britwell Baptist Pre School,F909,Children & Families,Supplies and Services,"1,425.60",Mar-23
Slough Borough Council,504,Britwell Baptist Pre School,F909,Children & Families,Supplies and Services,"5,319.74",Mar-23
Slough Borough Council,803873,Buckinghamshire County Council,D342,Place Operations,Supplies and Services,"289,622.82",Mar-23
Slough Borough Council,741,Bunnies Pre-School,F909,Children & Families,Supplies and Services,"1,033.95",Mar-23
Slough Borough Council,741,Bunnies Pre-School,F909,Children & Families,Supplies and Services,"6,510.92",Mar-23
Slough Borough Council,803553,BUPA CARE HOME (CFH CARE),M25D,Adult Social Care Operations,Supplies and Services,"3,172.00",Mar-23
Slough Borough Council,804448,Bupa Care Homes (ANS) Ltd,M15D,Adult Social Care Operations,Supplies and Services,"6,642.86",Mar-23
Slough Borough Council,804448,Bupa Care Homes (ANS) Ltd,M15D,Adult Social Care Operations,Supplies and Services,"5,257.84",Mar-23
Slough Borough Council,804448,Bupa Care Homes (ANS) Ltd,M26E,Adult Social Care Operations,Supplies and Services,"6,800.00",Mar-23
Slough Borough Council,2675,Burnham Lodge Ltd,A02E,Adult Social Care Operations,Supplies and Services,"3,771.43",Mar-23
Slough Borough Council,2675,Burnham Lodge Ltd,M28C,Adult Social Care Operations,Supplies and Services,"1,028.57",Mar-23
Slough Borough Council,2177,C F Roberts (Electrical Contractors)Plc,B490,Finance & Commercial,Premises,970.00,Mar-23
Slough Borough Council,629,C.H.O.I.C.E Limited,M26E,Adult Social Care Operations,Supplies and Services,"10,933.91",Mar-23
Slough Borough Council,629,C.H.O.I.C.E Limited,M26E,Adult Social Care Operations,Supplies and Services,"12,140.36",Mar-23
Slough Borough Council,629,C.H.O.I.C.E Limited,M26E,Adult Social Care Operations,Supplies and Services,"5,709.24",Mar-23
Slough Borough Council,629,C.H.O.I.C.E Limited,M26E,Adult Social Care Operations,Supplies and Services,"8,366.41",Mar-23
Slough Borough Council,629,C.H.O.I.C.E Limited,M26E,Adult Social Care Operations,Supplies and Services,"10,298.79",Mar-23
Slough Borough Council,629,C.H.O.I.C.E Limited,M26E,Adult Social Care Operations,Supplies and Services,"10,529.36",Mar-23
Slough Borough Council,629,C.H.O.I.C.E Limited,M26E,Adult Social Care Operations,Supplies and Services,"8,866.28",Mar-23
Slough Borough Council,629,C.H.O.I.C.E Limited,M26E,Adult Social Care Operations,Supplies and Services,"6,806.76",Mar-23
Slough Borough Council,629,C.H.O.I.C.E Limited,M26E,Adult Social Care Operations,Supplies and Services,"11,402.23",Mar-23
Slough Borough Council,629,C.H.O.I.C.E Limited,M26E,Adult Social Care Operations,Supplies and Services,"11,657.51",Mar-23
Slough Borough Council,629,C.H.O.I.C.E Limited,M26E,Adult Social Care Operations,Supplies and Services,"10,010.29",Mar-23
Slough Borough Council,629,C.H.O.I.C.E Limited,M26E,Adult Social Care Operations,Supplies and Services,"10,277.39",Mar-23
Slough Borough Council,629,C.H.O.I.C.E Limited,M26E,Adult Social Care Operations,Supplies and Services,"10,482.69",Mar-23
Slough Borough Council,629,C.H.O.I.C.E Limited,M26E,Adult Social Care Operations,Supplies and Services,"10,567.07",Mar-23
Slough Borough Council,629,C.H.O.I.C.E Limited,M26E,Adult Social Care Operations,Supplies and Services,"9,262.81",Mar-23
Slough Borough Council,629,C.H.O.I.C.E Limited,M26E,Adult Social Care Operations,External Receipts,-534.53,Mar-23
Slough Borough Council,629,C.H.O.I.C.E Limited,M42E,Adult Social Care Operations,Supplies and Services,"6,235.03",Mar-23
Slough Borough Council,629,C.H.O.I.C.E Limited,M42E,Adult Social Care Operations,Supplies and Services,"5,677.03",Mar-23
Slough Borough Council,629,C.H.O.I.C.E Limited,M42E,Adult Social Care Operations,Supplies and Services,"6,108.82",Mar-23
Slough Borough Council,629,C.H.O.I.C.E Limited,M42E,Adult Social Care Operations,Supplies and Services,"6,145.35",Mar-23
Slough Borough Council,629,C.H.O.I.C.E Limited,M42E,Adult Social Care Operations,Supplies and Services,"1,107.14",Mar-23
Slough Borough Council,629,C.H.O.I.C.E Limited,M44F,Adult Social Care Operations,Supplies and Services,"2,608.07",Mar-23
Slough Borough Council,629,C.H.O.I.C.E Limited,M44F,Adult Social Care Operations,Supplies and Services,"2,581.90",Mar-23
Slough Borough Council,808007,Cameron & Cooper Limited (The Beech House School),F462,Children & Families,Supplies and Services,"1,578.90",Mar-23
Slough Borough Council,805717,Care Management Group Ltd,M26E,Adult Social Care Operations,Supplies and Services,"13,016.16",Mar-23
Slough Borough Council,805717,Care Management Group Ltd,M26E,Adult Social Care Operations,Supplies and Services,"-12,502.24",Mar-23
Slough Borough Council,803441,Care Quality Commission,A07R,Adult Social Care Operations,Supplies and Services,728.00,Mar-23
Slough Borough Council,805621,Care Staff Services,A07R,Adult Social Care Operations,Supplies and Services,857.50,Mar-23
Slough Borough Council,805621,Care Staff Services,A07R,Adult Social Care Operations,Supplies and Services,560.00,Mar-23
Slough Borough Council,805621,Care Staff Services,M44C,Adult Social Care Operations,Supplies and Services,735.00,Mar-23
Slough Borough Council,805621,Care Staff Services,M44C,Adult Social Care Operations,Supplies and Services,"1,813.00",Mar-23
Slough Borough Council,805621,Care Staff Services,M44C,Adult Social Care Operations,Supplies and Services,518.00,Mar-23
Slough Borough Council,805621,Care Staff Services,M44C,Adult Social Care Operations,Supplies and Services,721.50,Mar-23
Slough Borough Council,805621,Care Staff Services,M44C,Adult Social Care Operations,Supplies and Services,857.50,Mar-23
Slough Borough Council,805621,Care Staff Services,M44C,Adult Social Care Operations,Supplies and Services,"1,102.50",Mar-23
Slough Borough Council,805621,Care Staff Services,M44C,Adult Social Care Operations,Supplies and Services,"2,205.00",Mar-23
Slough Borough Council,805621,Care Staff Services,M44C,Adult Social Care Operations,Supplies and Services,"1,137.50",Mar-23
Slough Borough Council,805621,Care Staff Services,M44C,Adult Social Care Operations,Supplies and Services,508.75,Mar-23
Slough Borough Council,805621,Care Staff Services,M44C,Adult Social Care Operations,Supplies and Services,"2,415.00",Mar-23
Slough Borough Council,805621,Care Staff Services,M44C,Adult Social Care Operations,Supplies and Services,752.50,Mar-23
Slough Borough Council,805621,Care Staff Services,M44C,Adult Social Care Operations,Supplies and Services,"1,207.50",Mar-23
Slough Borough Council,805621,Care Staff Services,M44C,Adult Social Care Operations,Supplies and Services,857.50,Mar-23
Slough Borough Council,805621,Care Staff Services,M44C,Adult Social Care Operations,Supplies and Services,777.00,Mar-23
Slough Borough Council,805621,Care Staff Services,M44C,Adult Social Care Operations,Supplies and Services,"1,443.75",Mar-23
Slough Borough Council,805621,Care Staff Services,M44C,Adult Social Care Operations,Supplies and Services,791.88,Mar-23
Slough Borough Council,805621,Care Staff Services,M44C,Adult Social Care Operations,Supplies and Services,844.38,Mar-23
Slough Borough Council,805621,Care Staff Services,M44C,Adult Social Care Operations,Supplies and Services,"2,205.00",Mar-23
Slough Borough Council,805621,Care Staff Services,M44C,Adult Social Care Operations,Supplies and Services,"1,225.63",Mar-23
Slough Borough Council,805621,Care Staff Services,M44C,Adult Social Care Operations,Supplies and Services,735.00,Mar-23
Slough Borough Council,805621,Care Staff Services,M44C,Adult Social Care Operations,Supplies and Services,"1,085.00",Mar-23
Slough Borough Council,805621,Care Staff Services,M44C,Adult Social Care Operations,Supplies and Services,"1,102.50",Mar-23
Slough Borough Council,805621,Care Staff Services,M44C,Adult Social Care Operations,Supplies and Services,857.50,Mar-23
Slough Borough Council,805621,Care Staff Services,M44C,Adult Social Care Operations,Supplies and Services,"2,205.00",Mar-23
Slough Borough Council,805621,Care Staff Services,M44C,Adult Social Care Operations,Supplies and Services,945.00,Mar-23
Slough Borough Council,805621,Care Staff Services,M44C,Adult Social Care Operations,Supplies and Services,"1,813.00",Mar-23
Slough Borough Council,805621,Care Staff Services,M44C,Adult Social Care Operations,Supplies and Services,857.50,Mar-23
Slough Borough Council,805621,Care Staff Services,M44C,Adult Social Care Operations,Supplies and Services,518.00,Mar-23
Slough Borough Council,805621,Care Staff Services,M44C,Adult Social Care Operations,Supplies and Services,906.50,Mar-23
Slough Borough Council,805621,Care Staff Services,M44C,Adult Social Care Operations,Supplies and Services,805.00,Mar-23
Slough Borough Council,805621,Care Staff Services,M44C,Adult Social Care Operations,Supplies and Services,783.13,Mar-23
Slough Borough Council,805621,Care Staff Services,M44C,Adult Social Care Operations,Supplies and Services,"2,664.00",Mar-23
Slough Borough Council,805621,Care Staff Services,M44C,Adult Social Care Operations,Supplies and Services,809.38,Mar-23
Slough Borough Council,805621,Care Staff Services,M44C,Adult Social Care Operations,Supplies and Services,752.50,Mar-23
Slough Borough Council,805621,Care Staff Services,M44C,Adult Social Care Operations,Supplies and Services,"1,828.75",Mar-23
Slough Borough Council,805621,Care Staff Services,M44C,Adult Social Care Operations,Supplies and Services,629.00,Mar-23
Slough Borough Council,805621,Care Staff Services,M44C,Adult Social Care Operations,Supplies and Services,"2,030.00",Mar-23
Slough Borough Council,805621,Care Staff Services,M44C,Adult Social Care Operations,Supplies and Services,"1,165.50",Mar-23
Slough Borough Council,805621,Care Staff Services,M44C,Adult Social Care Operations,Supplies and Services,525.00,Mar-23
Slough Borough Council,805621,Care Staff Services,M44C,Adult Social Care Operations,Supplies and Services,647.50,Mar-23
Slough Borough Council,805621,Care Staff Services,M44C,Adult Social Care Operations,Supplies and Services,848.75,Mar-23
Slough Borough Council,805621,Care Staff Services,M44C,Adult Social Care Operations,Supplies and Services,752.50,Mar-23
Slough Borough Council,805621,Care Staff Services,M44C,Adult Social Care Operations,Supplies and Services,997.50,Mar-23
Slough Borough Council,805621,Care Staff Services,M44C,Adult Social Care Operations,Supplies and Services,525.00,Mar-23
Slough Borough Council,805621,Care Staff Services,M44C,Adult Social Care Operations,Supplies and Services,"2,321.75",Mar-23
Slough Borough Council,805621,Care Staff Services,M44D,Adult Social Care Operations,Supplies and Services,"1,147.00",Mar-23
Slough Borough Council,805621,Care Staff Services,M44D,Adult Social Care Operations,Supplies and Services,792.38,Mar-23
Slough Borough Council,805621,Care Staff Services,M44D,Adult Social Care Operations,Supplies and Services,"1,732.50",Mar-23
Slough Borough Council,805621,Care Staff Services,M44D,Adult Social Care Operations,Supplies and Services,518.00,Mar-23
Slough Borough Council,805621,Care Staff Services,M44D,Adult Social Care Operations,Supplies and Services,832.50,Mar-23
Slough Borough Council,805621,Care Staff Services,M44D,Adult Social Care Operations,Supplies and Services,717.50,Mar-23
Slough Borough Council,805621,Care Staff Services,M44D,Adult Social Care Operations,Supplies and Services,"2,321.75",Mar-23
Slough Borough Council,805621,Care Staff Services,M44D,Adult Social Care Operations,Supplies and Services,"1,295.00",Mar-23
Slough Borough Council,805621,Care Staff Services,M44D,Adult Social Care Operations,Supplies and Services,"1,165.50",Mar-23
Slough Borough Council,805621,Care Staff Services,M44D,Adult Social Care Operations,Supplies and Services,"1,470.00",Mar-23
Slough Borough Council,805621,Care Staff Services,M44F,Adult Social Care Operations,Supplies and Services,"1,207.50",Mar-23
Slough Borough Council,805621,Care Staff Services,M44F,Adult Social Care Operations,Supplies and Services,666.00,Mar-23
Slough Borough Council,805621,Care Staff Services,M44F,Adult Social Care Operations,Supplies and Services,"1,900.12",Mar-23
Slough Borough Council,805621,Care Staff Services,M44F,Adult Social Care Operations,Supplies and Services,"1,225.00",Mar-23
Slough Borough Council,805621,Care Staff Services,M44F,Adult Social Care Operations,Supplies and Services,999.00,Mar-23
Slough Borough Council,805621,Care Staff Services,M44F,Adult Social Care Operations,Supplies and Services,"2,590.00",Mar-23
Slough Borough Council,805621,Care Staff Services,M44F,Adult Social Care Operations,Supplies and Services,647.50,Mar-23
Slough Borough Council,805621,Care Staff Services,M44F,Adult Social Care Operations,Supplies and Services,730.75,Mar-23
Slough Borough Council,805621,Care Staff Services,M45C,Adult Social Care Operations,Supplies and Services,"2,205.00",Mar-23
Slough Borough Council,805621,Care Staff Services,M45C,Adult Social Care Operations,Supplies and Services,"2,196.25",Mar-23
Slough Borough Council,805621,Care Staff Services,M45C,Adult Social Care Operations,Supplies and Services,857.50,Mar-23
Slough Borough Council,805621,Care Staff Services,M45C,Adult Social Care Operations,Supplies and Services,"1,102.50",Mar-23
Slough Borough Council,805621,Care Staff Services,M45C,Adult Social Care Operations,Supplies and Services,"1,461.25",Mar-23
Slough Borough Council,805621,Care Staff Services,M45C,Adult Social Care Operations,Supplies and Services,"2,450.00",Mar-23
Slough Borough Council,805621,Care Staff Services,M45C,Adult Social Care Operations,Supplies and Services,"1,456.88",Mar-23
Slough Borough Council,805621,Care Staff Services,M48C,Adult Social Care Operations,Supplies and Services,"1,715.00",Mar-23
Slough Borough Council,805621,Care Staff Services,M48C,Adult Social Care Operations,Supplies and Services,"1,960.00",Mar-23
Slough Borough Council,808149,Care Staff Services Support,M44F,Adult Social Care Operations,Supplies and Services,"1,808.48",Mar-23
Slough Borough Council,808149,Care Staff Services Support,M44F,Adult Social Care Operations,Supplies and Services,"4,891.12",Mar-23
Slough Borough Council,808149,Care Staff Services Support,M44F,Adult Social Care Operations,Supplies and Services,"4,361.52",Mar-23
Slough Borough Council,1162,Care Uk Community Partnership Ltd,A02E,Adult Social Care Operations,Supplies and Services,"48,783.28",Mar-23
Slough Borough Council,1162,Care Uk Community Partnership Ltd,A02E,Adult Social Care Operations,Supplies and Services,"48,783.28",Mar-23
Slough Borough Council,1162,Care Uk Community Partnership Ltd,A03E,Adult Social Care Operations,Supplies and Services,"7,245.18",Mar-23
Slough Borough Council,1162,Care Uk Community Partnership Ltd,A03E,Adult Social Care Operations,Supplies and Services,"3,842.56",Mar-23
Slough Borough Council,1162,Care Uk Community Partnership Ltd,M15D,Adult Social Care Operations,Supplies and Services,"3,849.16",Mar-23
Slough Borough Council,1162,Care Uk Community Partnership Ltd,M15D,Adult Social Care Operations,Supplies and Services,"3,849.16",Mar-23
Slough Borough Council,1162,Care Uk Community Partnership Ltd,M15D,Adult Social Care Operations,Supplies and Services,"3,849.16",Mar-23
Slough Borough Council,1162,Care Uk Community Partnership Ltd,M15D,Adult Social Care Operations,Supplies and Services,"3,969.72",Mar-23
Slough Borough Council,1162,Care Uk Community Partnership Ltd,M15D,Adult Social Care Operations,Supplies and Services,"3,849.16",Mar-23
Slough Borough Council,1162,Care Uk Community Partnership Ltd,M15D,Adult Social Care Operations,Supplies and Services,"3,849.16",Mar-23
Slough Borough Council,1162,Care Uk Community Partnership Ltd,M15D,Adult Social Care Operations,Supplies and Services,"3,849.16",Mar-23
Slough Borough Council,1162,Care Uk Community Partnership Ltd,M15D,Adult Social Care Operations,Supplies and Services,"3,849.16",Mar-23
Slough Borough Council,1162,Care Uk Community Partnership Ltd,M15D,Adult Social Care Operations,Supplies and Services,"3,969.72",Mar-23
Slough Borough Council,1162,Care Uk Community Partnership Ltd,M15D,Adult Social Care Operations,Supplies and Services,"3,849.16",Mar-23
Slough Borough Council,1162,Care Uk Community Partnership Ltd,M15F,Adult Social Care Operations,Supplies and Services,"3,849.16",Mar-23
Slough Borough Council,1162,Care Uk Community Partnership Ltd,M15F,Adult Social Care Operations,Supplies and Services,"3,849.16",Mar-23
Slough Borough Council,1162,Care Uk Community Partnership Ltd,M15F,Adult Social Care Operations,Supplies and Services,"3,849.16",Mar-23
Slough Borough Council,1162,Care Uk Community Partnership Ltd,M15F,Adult Social Care Operations,Supplies and Services,"3,849.16",Mar-23
Slough Borough Council,1162,Care Uk Community Partnership Ltd,M17C,Adult Social Care Operations,Supplies and Services,"3,969.72",Mar-23
Slough Borough Council,1162,Care Uk Community Partnership Ltd,M17C,Adult Social Care Operations,Supplies and Services,"17,687.52",Mar-23
Slough Borough Council,1162,Care Uk Community Partnership Ltd,M17C,Adult Social Care Operations,Supplies and Services,"3,969.72",Mar-23
Slough Borough Council,1162,Care Uk Community Partnership Ltd,M17C,Adult Social Care Operations,Supplies and Services,"3,969.72",Mar-23
Slough Borough Council,1162,Care Uk Community Partnership Ltd,M17C,Adult Social Care Operations,Supplies and Services,"3,849.16",Mar-23
Slough Borough Council,1162,Care Uk Community Partnership Ltd,M17C,Adult Social Care Operations,Supplies and Services,"3,849.16",Mar-23
Slough Borough Council,1162,Care Uk Community Partnership Ltd,M17C,Adult Social Care Operations,Supplies and Services,"3,969.72",Mar-23
Slough Borough Council,1162,Care Uk Community Partnership Ltd,M17C,Adult Social Care Operations,Supplies and Services,"3,849.16",Mar-23
Slough Borough Council,1162,Care Uk Community Partnership Ltd,M17C,Adult Social Care Operations,Supplies and Services,"3,969.72",Mar-23
Slough Borough Council,1162,Care Uk Community Partnership Ltd,M17C,Adult Social Care Operations,Supplies and Services,"3,969.72",Mar-23
Slough Borough Council,1162,Care Uk Community Partnership Ltd,M17C,Adult Social Care Operations,Supplies and Services,"3,849.16",Mar-23
Slough Borough Council,1162,Care Uk Community Partnership Ltd,M17C,Adult Social Care Operations,Supplies and Services,"17,687.52",Mar-23
Slough Borough Council,1162,Care Uk Community Partnership Ltd,M17C,Adult Social Care Operations,Supplies and Services,"5,757.14",Mar-23
Slough Borough Council,1162,Care Uk Community Partnership Ltd,M17C,Adult Social Care Operations,Supplies and Services,"5,757.14",Mar-23
Slough Borough Council,1162,Care Uk Community Partnership Ltd,M17C,Adult Social Care Operations,Supplies and Services,"5,200.00",Mar-23
Slough Borough Council,1162,Care Uk Community Partnership Ltd,M17C,Adult Social Care Operations,Supplies and Services,"5,757.14",Mar-23
Slough Borough Council,1162,Care Uk Community Partnership Ltd,M18C,Adult Social Care Operations,Supplies and Services,"3,969.72",Mar-23
Slough Borough Council,1162,Care Uk Community Partnership Ltd,M18C,Adult Social Care Operations,Supplies and Services,"3,969.72",Mar-23
Slough Borough Council,1162,Care Uk Community Partnership Ltd,M18C,Adult Social Care Operations,Supplies and Services,"3,969.72",Mar-23
Slough Borough Council,1162,Care Uk Community Partnership Ltd,M18C,Adult Social Care Operations,Supplies and Services,"3,969.72",Mar-23
Slough Borough Council,1162,Care Uk Community Partnership Ltd,M18C,Adult Social Care Operations,Supplies and Services,"3,849.16",Mar-23
Slough Borough Council,1162,Care Uk Community Partnership Ltd,M18C,Adult Social Care Operations,Supplies and Services,"3,849.16",Mar-23
Slough Borough Council,1162,Care Uk Community Partnership Ltd,M18C,Adult Social Care Operations,Supplies and Services,"3,969.72",Mar-23
Slough Borough Council,1162,Care Uk Community Partnership Ltd,M18C,Adult Social Care Operations,Supplies and Services,"3,969.72",Mar-23
Slough Borough Council,1162,Care Uk Community Partnership Ltd,M18C,Adult Social Care Operations,Supplies and Services,"3,849.16",Mar-23
Slough Borough Council,1162,Care Uk Community Partnership Ltd,M18C,Adult Social Care Operations,Supplies and Services,"3,849.16",Mar-23
Slough Borough Council,1162,Care Uk Community Partnership Ltd,M18C,Adult Social Care Operations,Supplies and Services,"3,849.16",Mar-23
Slough Borough Council,1162,Care Uk Community Partnership Ltd,M18C,Adult Social Care Operations,Supplies and Services,"3,969.72",Mar-23
Slough Borough Council,1162,Care Uk Community Partnership Ltd,M18C,Adult Social Care Operations,Supplies and Services,"3,849.16",Mar-23
Slough Borough Council,1162,Care Uk Community Partnership Ltd,M18C,Adult Social Care Operations,Supplies and Services,"3,849.16",Mar-23
Slough Borough Council,1162,Care Uk Community Partnership Ltd,M18C,Adult Social Care Operations,Supplies and Services,"3,969.72",Mar-23
Slough Borough Council,1162,Care Uk Community Partnership Ltd,M18C,Adult Social Care Operations,Supplies and Services,"3,849.16",Mar-23
Slough Borough Council,1162,Care Uk Community Partnership Ltd,M18C,Adult Social Care Operations,Supplies and Services,"-17,564.32",Mar-23
Slough Borough Council,1162,Care Uk Community Partnership Ltd,M18C,Adult Social Care Operations,Supplies and Services,"3,849.16",Mar-23
Slough Borough Council,1162,Care Uk Community Partnership Ltd,M18C,Adult Social Care Operations,Supplies and Services,"-109,160.96",Mar-23
Slough Borough Council,1162,Care Uk Community Partnership Ltd,M18C,Adult Social Care Operations,Supplies and Services,"3,849.16",Mar-23
Slough Borough Council,1162,Care Uk Community Partnership Ltd,M18C,Adult Social Care Operations,Supplies and Services,"3,849.16",Mar-23
Slough Borough Council,1162,Care Uk Community Partnership Ltd,M18C,Adult Social Care Operations,Supplies and Services,"3,849.16",Mar-23
Slough Borough Council,1162,Care Uk Community Partnership Ltd,M18C,Adult Social Care Operations,Supplies and Services,"3,849.16",Mar-23
Slough Borough Council,1162,Care Uk Community Partnership Ltd,M18C,Adult Social Care Operations,Supplies and Services,"110,388.41",Mar-23
Slough Borough Council,1162,Care Uk Community Partnership Ltd,M18C,Adult Social Care Operations,Supplies and Services,"1,374.70",Mar-23
Slough Borough Council,1162,Care Uk Community Partnership Ltd,M18C,Adult Social Care Operations,Supplies and Services,"-18,273.20",Mar-23
Slough Borough Council,1162,Care Uk Community Partnership Ltd,M18C,Adult Social Care Operations,Supplies and Services,"3,969.72",Mar-23
Slough Borough Council,1162,Care Uk Community Partnership Ltd,M18C,Adult Social Care Operations,Supplies and Services,"3,849.16",Mar-23
Slough Borough Council,1162,Care Uk Community Partnership Ltd,M18C,Adult Social Care Operations,Supplies and Services,"3,969.72",Mar-23
Slough Borough Council,1162,Care Uk Community Partnership Ltd,M18C,Adult Social Care Operations,Supplies and Services,"3,849.16",Mar-23
Slough Borough Council,1162,Care Uk Community Partnership Ltd,M18C,Adult Social Care Operations,Supplies and Services,"3,969.72",Mar-23
Slough Borough Council,1162,Care Uk Community Partnership Ltd,M18C,Adult Social Care Operations,Supplies and Services,"3,849.16",Mar-23
Slough Borough Council,1162,Care Uk Community Partnership Ltd,M18C,Adult Social Care Operations,Supplies and Services,"3,969.72",Mar-23
Slough Borough Council,1162,Care Uk Community Partnership Ltd,M18C,Adult Social Care Operations,Supplies and Services,"3,849.16",Mar-23
Slough Borough Council,1162,Care Uk Community Partnership Ltd,M18C,Adult Social Care Operations,Supplies and Services,"3,849.16",Mar-23
Slough Borough Council,1162,Care Uk Community Partnership Ltd,M18C,Adult Social Care Operations,Supplies and Services,"3,849.16",Mar-23
Slough Borough Council,1162,Care Uk Community Partnership Ltd,M18C,Adult Social Care Operations,Supplies and Services,"3,969.72",Mar-23
Slough Borough Council,1162,Care Uk Community Partnership Ltd,M18C,Adult Social Care Operations,Supplies and Services,"3,969.72",Mar-23
Slough Borough Council,1162,Care Uk Community Partnership Ltd,M18C,Adult Social Care Operations,Supplies and Services,"3,849.16",Mar-23
Slough Borough Council,1162,Care Uk Community Partnership Ltd,M18C,Adult Social Care Operations,Supplies and Services,"3,969.72",Mar-23
Slough Borough Council,1162,Care Uk Community Partnership Ltd,M18C,Adult Social Care Operations,Supplies and Services,"3,969.72",Mar-23
Slough Borough Council,1162,Care Uk Community Partnership Ltd,M18C,Adult Social Care Operations,Supplies and Services,"3,849.16",Mar-23
Slough Borough Council,1162,Care Uk Community Partnership Ltd,M18C,Adult Social Care Operations,Supplies and Services,"3,849.16",Mar-23
Slough Borough Council,1162,Care Uk Community Partnership Ltd,M18C,Adult Social Care Operations,Supplies and Services,"3,849.16",Mar-23
Slough Borough Council,1162,Care Uk Community Partnership Ltd,M18C,Adult Social Care Operations,Supplies and Services,"3,849.16",Mar-23
Slough Borough Council,1162,Care Uk Community Partnership Ltd,M18C,Adult Social Care Operations,Supplies and Services,"3,849.16",Mar-23
Slough Borough Council,1162,Care Uk Community Partnership Ltd,M18C,Adult Social Care Operations,Supplies and Services,"3,849.16",Mar-23
Slough Borough Council,1162,Care Uk Community Partnership Ltd,M18C,Adult Social Care Operations,Supplies and Services,"3,969.72",Mar-23
Slough Borough Council,1162,Care Uk Community Partnership Ltd,M18C,Adult Social Care Operations,Supplies and Services,"3,849.16",Mar-23
Slough Borough Council,1162,Care Uk Community Partnership Ltd,M18C,Adult Social Care Operations,Supplies and Services,"3,849.16",Mar-23
Slough Borough Council,1162,Care Uk Community Partnership Ltd,M18C,Adult Social Care Operations,Supplies and Services,"1,275.98",Mar-23
Slough Borough Council,1162,Care Uk Community Partnership Ltd,M18C,Adult Social Care Operations,Supplies and Services,"3,849.16",Mar-23
Slough Borough Council,1162,Care Uk Community Partnership Ltd,M18C,Adult Social Care Operations,Supplies and Services,"-102,837.34",Mar-23
Slough Borough Council,1162,Care Uk Community Partnership Ltd,M18C,Adult Social Care Operations,Supplies and Services,"104,752.14",Mar-23
Slough Borough Council,1162,Care Uk Community Partnership Ltd,M18C,Adult Social Care Operations,Supplies and Services,"3,969.72",Mar-23
Slough Borough Council,1162,Care Uk Community Partnership Ltd,M18C,Adult Social Care Operations,Supplies and Services,"3,849.16",Mar-23
Slough Borough Council,1162,Care Uk Community Partnership Ltd,M18C,Adult Social Care Operations,Supplies and Services,"3,849.16",Mar-23
Slough Borough Council,1162,Care Uk Community Partnership Ltd,M18C,Adult Social Care Operations,Supplies and Services,"3,969.72",Mar-23
Slough Borough Council,1162,Care Uk Community Partnership Ltd,M18C,Adult Social Care Operations,Supplies and Services,"3,849.16",Mar-23
Slough Borough Council,1162,Care Uk Community Partnership Ltd,M18C,Adult Social Care Operations,Supplies and Services,"3,849.16",Mar-23
Slough Borough Council,1162,Care Uk Community Partnership Ltd,M18C,Adult Social Care Operations,Supplies and Services,"3,849.16",Mar-23
Slough Borough Council,1162,Care Uk Community Partnership Ltd,M18C,Adult Social Care Operations,Supplies and Services,"3,849.16",Mar-23
Slough Borough Council,1162,Care Uk Community Partnership Ltd,M18C,Adult Social Care Operations,Supplies and Services,"3,849.16",Mar-23
Slough Borough Council,1162,Care Uk Community Partnership Ltd,M25C,Adult Social Care Operations,Supplies and Services,"-73,174.36",Mar-23
Slough Borough Council,1162,Care Uk Community Partnership Ltd,M25C,Adult Social Care Operations,Supplies and Services,"3,484.52",Mar-23
Slough Borough Council,1162,Care Uk Community Partnership Ltd,M25C,Adult Social Care Operations,Supplies and Services,"3,484.52",Mar-23
Slough Borough Council,1162,Care Uk Community Partnership Ltd,M25C,Adult Social Care Operations,Supplies and Services,"3,484.52",Mar-23
Slough Borough Council,1162,Care Uk Community Partnership Ltd,M25C,Adult Social Care Operations,Supplies and Services,"-73,174.36",Mar-23
Slough Borough Council,1162,Care Uk Community Partnership Ltd,M25C,Adult Social Care Operations,Supplies and Services,"80,143.96",Mar-23
Slough Borough Council,1162,Care Uk Community Partnership Ltd,M25C,Adult Social Care Operations,Supplies and Services,"3,484.52",Mar-23
Slough Borough Council,1162,Care Uk Community Partnership Ltd,M25C,Adult Social Care Operations,Supplies and Services,"3,484.52",Mar-23
Slough Borough Council,1162,Care Uk Community Partnership Ltd,M25C,Adult Social Care Operations,Supplies and Services,"80,143.96",Mar-23
Slough Borough Council,1162,Care Uk Community Partnership Ltd,M25C,Adult Social Care Operations,Supplies and Services,"3,484.52",Mar-23
Slough Borough Council,1162,Care Uk Community Partnership Ltd,M26D,Adult Social Care Operations,Supplies and Services,"2,954.16",Mar-23
Slough Borough Council,1162,Care Uk Community Partnership Ltd,M26E,Adult Social Care Operations,Supplies and Services,"3,849.16",Mar-23
Slough Borough Council,1162,Care Uk Community Partnership Ltd,M26E,Adult Social Care Operations,Supplies and Services,"3,849.16",Mar-23
Slough Borough Council,1162,Care Uk Community Partnership Ltd,M26E,Adult Social Care Operations,Supplies and Services,"3,849.16",Mar-23
Slough Borough Council,1162,Care Uk Community Partnership Ltd,M26E,Adult Social Care Operations,Supplies and Services,"3,849.16",Mar-23
Slough Borough Council,1162,Care Uk Community Partnership Ltd,M27C,Adult Social Care Operations,Supplies and Services,"3,181.40",Mar-23
Slough Borough Council,1162,Care Uk Community Partnership Ltd,M27C,Adult Social Care Operations,Supplies and Services,"3,484.52",Mar-23
Slough Borough Council,1162,Care Uk Community Partnership Ltd,M27C,Adult Social Care Operations,Supplies and Services,"3,181.40",Mar-23
Slough Borough Council,1162,Care Uk Community Partnership Ltd,M27C,Adult Social Care Operations,Supplies and Services,"3,181.40",Mar-23
Slough Borough Council,1162,Care Uk Community Partnership Ltd,M27C,Adult Social Care Operations,Supplies and Services,"3,484.52",Mar-23
Slough Borough Council,1162,Care Uk Community Partnership Ltd,M27C,Adult Social Care Operations,Supplies and Services,"3,484.52",Mar-23
Slough Borough Council,1162,Care Uk Community Partnership Ltd,M27C,Adult Social Care Operations,Supplies and Services,"3,181.40",Mar-23
Slough Borough Council,1162,Care Uk Community Partnership Ltd,M27C,Adult Social Care Operations,Supplies and Services,"3,484.52",Mar-23
Slough Borough Council,1162,Care Uk Community Partnership Ltd,M27C,Adult Social Care Operations,Supplies and Services,"3,484.52",Mar-23
Slough Borough Council,1162,Care Uk Community Partnership Ltd,M27C,Adult Social Care Operations,Supplies and Services,"3,484.52",Mar-23
Slough Borough Council,1162,Care Uk Community Partnership Ltd,M27C,Adult Social Care Operations,Supplies and Services,"3,484.52",Mar-23
Slough Borough Council,1162,Care Uk Community Partnership Ltd,M27C,Adult Social Care Operations,Supplies and Services,"2,840.54",Mar-23
Slough Borough Council,1162,Care Uk Community Partnership Ltd,M27C,Adult Social Care Operations,Supplies and Services,"3,484.52",Mar-23
Slough Borough Council,1162,Care Uk Community Partnership Ltd,M27C,Adult Social Care Operations,Supplies and Services,"3,484.52",Mar-23
Slough Borough Council,1162,Care Uk Community Partnership Ltd,M27C,Adult Social Care Operations,Supplies and Services,"31,814.00",Mar-23
Slough Borough Council,1162,Care Uk Community Partnership Ltd,M27C,Adult Social Care Operations,Supplies and Services,"3,181.40",Mar-23
Slough Borough Council,1162,Care Uk Community Partnership Ltd,M27C,Adult Social Care Operations,Supplies and Services,"3,484.52",Mar-23
Slough Borough Council,1162,Care Uk Community Partnership Ltd,M27C,Adult Social Care Operations,Supplies and Services,"3,181.40",Mar-23
Slough Borough Council,1162,Care Uk Community Partnership Ltd,M27C,Adult Social Care Operations,Supplies and Services,"3,181.40",Mar-23
Slough Borough Council,1162,Care Uk Community Partnership Ltd,M27C,Adult Social Care Operations,Supplies and Services,"3,484.52",Mar-23
Slough Borough Council,1162,Care Uk Community Partnership Ltd,M27C,Adult Social Care Operations,Supplies and Services,"3,181.40",Mar-23
Slough Borough Council,1162,Care Uk Community Partnership Ltd,M27C,Adult Social Care Operations,Supplies and Services,"3,484.52",Mar-23
Slough Borough Council,1162,Care Uk Community Partnership Ltd,M27C,Adult Social Care Operations,Supplies and Services,"3,484.52",Mar-23
Slough Borough Council,1162,Care Uk Community Partnership Ltd,M27C,Adult Social Care Operations,Supplies and Services,"3,484.52",Mar-23
Slough Borough Council,1162,Care Uk Community Partnership Ltd,M27C,Adult Social Care Operations,Supplies and Services,"3,484.52",Mar-23
Slough Borough Council,1162,Care Uk Community Partnership Ltd,M27C,Adult Social Care Operations,Supplies and Services,"3,484.52",Mar-23
Slough Borough Council,1162,Care Uk Community Partnership Ltd,M27C,Adult Social Care Operations,Supplies and Services,"3,484.52",Mar-23
Slough Borough Council,1162,Care Uk Community Partnership Ltd,M27C,Adult Social Care Operations,Supplies and Services,"3,484.52",Mar-23
Slough Borough Council,1162,Care Uk Community Partnership Ltd,M27C,Adult Social Care Operations,Supplies and Services,"3,484.52",Mar-23
Slough Borough Council,1162,Care Uk Community Partnership Ltd,M27C,Adult Social Care Operations,Supplies and Services,"3,181.40",Mar-23
Slough Borough Council,1162,Care Uk Community Partnership Ltd,M27C,Adult Social Care Operations,Supplies and Services,"3,181.40",Mar-23
Slough Borough Council,1162,Care Uk Community Partnership Ltd,M27C,Adult Social Care Operations,Supplies and Services,"29,200.70",Mar-23
Slough Borough Council,1162,Care Uk Community Partnership Ltd,M27C,Adult Social Care Operations,Supplies and Services,"3,484.52",Mar-23
Slough Borough Council,1162,Care Uk Community Partnership Ltd,M27C,Adult Social Care Operations,Supplies and Services,"3,181.40",Mar-23
Slough Borough Council,1162,Care Uk Community Partnership Ltd,M27C,Adult Social Care Operations,Supplies and Services,"3,484.52",Mar-23
Slough Borough Council,1162,Care Uk Community Partnership Ltd,M27C,Adult Social Care Operations,Supplies and Services,"3,484.52",Mar-23
Slough Borough Council,1162,Care Uk Community Partnership Ltd,M27F,Adult Social Care Operations,Supplies and Services,"-3,181.40",Mar-23
Slough Borough Council,1162,Care Uk Community Partnership Ltd,M27F,Adult Social Care Operations,Supplies and Services,"-3,181.40",Mar-23
Slough Borough Council,1162,Care Uk Community Partnership Ltd,M28C,Adult Social Care Operations,Supplies and Services,"2,062.05",Mar-23
Slough Borough Council,1162,Care Uk Community Partnership Ltd,M28C,Adult Social Care Operations,Supplies and Services,"2,749.40",Mar-23
Slough Borough Council,1162,Care Uk Community Partnership Ltd,M28C,Adult Social Care Operations,Supplies and Services,"2,062.05",Mar-23
Slough Borough Council,1162,Care Uk Community Partnership Ltd,M28C,Adult Social Care Operations,Supplies and Services,"1,237.23",Mar-23
Slough Borough Council,1910,Carousel Buses Ltd,D512,Place Strategy & Infrastructure,Supplies and Services,"3,892.43",Mar-23
Slough Borough Council,804413,Castle Water,B068,Business Services,Premises,554.57,Mar-23
Slough Borough Council,804413,Castle Water,B068,Business Services,Premises,"1,196.60",Mar-23
Slough Borough Council,804413,Castle Water,C019,Place Operations,Premises,743.12,Mar-23
Slough Borough Council,804413,Castle Water,C019,Place Operations,Premises,943.76,Mar-23
Slough Borough Council,804413,Castle Water,C019,Place Operations,Premises,"4,156.77",Mar-23
Slough Borough Council,804413,Castle Water,C019,Place Operations,Premises,"1,512.59",Mar-23
Slough Borough Council,804413,Castle Water,D900,Place Operations,Premises,"4,552.69",Mar-23
Slough Borough Council,418,Castleview School,E620,Children & Families,Supplies and Services,"39,888.69",Mar-23
Slough Borough Council,1514,Castleview Systems Limited,B068,Business Services,Premises,"1,464.00",Mar-23
Slough Borough Council,803560,Centennial Property Limited T/A Rent Connect,H205,Housing (People) Services,Premises,"38,512.00",Mar-23
Slough Borough Council,805619,Centennial Property Limited T/A The Housing Network,H205,Housing (People) Services,Premises,"46,390.00",Mar-23
Slough Borough Council,3609,Centurion Healthcare Ltd,M26E,Adult Social Care Operations,Supplies and Services,"6,031.67",Mar-23
Slough Borough Council,805174,Certas Energy,D900,Place Operations,Supplies and Services,"24,143.21",Mar-23
Slough Borough Council,2892,Chalfont Lodge,M15D,Adult Social Care Operations,Supplies and Services,"5,978.57",Mar-23
Slough Borough Council,2892,Chalfont Lodge,M15D,Adult Social Care Operations,Supplies and Services,"3,321.43",Mar-23
Slough Borough Council,2892,Chalfont Lodge,M15D,Adult Social Care Operations,Supplies and Services,"3,000.00",Mar-23
Slough Borough Council,2892,Chalfont Lodge,M15D,Adult Social Care Operations,Supplies and Services,"5,400.00",Mar-23
Slough Borough Council,2892,Chalfont Lodge,M15F,Adult Social Care Operations,Supplies and Services,"8,857.14",Mar-23
Slough Borough Council,2892,Chalfont Lodge,M26E,Adult Social Care Operations,Supplies and Services,"5,978.57",Mar-23
Slough Borough Council,2892,Chalfont Lodge,M26E,Adult Social Care Operations,Supplies and Services,"5,785.71",Mar-23
Slough Borough Council,2892,Chalfont Lodge,M26E,Adult Social Care Operations,Supplies and Services,"5,978.57",Mar-23
Slough Borough Council,2892,Chalfont Lodge,M26E,Adult Social Care Operations,Supplies and Services,"5,400.00",Mar-23
Slough Borough Council,2608,Chandos Lodge Nursing Home,M18C,Adult Social Care Operations,Supplies and Services,"3,600.00",Mar-23
Slough Borough Council,2608,Chandos Lodge Nursing Home,M18C,Adult Social Care Operations,Supplies and Services,"3,600.00",Mar-23
Slough Borough Council,806512,Charles Chisangaurwe,A02A,People Adults,Supplies and Services,"1,750.00",Mar-23
Slough Borough Council,806512,Charles Chisangaurwe,A02A,People Adults,Supplies and Services,"2,000.00",Mar-23
Slough Borough Council,805286,Chartered Trading Standards Institute,D303,Place Regulation,Supplies and Services,612.00,Mar-23
Slough Borough Council,808500,Chartwell Care Services,M26E,Adult Social Care Operations,Supplies and Services,"13,021.90",Mar-23
Slough Borough Council,1877,Chelsie Innes,C322,Community,Supplies and Services,"3,934.00",Mar-23
Slough Borough Council,1776,Cherry Tree Day Nursery Limited,F549,Children & Families,Supplies and Services,"4,620.00",Mar-23
Slough Borough Council,3114,Cherry Trees Day Nursery,F909,Children & Families,Supplies and Services,"1,140.00",Mar-23
Slough Borough Council,3114,Cherry Trees Day Nursery,F909,Children & Families,Supplies and Services,"11,543.50",Mar-23
Slough Borough Council,3114,Cherry Trees Day Nursery,F909,Children & Families,Supplies and Services,"28,046.53",Mar-23
Slough Borough Council,2871,Cherry Trees Residential Care,M27F,Adult Social Care Operations,Supplies and Services,"2,600.00",Mar-23
Slough Borough Council,2871,Cherry Trees Residential Care,M42F,Adult Social Care Operations,Supplies and Services,"2,250.00",Mar-23
Slough Borough Council,807225,Chiltern Way Academy,F551,Children & Families,Supplies and Services,"7,382.08",Mar-23
Slough Borough Council,807225,Chiltern Way Academy,F551,Children & Families,Supplies and Services,"1,181.82",Mar-23
Slough Borough Council,808527,Chiron Care (Uk) Limited,M44F,Adult Social Care Operations,Supplies and Services,"2,389.80",Mar-23
Slough Borough Council,808527,Chiron Care (Uk) Limited,M44F,Adult Social Care Operations,Supplies and Services,"1,687.84",Mar-23
Slough Borough Council,808527,Chiron Care (Uk) Limited,M44F,Adult Social Care Operations,Supplies and Services,"2,711.52",Mar-23
Slough Borough Council,808527,Chiron Care (Uk) Limited,M44F,Adult Social Care Operations,Supplies and Services,"4,135.88",Mar-23
Slough Borough Council,808527,Chiron Care (Uk) Limited,M44F,Adult Social Care Operations,Supplies and Services,"1,687.84",Mar-23
Slough Borough Council,808527,Chiron Care (Uk) Limited,M44F,Adult Social Care Operations,Supplies and Services,"1,868.68",Mar-23
Slough Borough Council,803495,Christchurch Court Ltd,M15D,Adult Social Care Operations,Supplies and Services,"9,214.35",Mar-23
Slough Borough Council,803405,Churchmead School,F552,Children & Families,Supplies and Services,"6,901.00",Mar-23
Slough Borough Council,631,Cippenham Primary School,F002,Community,Government Grants,"1,000.00",Mar-23
Slough Borough Council,807491,Cippenham School,E620,Children & Families,Supplies and Services,"13,916.69",Mar-23
Slough Borough Council,806364,City Furniture Hire Ltd,B240,Business Services,Supplies and Services,"4,956.69",Mar-23
Slough Borough Council,806364,City Furniture Hire Ltd,B240,Business Services,Supplies and Services,"-4,956.69",Mar-23
Slough Borough Council,806550,City Homecare Ltd,A07R,Adult Social Care Operations,Supplies and Services,"1,102.50",Mar-23
Slough Borough Council,806550,City Homecare Ltd,A07R,Adult Social Care Operations,Supplies and Services,774.38,Mar-23
Slough Borough Council,806550,City Homecare Ltd,A07R,Adult Social Care Operations,Supplies and Services,"1,102.50",Mar-23
Slough Borough Council,806550,City Homecare Ltd,M44C,Adult Social Care Operations,Supplies and Services,"3,675.00",Mar-23
Slough Borough Council,806550,City Homecare Ltd,M44C,Adult Social Care Operations,Supplies and Services,630.00,Mar-23
Slough Borough Council,806550,City Homecare Ltd,M44C,Adult Social Care Operations,Supplies and Services,"1,960.00",Mar-23
Slough Borough Council,806550,City Homecare Ltd,M44C,Adult Social Care Operations,Supplies and Services,"1,225.00",Mar-23
Slough Borough Council,806550,City Homecare Ltd,M44C,Adult Social Care Operations,Supplies and Services,"1,715.00",Mar-23
Slough Borough Council,806550,City Homecare Ltd,M44C,Adult Social Care Operations,Supplies and Services,"1,960.00",Mar-23
Slough Borough Council,806550,City Homecare Ltd,M44C,Adult Social Care Operations,Supplies and Services,"1,960.00",Mar-23
Slough Borough Council,806550,City Homecare Ltd,M44C,Adult Social Care Operations,Supplies and Services,857.50,Mar-23
Slough Borough Council,806550,City Homecare Ltd,M44C,Adult Social Care Operations,Supplies and Services,"2,345.00",Mar-23
Slough Borough Council,806550,City Homecare Ltd,M44C,Adult Social Care Operations,Supplies and Services,612.50,Mar-23
Slough Borough Council,806550,City Homecare Ltd,M44C,Adult Social Care Operations,Supplies and Services,"1,960.00",Mar-23
Slough Borough Council,806550,City Homecare Ltd,M44C,Adult Social Care Operations,Supplies and Services,"1,102.50",Mar-23
Slough Borough Council,806550,City Homecare Ltd,M44C,Adult Social Care Operations,Supplies and Services,"1,715.00",Mar-23
Slough Borough Council,806550,City Homecare Ltd,M44C,Adult Social Care Operations,Supplies and Services,735.00,Mar-23
Slough Borough Council,806550,City Homecare Ltd,M44C,Adult Social Care Operations,Supplies and Services,717.50,Mar-23
Slough Borough Council,806550,City Homecare Ltd,M44C,Adult Social Care Operations,Supplies and Services,857.50,Mar-23
Slough Borough Council,806550,City Homecare Ltd,M44C,Adult Social Care Operations,Supplies and Services,"2,205.00",Mar-23
Slough Borough Council,806550,City Homecare Ltd,M44C,Adult Social Care Operations,Supplies and Services,980.00,Mar-23
Slough Borough Council,806550,City Homecare Ltd,M44C,Adult Social Care Operations,Supplies and Services,"1,102.50",Mar-23
Slough Borough Council,806550,City Homecare Ltd,M44C,Adult Social Care Operations,Supplies and Services,857.50,Mar-23
Slough Borough Council,806550,City Homecare Ltd,M44C,Adult Social Care Operations,Supplies and Services,892.50,Mar-23
Slough Borough Council,806550,City Homecare Ltd,M44C,Adult Social Care Operations,Supplies and Services,"1,347.50",Mar-23
Slough Borough Council,806550,City Homecare Ltd,M44C,Adult Social Care Operations,Supplies and Services,761.25,Mar-23
Slough Borough Council,806550,City Homecare Ltd,M44C,Adult Social Care Operations,Supplies and Services,529.38,Mar-23
Slough Borough Council,806550,City Homecare Ltd,M44C,Adult Social Care Operations,Supplies and Services,"2,205.00",Mar-23
Slough Borough Council,806550,City Homecare Ltd,M44C,Adult Social Care Operations,Supplies and Services,857.50,Mar-23
Slough Borough Council,806550,City Homecare Ltd,M44C,Adult Social Care Operations,Supplies and Services,"1,102.50",Mar-23
Slough Borough Council,806550,City Homecare Ltd,M44C,Adult Social Care Operations,Supplies and Services,"1,470.00",Mar-23
Slough Borough Council,806550,City Homecare Ltd,M44D,Adult Social Care Operations,Supplies and Services,805.00,Mar-23
Slough Borough Council,806550,City Homecare Ltd,M44D,Adult Social Care Operations,Supplies and Services,717.50,Mar-23
Slough Borough Council,806550,City Homecare Ltd,M44D,Adult Social Care Operations,Supplies and Services,"2,030.00",Mar-23
Slough Borough Council,806550,City Homecare Ltd,M44D,Adult Social Care Operations,Supplies and Services,980.00,Mar-23
Slough Borough Council,806550,City Homecare Ltd,M44D,Adult Social Care Operations,Supplies and Services,857.50,Mar-23
Slough Borough Council,806550,City Homecare Ltd,M44D,Adult Social Care Operations,Supplies and Services,"2,940.00",Mar-23
Slough Borough Council,806550,City Homecare Ltd,M44D,Adult Social Care Operations,Supplies and Services,560.00,Mar-23
Slough Borough Council,806550,City Homecare Ltd,M44D,Adult Social Care Operations,Supplies and Services,980.00,Mar-23
Slough Borough Council,806550,City Homecare Ltd,M44D,Adult Social Care Operations,Supplies and Services,980.00,Mar-23
Slough Borough Council,806550,City Homecare Ltd,M44E,Adult Social Care Operations,Supplies and Services,630.00,Mar-23
Slough Borough Council,806550,City Homecare Ltd,M44F,Adult Social Care Operations,Supplies and Services,840.00,Mar-23
Slough Borough Council,806550,City Homecare Ltd,M44F,Adult Social Care Operations,Supplies and Services,840.00,Mar-23
Slough Borough Council,806550,City Homecare Ltd,M45C,Adult Social Care Operations,Supplies and Services,630.00,Mar-23
Slough Borough Council,806550,City Homecare Ltd,M45C,Adult Social Care Operations,Supplies and Services,787.50,Mar-23
Slough Borough Council,806550,City Homecare Ltd,M45C,Adult Social Care Operations,Supplies and Services,"1,102.50",Mar-23
Slough Borough Council,806550,City Homecare Ltd,M48C,Adult Social Care Operations,Supplies and Services,857.50,Mar-23
Slough Borough Council,806550,City Homecare Ltd,M48C,Adult Social Care Operations,Supplies and Services,577.50,Mar-23
Slough Borough Council,1083,Civica Uk Limited,B246,Governance,Supplies and Services,"17,971.46",Mar-23
Slough Borough Council,1083,Civica Uk Limited,B282,Digital and Strategic IT,Supplies and Services,"46,723.95",Mar-23
Slough Borough Council,1083,Civica Uk Limited,B282,Digital and Strategic IT,Supplies and Services,"217,014.00",Mar-23
Slough Borough Council,1083,Civica Uk Limited,B282,Digital and Strategic IT,Supplies and Services,"16,650.09",Mar-23
Slough Borough Council,1083,Civica Uk Limited,B282,Digital and Strategic IT,Capital Charges,"4,243.33",Mar-23
Slough Borough Council,1083,Civica Uk Limited,B342,Digital and Strategic IT,Supplies and Services,"5,000.00",Mar-23
Slough Borough Council,1083,Civica Uk Limited,H015,Finance & Commercial,Supplies and Services,"11,244.50",Mar-23
Slough Borough Council,1151,Claycots Primary School,E200,Children & Families,Supplies and Services,"846,244.81",Mar-23
Slough Borough Council,3685,Coghlan Lodges Limited,M44D,Adult Social Care Operations,Supplies and Services,"2,116.04",Mar-23
Slough Borough Council,3685,Coghlan Lodges Limited,M44F,Adult Social Care Operations,Supplies and Services,"1,870.00",Mar-23
Slough Borough Council,805823,Collaborative Care Solutions,M42E,Adult Social Care Operations,Supplies and Services,"8,560.00",Mar-23
Slough Borough Council,805823,Collaborative Care Solutions,M42F,Adult Social Care Operations,Supplies and Services,"2,684.00",Mar-23
Slough Borough Council,805823,Collaborative Care Solutions,M42F,Adult Social Care Operations,Supplies and Services,"2,400.00",Mar-23
Slough Borough Council,805823,Collaborative Care Solutions,M44D,Adult Social Care Operations,Supplies and Services,"8,320.00",Mar-23
Slough Borough Council,805823,Collaborative Care Solutions,M44F,Adult Social Care Operations,Supplies and Services,"3,900.00",Mar-23
Slough Borough Council,805823,Collaborative Care Solutions,M44F,Adult Social Care Operations,Supplies and Services,"4,500.00",Mar-23
Slough Borough Council,459,Colliers Cre,J006,Place Management,Supplies and Services,"3,666.67",Mar-23
Slough Borough Council,286,Colnbrook C Of E Primary School,E620,Children & Families,Supplies and Services,"24,001.67",Mar-23
Slough Borough Council,286,Colnbrook C Of E Primary School,F002,Community,Government Grants,"1,000.00",Mar-23
Slough Borough Council,2535,Comfort Care Services,M42E,Adult Social Care Operations,Supplies and Services,"1,538.88",Mar-23
Slough Borough Council,2535,Comfort Care Services,M42E,Adult Social Care Operations,Supplies and Services,"5,114.92",Mar-23
Slough Borough Council,2535,Comfort Care Services,M42E,Adult Social Care Operations,Supplies and Services,775.00,Mar-23
Slough Borough Council,2535,Comfort Care Services,M42E,Adult Social Care Operations,Supplies and Services,"2,325.00",Mar-23
Slough Borough Council,2535,Comfort Care Services,M42E,Adult Social Care Operations,Supplies and Services,"2,635.00",Mar-23
Slough Borough Council,2535,Comfort Care Services,M42E,Adult Social Care Operations,Supplies and Services,"2,564.81",Mar-23
Slough Borough Council,2535,Comfort Care Services,M42E,Adult Social Care Operations,Supplies and Services,"2,448.20",Mar-23
Slough Borough Council,2535,Comfort Care Services,M42E,Adult Social Care Operations,Supplies and Services,932.66,Mar-23
Slough Borough Council,2535,Comfort Care Services,M42E,Adult Social Care Operations,Supplies and Services,"1,165.82",Mar-23
Slough Borough Council,2535,Comfort Care Services,M42E,Adult Social Care Operations,Supplies and Services,"1,165.82",Mar-23
Slough Borough Council,2535,Comfort Care Services,M42E,Adult Social Care Operations,Supplies and Services,"4,619.92",Mar-23
Slough Borough Council,2535,Comfort Care Services,M42F,Adult Social Care Operations,Supplies and Services,"3,893.82",Mar-23
Slough Borough Council,2535,Comfort Care Services,M42F,Adult Social Care Operations,Supplies and Services,"1,749.29",Mar-23
Slough Borough Council,2535,Comfort Care Services,M42F,Adult Social Care Operations,Supplies and Services,"3,474.21",Mar-23
Slough Borough Council,2535,Comfort Care Services,M42F,Adult Social Care Operations,Supplies and Services,"2,635.00",Mar-23
Slough Borough Council,2535,Comfort Care Services,M42F,Adult Social Care Operations,Supplies and Services,839.21,Mar-23
Slough Borough Council,2535,Comfort Care Services,M42F,Adult Social Care Operations,Supplies and Services,"1,007.06",Mar-23
Slough Borough Council,2535,Comfort Care Services,M42F,Adult Social Care Operations,Supplies and Services,"1,477.99",Mar-23
Slough Borough Council,2535,Comfort Care Services,M42F,Adult Social Care Operations,Supplies and Services,"2,635.00",Mar-23
Slough Borough Council,2535,Comfort Care Services,M42F,Adult Social Care Operations,Supplies and Services,758.00,Mar-23
Slough Borough Council,2535,Comfort Care Services,M42F,Adult Social Care Operations,Supplies and Services,"2,550.00",Mar-23
Slough Borough Council,2535,Comfort Care Services,M42F,Adult Social Care Operations,Supplies and Services,"-2,550.00",Mar-23
Slough Borough Council,2535,Comfort Care Services,M42F,Adult Social Care Operations,Supplies and Services,"1,300.80",Mar-23
Slough Borough Council,2535,Comfort Care Services,M42F,Adult Social Care Operations,Supplies and Services,839.21,Mar-23
Slough Borough Council,2535,Comfort Care Services,M42F,Adult Social Care Operations,Supplies and Services,839.21,Mar-23
Slough Borough Council,2535,Comfort Care Services,M42F,Adult Social Care Operations,Supplies and Services,839.21,Mar-23
Slough Borough Council,2535,Comfort Care Services,M42F,Adult Social Care Operations,Supplies and Services,"1,632.15",Mar-23
Slough Borough Council,2535,Comfort Care Services,M42F,Adult Social Care Operations,Supplies and Services,"2,635.00",Mar-23
Slough Borough Council,2535,Comfort Care Services,M42F,Adult Social Care Operations,Supplies and Services,"2,635.00",Mar-23
Slough Borough Council,2535,Comfort Care Services,M44E,Adult Social Care Operations,Supplies and Services,"4,461.56",Mar-23
Slough Borough Council,2535,Comfort Care Services,M44E,Adult Social Care Operations,Supplies and Services,"2,141.66",Mar-23
Slough Borough Council,2535,Comfort Care Services,M44F,Adult Social Care Operations,Supplies and Services,"1,317.50",Mar-23
Slough Borough Council,2535,Comfort Care Services,M44F,Adult Social Care Operations,Supplies and Services,"1,317.50",Mar-23
Slough Borough Council,2535,Comfort Care Services,M44F,Adult Social Care Operations,Supplies and Services,"2,937.87",Mar-23
Slough Borough Council,2535,Comfort Care Services,M44F,Adult Social Care Operations,Supplies and Services,"2,937.87",Mar-23
Slough Borough Council,2535,Comfort Care Services,M44F,Adult Social Care Operations,Supplies and Services,"2,937.87",Mar-23
Slough Borough Council,2535,Comfort Care Services,M44F,Adult Social Care Operations,Supplies and Services,929.11,Mar-23
Slough Borough Council,2535,Comfort Care Services,M44F,Adult Social Care Operations,Supplies and Services,"2,635.00",Mar-23
Slough Borough Council,2535,Comfort Care Services,M44F,Adult Social Care Operations,Supplies and Services,"3,310.93",Mar-23
Slough Borough Council,2535,Comfort Care Services,M44F,Adult Social Care Operations,Supplies and Services,"1,888.26",Mar-23
Slough Borough Council,2535,Comfort Care Services,M44F,Adult Social Care Operations,Supplies and Services,"1,426.78",Mar-23
Slough Borough Council,2535,Comfort Care Services,M44F,Adult Social Care Operations,Supplies and Services,"2,937.87",Mar-23
Slough Borough Council,2535,Comfort Care Services,M44F,Adult Social Care Operations,Supplies and Services,"1,165.82",Mar-23
Slough Borough Council,2535,Comfort Care Services,M44F,Adult Social Care Operations,Supplies and Services,"3,474.21",Mar-23
Slough Borough Council,2535,Comfort Care Services,M44F,Adult Social Care Operations,Supplies and Services,"2,337.84",Mar-23
Slough Borough Council,2535,Comfort Care Services,M44F,Adult Social Care Operations,Supplies and Services,"2,558.79",Mar-23
Slough Borough Council,2535,Comfort Care Services,M44F,Adult Social Care Operations,Supplies and Services,"1,426.78",Mar-23
Slough Borough Council,2535,Comfort Care Services,M44F,Adult Social Care Operations,Supplies and Services,"1,579.65",Mar-23
Slough Borough Council,2535,Comfort Care Services,M81D,Adult Social Care Operations,Supplies and Services,"2,635.00",Mar-23
Slough Borough Council,2585,Comitted Care Services Limited,M26E,Adult Social Care Operations,Supplies and Services,"1,488.00",Mar-23
Slough Borough Council,2585,Comitted Care Services Limited,M26E,Adult Social Care Operations,Supplies and Services,"1,615.01",Mar-23
Slough Borough Council,2585,Comitted Care Services Limited,M26E,Adult Social Care Operations,Supplies and Services,"6,050.74",Mar-23
Slough Borough Council,2585,Comitted Care Services Limited,M26E,Adult Social Care Operations,Supplies and Services,"6,308.77",Mar-23
Slough Borough Council,2585,Comitted Care Services Limited,M26E,Adult Social Care Operations,Supplies and Services,"6,572.27",Mar-23
Slough Borough Council,2585,Comitted Care Services Limited,M42E,Adult Social Care Operations,Supplies and Services,"2,339.08",Mar-23
Slough Borough Council,2585,Comitted Care Services Limited,M42E,Adult Social Care Operations,Supplies and Services,"2,198.21",Mar-23
Slough Borough Council,804912,CommuniKate Ltd,M22D,Adult Social Care Operations,Supplies and Services,914.10,Mar-23
Slough Borough Council,804912,CommuniKate Ltd,M22D,Adult Social Care Operations,Supplies and Services,761.75,Mar-23
Slough Borough Council,804912,CommuniKate Ltd,M22D,Adult Social Care Operations,Supplies and Services,"1,211.75",Mar-23
Slough Borough Council,804912,CommuniKate Ltd,M22D,Adult Social Care Operations,Supplies and Services,761.75,Mar-23
Slough Borough Council,804912,CommuniKate Ltd,M22D,Adult Social Care Operations,Supplies and Services,711.00,Mar-23
Slough Borough Council,804912,CommuniKate Ltd,M22D,Adult Social Care Operations,Supplies and Services,761.75,Mar-23
Slough Borough Council,804912,CommuniKate Ltd,M22D,Adult Social Care Operations,Supplies and Services,-711.00,Mar-23
Slough Borough Council,804912,CommuniKate Ltd,M22D,Adult Social Care Operations,Supplies and Services,"1,211.75",Mar-23
Slough Borough Council,804912,CommuniKate Ltd,M22D,Adult Social Care Operations,Supplies and Services,"1,211.75",Mar-23
Slough Borough Council,804912,CommuniKate Ltd,M22D,Adult Social Care Operations,Supplies and Services,"1,211.75",Mar-23
Slough Borough Council,804912,CommuniKate Ltd,M22D,Adult Social Care Operations,Supplies and Services,"1,211.75",Mar-23
Slough Borough Council,1772,Computershare Voucher Services,B348,People,Supplies and Services,"1,949.27",Mar-23
Slough Borough Council,807468,"Connect Managed Services (UK) Ltd, trading as Conn3ct",A106,Customer Services,Supplies and Services,"1,892.46",Mar-23
Slough Borough Council,807468,"Connect Managed Services (UK) Ltd, trading as Conn3ct",A106,Customer Services,Supplies and Services,"1,900.95",Mar-23
Slough Borough Council,807468,"Connect Managed Services (UK) Ltd, trading as Conn3ct",A106,Customer Services,Supplies and Services,"1,700.26",Mar-23
Slough Borough Council,807468,"Connect Managed Services (UK) Ltd, trading as Conn3ct",A106,Customer Services,Supplies and Services,"2,093.99",Mar-23
Slough Borough Council,1480,Corona Energy Limited,K526,Business Services,Premises,"44,313.21",Mar-23
Slough Borough Council,1480,Corona Energy Limited,K526,Business Services,Premises,"1,424.98",Mar-23
Slough Borough Council,1480,Corona Energy Limited,K526,Business Services,Premises,"39,715.89",Mar-23
Slough Borough Council,1480,Corona Energy Limited,K526,Business Services,Premises,"1,270.85",Mar-23
Slough Borough Council,1480,Corona Energy Limited,K526,Business Services,Premises,"58,770.88",Mar-23
Slough Borough Council,1480,Corona Energy Limited,K526,Business Services,Premises,"50,929.26",Mar-23
Slough Borough Council,1480,Corona Energy Limited,K526,Business Services,Premises,"55,006.74",Mar-23
Slough Borough Council,1480,Corona Energy Limited,K526,Business Services,Premises,"43,306.65",Mar-23
Slough Borough Council,3290,Corporate Collections London Borough Of Hillingdon,M26E,Adult Social Care Operations,Supplies and Services,"1,632.40",Mar-23
Slough Borough Council,3290,Corporate Collections London Borough Of Hillingdon,M26E,Adult Social Care Operations,Supplies and Services,"1,632.40",Mar-23
Slough Borough Council,3290,Corporate Collections London Borough Of Hillingdon,M26E,Adult Social Care Operations,Supplies and Services,"1,632.40",Mar-23
Slough Borough Council,3290,Corporate Collections London Borough Of Hillingdon,M26E,Adult Social Care Operations,Supplies and Services,"1,632.40",Mar-23
Slough Borough Council,805278,Countrystyle Recycling Ltd,D342,Place Operations,Supplies and Services,"4,985.40",Mar-23
Slough Borough Council,805278,Countrystyle Recycling Ltd,D342,Place Operations,Supplies and Services,"2,525.00",Mar-23
Slough Borough Council,808737,COUNTY PRIVATE CLIENT LIMITED,H205,Housing (People) Services,Supplies and Services,"26,360.00",Mar-23
Slough Borough Council,251,Cox Green School,F552,Children & Families,Supplies and Services,"7,744.00",Mar-23
Slough Borough Council,251,Cox Green School,F552,Children & Families,Supplies and Services,"30,000.00",Mar-23
Slough Borough Council,251,Cox Green School,F552,Children & Families,Supplies and Services,"4,646.00",Mar-23
Slough Borough Council,3670,Craegmoor Birches Grove Priory,M27F,Adult Social Care Operations,Supplies and Services,"4,089.40",Mar-23
Slough Borough Council,3670,Craegmoor Birches Grove Priory,M27F,Adult Social Care Operations,Supplies and Services,"2,122.92",Mar-23
Slough Borough Council,1638,Creative Support Ltd,A02L,Adult Social Care Operations,Supplies and Services,"1,065.60",Mar-23
Slough Borough Council,1638,Creative Support Ltd,A02L,Adult Social Care Operations,Supplies and Services,"1,365.30",Mar-23
Slough Borough Council,1638,Creative Support Ltd,A02L,Adult Social Care Operations,Supplies and Services,"1,431.90",Mar-23
Slough Borough Council,1638,Creative Support Ltd,A02L,Adult Social Care Operations,Supplies and Services,"1,565.10",Mar-23
Slough Borough Council,1638,Creative Support Ltd,A02L,Adult Social Care Operations,Supplies and Services,"1,165.50",Mar-23
Slough Borough Council,1638,Creative Support Ltd,A02L,Adult Social Care Operations,Supplies and Services,"1,431.90",Mar-23
Slough Borough Council,1638,Creative Support Ltd,A02L,Adult Social Care Operations,Supplies and Services,"1,565.10",Mar-23
Slough Borough Council,1638,Creative Support Ltd,A02L,Adult Social Care Operations,Supplies and Services,"1,165.50",Mar-23
Slough Borough Council,1638,Creative Support Ltd,M42E,Adult Social Care Operations,Supplies and Services,"2,021.04",Mar-23
Slough Borough Council,1638,Creative Support Ltd,M42E,Adult Social Care Operations,Supplies and Services,"2,021.04",Mar-23
Slough Borough Council,1638,Creative Support Ltd,M42E,Adult Social Care Operations,Supplies and Services,"6,993.00",Mar-23
Slough Borough Council,1638,Creative Support Ltd,M42E,Adult Social Care Operations,Supplies and Services,"2,021.04",Mar-23
Slough Borough Council,1638,Creative Support Ltd,M42E,Adult Social Care Operations,Supplies and Services,"6,993.00",Mar-23
Slough Borough Council,1638,Creative Support Ltd,M42E,Adult Social Care Operations,Supplies and Services,"2,021.04",Mar-23
Slough Borough Council,1638,Creative Support Ltd,M42E,Adult Social Care Operations,Supplies and Services,"6,993.00",Mar-23
Slough Borough Council,1638,Creative Support Ltd,M42E,Adult Social Care Operations,Supplies and Services,"2,021.04",Mar-23
Slough Borough Council,1638,Creative Support Ltd,M42E,Adult Social Care Operations,Supplies and Services,"6,993.00",Mar-23
Slough Borough Council,1638,Creative Support Ltd,M42E,Adult Social Care Operations,Supplies and Services,"6,993.00",Mar-23
Slough Borough Council,1638,Creative Support Ltd,M42E,Adult Social Care Operations,Supplies and Services,"6,993.00",Mar-23
Slough Borough Council,1638,Creative Support Ltd,M42E,Adult Social Care Operations,Supplies and Services,"6,993.00",Mar-23
Slough Borough Council,1638,Creative Support Ltd,M42E,Adult Social Care Operations,Supplies and Services,"2,021.04",Mar-23
Slough Borough Council,1638,Creative Support Ltd,M42E,Adult Social Care Operations,Supplies and Services,"2,021.04",Mar-23
Slough Borough Council,1638,Creative Support Ltd,M42E,Adult Social Care Operations,Supplies and Services,"6,993.00",Mar-23
Slough Borough Council,1638,Creative Support Ltd,M42E,Adult Social Care Operations,Supplies and Services,"2,214.45",Mar-23
Slough Borough Council,1638,Creative Support Ltd,M42E,Adult Social Care Operations,Supplies and Services,"3,013.65",Mar-23
Slough Borough Council,1638,Creative Support Ltd,M42E,Adult Social Care Operations,Supplies and Services,"2,021.04",Mar-23
Slough Borough Council,1638,Creative Support Ltd,M42E,Adult Social Care Operations,Supplies and Services,"6,993.00",Mar-23
Slough Borough Council,1638,Creative Support Ltd,M42E,Adult Social Care Operations,Supplies and Services,"2,021.04",Mar-23
Slough Borough Council,1638,Creative Support Ltd,M42E,Adult Social Care Operations,Supplies and Services,"6,993.00",Mar-23
Slough Borough Council,1638,Creative Support Ltd,M42E,Adult Social Care Operations,Supplies and Services,"2,021.04",Mar-23
Slough Borough Council,1638,Creative Support Ltd,M42E,Adult Social Care Operations,Supplies and Services,"6,993.00",Mar-23
Slough Borough Council,1638,Creative Support Ltd,M42E,Adult Social Care Operations,Supplies and Services,"6,993.00",Mar-23
Slough Borough Council,1638,Creative Support Ltd,M42E,Adult Social Care Operations,Supplies and Services,"2,021.04",Mar-23
Slough Borough Council,1638,Creative Support Ltd,M42E,Adult Social Care Operations,Supplies and Services,"2,021.04",Mar-23
Slough Borough Council,1638,Creative Support Ltd,M42E,Adult Social Care Operations,Supplies and Services,"6,993.00",Mar-23
Slough Borough Council,1638,Creative Support Ltd,M42E,Adult Social Care Operations,Supplies and Services,"2,021.04",Mar-23
Slough Borough Council,1638,Creative Support Ltd,M42E,Adult Social Care Operations,Supplies and Services,"6,993.00",Mar-23
Slough Borough Council,1638,Creative Support Ltd,M42E,Adult Social Care Operations,Supplies and Services,"2,021.04",Mar-23
Slough Borough Council,1638,Creative Support Ltd,M42E,Adult Social Care Operations,Supplies and Services,"1,198.80",Mar-23
Slough Borough Council,1638,Creative Support Ltd,M44E,Adult Social Care Operations,Supplies and Services,"1,465.20",Mar-23
Slough Borough Council,1638,Creative Support Ltd,M44E,Adult Social Care Operations,Supplies and Services,699.30,Mar-23
Slough Borough Council,1638,Creative Support Ltd,M44E,Adult Social Care Operations,Supplies and Services,999.00,Mar-23
Slough Borough Council,1638,Creative Support Ltd,M44E,Adult Social Care Operations,Supplies and Services,932.40,Mar-23
Slough Borough Council,806983,Critiqom,H020,Finance & Commercial,Supplies and Services,"3,000.00",Mar-23
Slough Borough Council,806983,Critiqom,H020,Finance & Commercial,Supplies and Services,565.02,Mar-23
Slough Borough Council,806983,Critiqom,H020,Finance & Commercial,Supplies and Services,"2,972.73",Mar-23
Slough Borough Council,806983,Critiqom,H020,Finance & Commercial,Supplies and Services,750.26,Mar-23
Slough Borough Council,806983,Critiqom,H020,Finance & Commercial,Supplies and Services,631.70,Mar-23
Slough Borough Council,808383,Croft Brothers UK Limited,M50A,Place Operations,Transport,585.13,Mar-23
Slough Borough Council,806063,Cruise Minibuses Ltd,F123,Education & Inclusion,Supplies and Services,"6,205.50",Mar-23
Slough Borough Council,806063,Cruise Minibuses Ltd,F123,Education & Inclusion,Supplies and Services,"3,983.00",Mar-23
Slough Borough Council,806900,CYXTERA TECHNOLOGY UK LIMITED,B282,Digital and Strategic IT,Supplies and Services,"20,191.50",Mar-23
Slough Borough Council,808775,Danescroft Consultants Ltd,A01D,People Adults,Agency Staff,"12,600.00",Mar-23
Slough Borough Council,1897,Datchet St.Marys C Of E Academy,F552,Children & Families,Supplies and Services,"1,859.00",Mar-23
Slough Borough Council,807288,David Allwood,C322,Community,Supplies and Services,"1,676.50",Mar-23
Slough Borough Council,636,David John (Papers) Ltd,K059,Business Services,Supplies and Services,598.90,Mar-23
Slough Borough Council,807440,David Peplow,A04A,People Adults,Supplies and Services,"1,460.00",Mar-23
Slough Borough Council,2068,Dds Demolition,B490,Finance & Commercial,Premises,"2,711.74",Mar-23
Slough Borough Council,2068,Dds Demolition,B490,Finance & Commercial,Premises,"7,513.82",Mar-23
Slough Borough Council,2068,Dds Demolition,B490,Finance & Commercial,Premises,"2,711.74",Mar-23
Slough Borough Council,2068,Dds Demolition,P242,Capital,Capital Charges,"140,833.00",Mar-23
Slough Borough Council,453,Dell Corporation Ltd,B282,Digital and Strategic IT,Supplies and Services,"1,729.50",Mar-23
Slough Borough Council,808612,Delta 4 Services Ltd,B377,Finance & Commercial,Supplies and Services,"5,000.00",Mar-23
Slough Borough Council,3554,Dimensions (Uk) Ltd,M42E,Adult Social Care Operations,Supplies and Services,"5,282.96",Mar-23
Slough Borough Council,3554,Dimensions (Uk) Ltd,M42E,Adult Social Care Operations,Supplies and Services,"5,855.44",Mar-23
Slough Borough Council,3554,Dimensions (Uk) Ltd,M42E,Adult Social Care Operations,Supplies and Services,"7,080.96",Mar-23
Slough Borough Council,3554,Dimensions (Uk) Ltd,M42E,Adult Social Care Operations,Supplies and Services,"6,765.04",Mar-23
Slough Borough Council,3554,Dimensions (Uk) Ltd,M42E,Adult Social Care Operations,Supplies and Services,"6,586.16",Mar-23
Slough Borough Council,3554,Dimensions (Uk) Ltd,M42E,Adult Social Care Operations,Supplies and Services,"5,523.80",Mar-23
Slough Borough Council,3554,Dimensions (Uk) Ltd,M42E,Adult Social Care Operations,Supplies and Services,"7,030.68",Mar-23
Slough Borough Council,3554,Dimensions (Uk) Ltd,M42E,Adult Social Care Operations,Supplies and Services,"6,755.44",Mar-23
Slough Borough Council,3554,Dimensions (Uk) Ltd,M42E,Adult Social Care Operations,Supplies and Services,"5,556.36",Mar-23
Slough Borough Council,805483,Direct Tyre Managenent Ltd,D610,Place Operations,Transport,"3,134.46",Mar-23
Slough Borough Council,805483,Direct Tyre Managenent Ltd,D620,Place Operations,Transport,"2,227.10",Mar-23
Slough Borough Council,805483,Direct Tyre Managenent Ltd,D630,Place Operations,Transport,"1,817.56",Mar-23
Slough Borough Council,803306,Ditton Park Academy,E620,Children & Families,Supplies and Services,"32,250.00",Mar-23
Slough Borough Council,1457,Dr Norman Gordon,D320,Place Operations,Premises,"2,295.23",Mar-23
Slough Borough Council,1517,Dr Patrick Purcell,A02A,People Adults,Supplies and Services,"1,458.05",Mar-23
Slough Borough Council,1517,Dr Patrick Purcell,A02A,People Adults,Supplies and Services,742.01,Mar-23
Slough Borough Council,804938,Dr Umarjit Singh Bedi,A02A,People Adults,Supplies and Services,900.00,Mar-23
Slough Borough Council,803177,Early Steps Preschool,F909,Children & Families,Supplies and Services,"7,975.45",Mar-23
Slough Borough Council,804579,East of England Trading Standards Association Limited,D303,Place Regulation,Supplies and Services,"2,093.00",Mar-23
Slough Borough Council,803301,Eden Girls School,E610,Children & Families,Supplies and Services,"3,108.33",Mar-23
Slough Borough Council,1299,Edf Energy,D413,Place Strategy & Infrastructure,Supplies and Services,"96,909.88",Mar-23
Slough Borough Council,1299,Edf Energy,D413,Place Strategy & Infrastructure,Supplies and Services,"-105,674.04",Mar-23
Slough Borough Council,1299,Edf Energy,D413,Place Strategy & Infrastructure,Supplies and Services,"88,419.36",Mar-23
Slough Borough Council,1299,Edf Energy,D413,Place Strategy & Infrastructure,Supplies and Services,"103,562.97",Mar-23
Slough Borough Council,1299,Edf Energy,K526,Business Services,Premises,675.88,Mar-23
Slough Borough Council,1299,Edf Energy,K526,Business Services,Premises,"8,636.80",Mar-23
Slough Borough Council,1299,Edf Energy,K526,Business Services,Premises,"141,473.11",Mar-23
Slough Borough Council,1299,Edf Energy,K526,Business Services,Premises,"39,130.41",Mar-23
Slough Borough Council,1299,Edf Energy,K526,Business Services,Premises,"109,267.84",Mar-23
Slough Borough Council,1299,Edf Energy,K526,Business Services,Premises,"32,823.98",Mar-23
Slough Borough Council,807001,Elegant Care Services Ltd,M42E,Adult Social Care Operations,Supplies and Services,"6,993.55",Mar-23
Slough Borough Council,807001,Elegant Care Services Ltd,M42E,Adult Social Care Operations,Supplies and Services,"5,987.42",Mar-23
Slough Borough Council,807001,Elegant Care Services Ltd,M42E,Adult Social Care Operations,Supplies and Services,"10,185.71",Mar-23
Slough Borough Council,807001,Elegant Care Services Ltd,M42E,Adult Social Care Operations,Supplies and Services,"6,217.71",Mar-23
Slough Borough Council,807001,Elegant Care Services Ltd,M44C,Adult Social Care Operations,Supplies and Services,"7,023.71",Mar-23
Slough Borough Council,806355,Elysium Healthcare,M26E,Adult Social Care Operations,Supplies and Services,"9,975.84",Mar-23
Slough Borough Council,806355,Elysium Healthcare,M26E,Adult Social Care Operations,Supplies and Services,"8,649.76",Mar-23
Slough Borough Council,3752,Endurance Health,A07R,Adult Social Care Operations,Supplies and Services,"2,260.14",Mar-23
Slough Borough Council,3752,Endurance Health,A07R,Adult Social Care Operations,Supplies and Services,"1,002.26",Mar-23
Slough Borough Council,3752,Endurance Health,A07R,Adult Social Care Operations,Supplies and Services,589.67,Mar-23
Slough Borough Council,3752,Endurance Health,M44C,Adult Social Care Operations,Supplies and Services,"1,124.55",Mar-23
Slough Borough Council,3752,Endurance Health,M44C,Adult Social Care Operations,Supplies and Services,606.90,Mar-23
Slough Borough Council,3752,Endurance Health,M44C,Adult Social Care Operations,Supplies and Services,"2,998.80",Mar-23
Slough Borough Council,3752,Endurance Health,M44C,Adult Social Care Operations,Supplies and Services,"1,124.55",Mar-23
Slough Borough Council,3752,Endurance Health,M44C,Adult Social Care Operations,Supplies and Services,"2,249.10",Mar-23
Slough Borough Council,3752,Endurance Health,M44C,Adult Social Care Operations,Supplies and Services,785.40,Mar-23
Slough Borough Council,3752,Endurance Health,M44C,Adult Social Care Operations,Supplies and Services,624.75,Mar-23
Slough Borough Council,3752,Endurance Health,M44C,Adult Social Care Operations,Supplies and Services,784.82,Mar-23
Slough Borough Council,3752,Endurance Health,M44C,Adult Social Care Operations,Supplies and Services,"1,135.88",Mar-23
Slough Borough Council,3752,Endurance Health,M44C,Adult Social Care Operations,Supplies and Services,"2,249.10",Mar-23
Slough Borough Council,3752,Endurance Health,M44C,Adult Social Care Operations,Supplies and Services,571.20,Mar-23
Slough Borough Council,3752,Endurance Health,M44C,Adult Social Care Operations,Supplies and Services,920.97,Mar-23
Slough Borough Council,3752,Endurance Health,M44C,Adult Social Care Operations,Supplies and Services,999.60,Mar-23
Slough Borough Council,3752,Endurance Health,M44C,Adult Social Care Operations,Supplies and Services,"1,124.55",Mar-23
Slough Borough Council,3752,Endurance Health,M44C,Adult Social Care Operations,Supplies and Services,"1,267.35",Mar-23
Slough Borough Council,3752,Endurance Health,M44C,Adult Social Care Operations,Supplies and Services,874.65,Mar-23
Slough Borough Council,3752,Endurance Health,M44C,Adult Social Care Operations,Supplies and Services,874.65,Mar-23
Slough Borough Council,3752,Endurance Health,M44C,Adult Social Care Operations,Supplies and Services,696.15,Mar-23
Slough Borough Council,3752,Endurance Health,M44C,Adult Social Care Operations,Supplies and Services,"1,749.30",Mar-23
Slough Borough Council,3752,Endurance Health,M44C,Adult Social Care Operations,Supplies and Services,"1,499.40",Mar-23
Slough Borough Council,3752,Endurance Health,M44C,Adult Social Care Operations,Supplies and Services,999.60,Mar-23
Slough Borough Council,3752,Endurance Health,M44C,Adult Social Care Operations,Supplies and Services,"1,124.55",Mar-23
Slough Borough Council,3752,Endurance Health,M44C,Adult Social Care Operations,Supplies and Services,"1,249.50",Mar-23
Slough Borough Council,3752,Endurance Health,M44C,Adult Social Care Operations,Supplies and Services,"1,124.55",Mar-23
Slough Borough Council,3752,Endurance Health,M44C,Adult Social Care Operations,Supplies and Services,713.99,Mar-23
Slough Borough Council,3752,Endurance Health,M44C,Adult Social Care Operations,Supplies and Services,946.05,Mar-23
Slough Borough Council,3752,Endurance Health,M44C,Adult Social Care Operations,Supplies and Services,"1,749.30",Mar-23
Slough Borough Council,3752,Endurance Health,M44C,Adult Social Care Operations,Supplies and Services,769.05,Mar-23
Slough Borough Council,3752,Endurance Health,M44C,Adult Social Care Operations,Supplies and Services,606.90,Mar-23
Slough Borough Council,3752,Endurance Health,M44C,Adult Social Care Operations,Supplies and Services,"2,998.80",Mar-23
Slough Borough Council,3752,Endurance Health,M44C,Adult Social Care Operations,Supplies and Services,"1,111.17",Mar-23
Slough Borough Council,3752,Endurance Health,M44C,Adult Social Care Operations,Supplies and Services,"2,249.10",Mar-23
Slough Borough Council,3752,Endurance Health,M44C,Adult Social Care Operations,Supplies and Services,571.20,Mar-23
Slough Borough Council,3752,Endurance Health,M44C,Adult Social Care Operations,Supplies and Services,"1,124.55",Mar-23
Slough Borough Council,3752,Endurance Health,M44C,Adult Social Care Operations,Supplies and Services,"1,267.35",Mar-23
Slough Borough Council,3752,Endurance Health,M44C,Adult Social Care Operations,Supplies and Services,874.65,Mar-23
Slough Borough Council,3752,Endurance Health,M44C,Adult Social Care Operations,Supplies and Services,"1,124.55",Mar-23
Slough Borough Council,3752,Endurance Health,M44C,Adult Social Care Operations,Supplies and Services,"2,249.10",Mar-23
Slough Borough Council,3752,Endurance Health,M44C,Adult Social Care Operations,Supplies and Services,785.40,Mar-23
Slough Borough Council,3752,Endurance Health,M44C,Adult Social Care Operations,Supplies and Services,581.25,Mar-23
Slough Borough Council,3752,Endurance Health,M44C,Adult Social Care Operations,Supplies and Services,874.65,Mar-23
Slough Borough Council,3752,Endurance Health,M44C,Adult Social Care Operations,Supplies and Services,696.15,Mar-23
Slough Borough Council,3752,Endurance Health,M44C,Adult Social Care Operations,Supplies and Services,"1,749.30",Mar-23
Slough Borough Council,3752,Endurance Health,M44C,Adult Social Care Operations,Supplies and Services,625.66,Mar-23
Slough Borough Council,3752,Endurance Health,M44C,Adult Social Care Operations,Supplies and Services,"1,499.40",Mar-23
Slough Borough Council,3752,Endurance Health,M44C,Adult Social Care Operations,Supplies and Services,999.60,Mar-23
Slough Borough Council,3752,Endurance Health,M44C,Adult Social Care Operations,Supplies and Services,"1,062.32",Mar-23
Slough Borough Council,3752,Endurance Health,M44C,Adult Social Care Operations,Supplies and Services,"1,075.47",Mar-23
Slough Borough Council,3752,Endurance Health,M44C,Adult Social Care Operations,Supplies and Services,"1,103.04",Mar-23
Slough Borough Council,3752,Endurance Health,M44C,Adult Social Care Operations,Supplies and Services,624.75,Mar-23
Slough Borough Council,3752,Endurance Health,M44C,Adult Social Care Operations,Supplies and Services,"1,249.50",Mar-23
Slough Borough Council,3752,Endurance Health,M44C,Adult Social Care Operations,Supplies and Services,872.08,Mar-23
Slough Borough Council,3752,Endurance Health,M44C,Adult Social Care Operations,Supplies and Services,862.03,Mar-23
Slough Borough Council,3752,Endurance Health,M44C,Adult Social Care Operations,Supplies and Services,946.05,Mar-23
Slough Borough Council,3752,Endurance Health,M44C,Adult Social Care Operations,Supplies and Services,"1,749.30",Mar-23
Slough Borough Council,3752,Endurance Health,M44C,Adult Social Care Operations,Supplies and Services,"1,124.55",Mar-23
Slough Borough Council,3752,Endurance Health,M44C,Adult Social Care Operations,Supplies and Services,517.96,Mar-23
Slough Borough Council,3752,Endurance Health,M44C,Adult Social Care Operations,Supplies and Services,874.65,Mar-23
Slough Borough Council,3752,Endurance Health,M44C,Adult Social Care Operations,Supplies and Services,999.60,Mar-23
Slough Borough Council,3752,Endurance Health,M44C,Adult Social Care Operations,Supplies and Services,544.44,Mar-23
Slough Borough Council,3752,Endurance Health,M44C,Adult Social Care Operations,Supplies and Services,"1,008.54",Mar-23
Slough Borough Council,3752,Endurance Health,M44D,Adult Social Care Operations,Supplies and Services,"1,124.55",Mar-23
Slough Borough Council,3752,Endurance Health,M44D,Adult Social Care Operations,Supplies and Services,"2,499.00",Mar-23
Slough Borough Council,3752,Endurance Health,M44D,Adult Social Care Operations,Supplies and Services,853.80,Mar-23
Slough Borough Council,3752,Endurance Health,M44D,Adult Social Care Operations,Supplies and Services,"1,178.10",Mar-23
Slough Borough Council,3752,Endurance Health,M44D,Adult Social Care Operations,Supplies and Services,"1,749.30",Mar-23
Slough Borough Council,3752,Endurance Health,M44D,Adult Social Care Operations,Supplies and Services,847.59,Mar-23
Slough Borough Council,3752,Endurance Health,M44D,Adult Social Care Operations,Supplies and Services,"1,117.71",Mar-23
Slough Borough Council,3752,Endurance Health,M44D,Adult Social Care Operations,Supplies and Services,"1,124.55",Mar-23
Slough Borough Council,3752,Endurance Health,M44D,Adult Social Care Operations,Supplies and Services,"2,499.00",Mar-23
Slough Borough Council,3752,Endurance Health,M44D,Adult Social Care Operations,Supplies and Services,"1,749.30",Mar-23
Slough Borough Council,3752,Endurance Health,M44F,Adult Social Care Operations,Supplies and Services,558.11,Mar-23
Slough Borough Council,3752,Endurance Health,M45C,Adult Social Care Operations,Supplies and Services,"2,249.10",Mar-23
Slough Borough Council,3752,Endurance Health,M45C,Adult Social Care Operations,Supplies and Services,"1,040.37",Mar-23
Slough Borough Council,3752,Endurance Health,M45C,Adult Social Care Operations,Supplies and Services,666.41,Mar-23
Slough Borough Council,3752,Endurance Health,M45C,Adult Social Care Operations,Supplies and Services,"2,298.52",Mar-23
Slough Borough Council,3752,Endurance Health,M45C,Adult Social Care Operations,Supplies and Services,807.71,Mar-23
Slough Borough Council,3752,Endurance Health,M45C,Adult Social Care Operations,Supplies and Services,883.00,Mar-23
Slough Borough Council,3752,Endurance Health,M48C,Adult Social Care Operations,Supplies and Services,874.65,Mar-23
Slough Borough Council,3752,Endurance Health,M48C,Adult Social Care Operations,Supplies and Services,874.65,Mar-23
Slough Borough Council,805423,Enriched Care,M44D,Adult Social Care Operations,Supplies and Services,"3,741.70",Mar-23
Slough Borough Council,805423,Enriched Care,M44F,Adult Social Care Operations,Supplies and Services,"2,613.30",Mar-23
Slough Borough Council,805423,Enriched Care,M44F,Adult Social Care Operations,Supplies and Services,"2,879.90",Mar-23
Slough Borough Council,805423,Enriched Care,M80F,Adult Social Care Operations,Supplies and Services,"1,758.01",Mar-23
Slough Borough Council,808785,Enterprise Exchange,F210,Community,Supplies and Services,"4,144.00",Mar-23
Slough Borough Council,807310,Enterprise Rent-A-Car UK Limited trading as Enterprise Flex-E-Rent,D900,Place Operations,Transport,"25,377.70",Mar-23
Slough Borough Council,807310,Enterprise Rent-A-Car UK Limited trading as Enterprise Flex-E-Rent,D900,Place Operations,Transport,"34,324.78",Mar-23
Slough Borough Council,807310,Enterprise Rent-A-Car UK Limited trading as Enterprise Flex-E-Rent,D900,Place Operations,Transport,"26,143.12",Mar-23
Slough Borough Council,639,Environment Agency,D458,Place Strategy & Infrastructure,Supplies and Services,"99,616.56",Mar-23
Slough Borough Council,4035,Ernst & Young Llp,B015,Finance & Commercial,Supplies and Services,"19,488.00",Mar-23
Slough Borough Council,640,Essex County Council,B201,Strategy & Innovation,Salaries and Wages,"71,949.25",Mar-23
Slough Borough Council,806140,Eton Dorney Special School,F462,Children & Families,Supplies and Services,"4,476.00",Mar-23
Slough Borough Council,2677,Eton House Residential Home,M25C,Adult Social Care Operations,Supplies and Services,"3,420.00",Mar-23
Slough Borough Council,2677,Eton House Residential Home,M25D,Adult Social Care Operations,Supplies and Services,"3,096.43",Mar-23
Slough Borough Council,2677,Eton House Residential Home,M27C,Adult Social Care Operations,Supplies and Services,"2,571.43",Mar-23
Slough Borough Council,2677,Eton House Residential Home,M27C,Adult Social Care Operations,Supplies and Services,"2,571.43",Mar-23
Slough Borough Council,808745,Eton Lettings Limited,H205,Housing (People) Services,Supplies and Services,540.00,Mar-23
Slough Borough Council,808344,Euro Housing UK LTD,H205,Housing (People) Services,Supplies and Services,"9,520.00",Mar-23
Slough Borough Council,806501,Excellent Healthcare Services Ltd,A07R,Adult Social Care Operations,Supplies and Services,544.64,Mar-23
Slough Borough Council,806501,Excellent Healthcare Services Ltd,A07R,Adult Social Care Operations,Supplies and Services,"1,072.26",Mar-23
Slough Borough Council,806501,Excellent Healthcare Services Ltd,M44C,Adult Social Care Operations,Supplies and Services,"1,080.77",Mar-23
Slough Borough Council,806501,Excellent Healthcare Services Ltd,M44C,Adult Social Care Operations,Supplies and Services,"1,072.26",Mar-23
Slough Borough Council,806501,Excellent Healthcare Services Ltd,M44C,Adult Social Care Operations,Supplies and Services,"1,072.26",Mar-23
Slough Borough Council,806501,Excellent Healthcare Services Ltd,M44C,Adult Social Care Operations,Supplies and Services,833.98,Mar-23
Slough Borough Council,806501,Excellent Healthcare Services Ltd,M44C,Adult Social Care Operations,Supplies and Services,"2,144.52",Mar-23
Slough Borough Council,806501,Excellent Healthcare Services Ltd,M44C,Adult Social Care Operations,Supplies and Services,761.64,Mar-23
Slough Borough Council,806501,Excellent Healthcare Services Ltd,M44C,Adult Social Care Operations,Supplies and Services,"2,280.68",Mar-23
Slough Borough Council,806501,Excellent Healthcare Services Ltd,M44C,Adult Social Care Operations,Supplies and Services,"1,872.20",Mar-23
Slough Borough Council,806501,Excellent Healthcare Services Ltd,M44C,Adult Social Care Operations,Supplies and Services,"2,144.52",Mar-23
Slough Borough Council,806501,Excellent Healthcare Services Ltd,M44C,Adult Social Care Operations,Supplies and Services,"2,144.52",Mar-23
Slough Borough Council,806501,Excellent Healthcare Services Ltd,M44C,Adult Social Care Operations,Supplies and Services,510.60,Mar-23
Slough Borough Council,806501,Excellent Healthcare Services Ltd,M44C,Adult Social Care Operations,Supplies and Services,"2,144.52",Mar-23
Slough Borough Council,806501,Excellent Healthcare Services Ltd,M44F,Adult Social Care Operations,Supplies and Services,"2,382.80",Mar-23
Slough Borough Council,806501,Excellent Healthcare Services Ltd,M44F,Adult Social Care Operations,Supplies and Services,723.35,Mar-23
Slough Borough Council,806501,Excellent Healthcare Services Ltd,M44F,Adult Social Care Operations,Supplies and Services,948.86,Mar-23
Slough Borough Council,806501,Excellent Healthcare Services Ltd,M45C,Adult Social Care Operations,Supplies and Services,595.70,Mar-23
Slough Borough Council,806501,Excellent Healthcare Services Ltd,M45C,Adult Social Care Operations,Supplies and Services,744.62,Mar-23
Slough Borough Council,806501,Excellent Healthcare Services Ltd,M48C,Adult Social Care Operations,Supplies and Services,591.45,Mar-23
Slough Borough Council,808736,EXCLUSIVE HOUSING SOLUTION LIMITED,H205,Housing (People) Services,Supplies and Services,"12,600.00",Mar-23
Slough Borough Council,427,Experian Ltd,H015,Finance & Commercial,Supplies and Services,"4,915.50",Mar-23
Slough Borough Council,805225,Falcon Surfacing Ltd,D880,Place Operations,Supplies and Services,"10,715.00",Mar-23
Slough Borough Council,805225,Falcon Surfacing Ltd,D880,Place Operations,Supplies and Services,"4,575.00",Mar-23
Slough Borough Council,805225,Falcon Surfacing Ltd,D880,Place Operations,Supplies and Services,"3,463.72",Mar-23
Slough Borough Council,805225,Falcon Surfacing Ltd,D880,Place Operations,Supplies and Services,526.94,Mar-23
Slough Borough Council,805225,Falcon Surfacing Ltd,D880,Place Operations,Supplies and Services,649.75,Mar-23
Slough Borough Council,805225,Falcon Surfacing Ltd,D880,Place Operations,Supplies and Services,"3,263.99",Mar-23
Slough Borough Council,805225,Falcon Surfacing Ltd,D880,Place Operations,Supplies and Services,"3,065.78",Mar-23
Slough Borough Council,805225,Falcon Surfacing Ltd,D880,Place Operations,Supplies and Services,"1,323.02",Mar-23
Slough Borough Council,805225,Falcon Surfacing Ltd,D880,Place Operations,Supplies and Services,"1,925.00",Mar-23
Slough Borough Council,805225,Falcon Surfacing Ltd,D880,Place Operations,Supplies and Services,"5,225.00",Mar-23
Slough Borough Council,805225,Falcon Surfacing Ltd,D880,Place Operations,Supplies and Services,"8,060.00",Mar-23
Slough Borough Council,805225,Falcon Surfacing Ltd,D880,Place Operations,Supplies and Services,"2,774.50",Mar-23
Slough Borough Council,805225,Falcon Surfacing Ltd,D880,Place Operations,Supplies and Services,"2,062.73",Mar-23
Slough Borough Council,805225,Falcon Surfacing Ltd,D880,Place Operations,Supplies and Services,"4,575.00",Mar-23
Slough Borough Council,805225,Falcon Surfacing Ltd,D880,Place Operations,Supplies and Services,982.84,Mar-23
Slough Borough Council,805225,Falcon Surfacing Ltd,D880,Place Operations,Supplies and Services,"3,505.02",Mar-23
Slough Borough Council,805225,Falcon Surfacing Ltd,D880,Place Operations,Supplies and Services,"1,096.88",Mar-23
Slough Borough Council,805225,Falcon Surfacing Ltd,D880,Place Operations,Supplies and Services,"1,250.72",Mar-23
Slough Borough Council,805225,Falcon Surfacing Ltd,D880,Place Operations,Supplies and Services,"5,556.32",Mar-23
Slough Borough Council,805225,Falcon Surfacing Ltd,D880,Place Operations,Supplies and Services,"35,164.91",Mar-23
Slough Borough Council,805225,Falcon Surfacing Ltd,D880,Place Operations,Supplies and Services,"13,668.50",Mar-23
Slough Borough Council,805225,Falcon Surfacing Ltd,D880,Place Operations,Supplies and Services,686.62,Mar-23
Slough Borough Council,805225,Falcon Surfacing Ltd,D880,Place Operations,Supplies and Services,"3,484.67",Mar-23
Slough Borough Council,805225,Falcon Surfacing Ltd,D880,Place Operations,Supplies and Services,"3,744.00",Mar-23
Slough Borough Council,805225,Falcon Surfacing Ltd,D880,Place Operations,Supplies and Services,"4,575.00",Mar-23
Slough Borough Council,805225,Falcon Surfacing Ltd,D880,Place Operations,Supplies and Services,"1,845.80",Mar-23
Slough Borough Council,805225,Falcon Surfacing Ltd,D880,Place Operations,Supplies and Services,"1,748.62",Mar-23
Slough Borough Council,805225,Falcon Surfacing Ltd,D880,Place Operations,Supplies and Services,"2,735.60",Mar-23
Slough Borough Council,805225,Falcon Surfacing Ltd,D880,Place Operations,Supplies and Services,"2,916.84",Mar-23
Slough Borough Council,805225,Falcon Surfacing Ltd,D880,Place Operations,Supplies and Services,"14,451.20",Mar-23
Slough Borough Council,805225,Falcon Surfacing Ltd,D880,Place Operations,Supplies and Services,"2,545.70",Mar-23
Slough Borough Council,805225,Falcon Surfacing Ltd,D880,Place Operations,Supplies and Services,"5,436.27",Mar-23
Slough Borough Council,641,Falon Nameplates Limited,D320,Place Operations,Supplies and Services,"1,748.43",Mar-23
Slough Borough Council,4031,Family Support Practise Limited,A03D,Adult Social Care Operations,Supplies and Services,"2,189.25",Mar-23
Slough Borough Council,4031,Family Support Practise Limited,A03D,Adult Social Care Operations,Supplies and Services,"2,189.25",Mar-23
Slough Borough Council,4031,Family Support Practise Limited,B277,Digital and Strategic IT,Supplies and Services,"1,800.00",Mar-23
Slough Borough Council,4031,Family Support Practise Limited,B277,Digital and Strategic IT,Supplies and Services,"1,800.00",Mar-23
Slough Borough Council,4031,Family Support Practise Limited,B277,Digital and Strategic IT,Supplies and Services,"1,800.00",Mar-23
Slough Borough Council,4031,Family Support Practise Limited,B277,Digital and Strategic IT,Supplies and Services,"1,800.00",Mar-23
Slough Borough Council,4031,Family Support Practise Limited,B277,Digital and Strategic IT,Supplies and Services,"1,800.00",Mar-23
Slough Borough Council,2678,Farnham Common Nurseries Ltd,P220,Capital,Capital Charges,940.00,Mar-23
Slough Borough Council,475,Farnham Road Surgery,A04C,Adult Social Care Operations,Supplies and Services,"5,000.00",Mar-23
Slough Borough Council,475,Farnham Road Surgery,A04C,Adult Social Care Operations,Supplies and Services,"12,023.66",Mar-23
Slough Borough Council,475,Farnham Road Surgery,A04C,Adult Social Care Operations,Supplies and Services,"13,063.66",Mar-23
Slough Borough Council,475,Farnham Road Surgery,A04C,Adult Social Care Operations,Supplies and Services,598.48,Mar-23
Slough Borough Council,955,First Beeline Buses Ltd,D512,Place Strategy & Infrastructure,Supplies and Services,"61,179.45",Mar-23
Slough Borough Council,808815,First Choice Social Care,A07R,Adult Social Care Operations,Supplies and Services,888.58,Mar-23
Slough Borough Council,808815,First Choice Social Care,M44C,Adult Social Care Operations,Supplies and Services,943.80,Mar-23
Slough Borough Council,808815,First Choice Social Care,M44C,Adult Social Care Operations,Supplies and Services,"1,211.70",Mar-23
Slough Borough Council,808815,First Choice Social Care,M44C,Adult Social Care Operations,Supplies and Services,525.07,Mar-23
Slough Borough Council,808815,First Choice Social Care,M44C,Adult Social Care Operations,Supplies and Services,597.74,Mar-23
Slough Borough Council,808815,First Choice Social Care,M44C,Adult Social Care Operations,Supplies and Services,848.19,Mar-23
Slough Borough Council,808815,First Choice Social Care,M44C,Adult Social Care Operations,Supplies and Services,"1,252.09",Mar-23
Slough Borough Council,808815,First Choice Social Care,M44C,Adult Social Care Operations,Supplies and Services,975.26,Mar-23
Slough Borough Council,808815,First Choice Social Care,M44C,Adult Social Care Operations,Supplies and Services,755.04,Mar-23
Slough Borough Council,808815,First Choice Social Care,M44C,Adult Social Care Operations,Supplies and Services,975.26,Mar-23
Slough Borough Council,808815,First Choice Social Care,M44C,Adult Social Care Operations,Supplies and Services,571.20,Mar-23
Slough Borough Council,808815,First Choice Social Care,M44C,Adult Social Care Operations,Supplies and Services,698.43,Mar-23
Slough Borough Council,808815,First Choice Social Care,M44C,Adult Social Care Operations,Supplies and Services,"1,365.87",Mar-23
Slough Borough Council,808815,First Choice Social Care,M44C,Adult Social Care Operations,Supplies and Services,671.70,Mar-23
Slough Borough Council,808815,First Choice Social Care,M44C,Adult Social Care Operations,Supplies and Services,"1,339.20",Mar-23
Slough Borough Council,808815,First Choice Social Care,M44C,Adult Social Care Operations,Supplies and Services,624.96,Mar-23
Slough Borough Council,808815,First Choice Social Care,M44D,Adult Social Care Operations,Supplies and Services,"1,606.86",Mar-23
Slough Borough Council,808815,First Choice Social Care,M44D,Adult Social Care Operations,Supplies and Services,"2,562.07",Mar-23
Slough Borough Council,808815,First Choice Social Care,M44D,Adult Social Care Operations,Supplies and Services,"2,642.42",Mar-23
Slough Borough Council,808815,First Choice Social Care,M44D,Adult Social Care Operations,Supplies and Services,678.46,Mar-23
Slough Borough Council,808815,First Choice Social Care,M44D,Adult Social Care Operations,Supplies and Services,"-1,860.76",Mar-23
Slough Borough Council,808815,First Choice Social Care,M44D,Adult Social Care Operations,Supplies and Services,"1,251.78",Mar-23
Slough Borough Council,808815,First Choice Social Care,M44D,Adult Social Care Operations,Supplies and Services,"1,251.78",Mar-23
Slough Borough Council,808815,First Choice Social Care,M44D,Adult Social Care Operations,Supplies and Services,"1,211.40",Mar-23
Slough Borough Council,754,First Steps Day Nursery,F909,Children & Families,Supplies and Services,"2,726.69",Mar-23
Slough Borough Council,754,First Steps Day Nursery,F909,Children & Families,Supplies and Services,"10,676.74",Mar-23
Slough Borough Council,1626,Five Star Radio Cars Limited,F123,Education & Inclusion,Supplies and Services,"3,780.00",Mar-23
Slough Borough Council,1626,Five Star Radio Cars Limited,F123,Education & Inclusion,Supplies and Services,"1,600.00",Mar-23
Slough Borough Council,1626,Five Star Radio Cars Limited,F123,Education & Inclusion,Supplies and Services,"1,200.00",Mar-23
Slough Borough Council,1626,Five Star Radio Cars Limited,F123,Education & Inclusion,Supplies and Services,"2,520.00",Mar-23
Slough Borough Council,2519,Fleet Tutors,F449,Education & Inclusion,Supplies and Services,960.00,Mar-23
Slough Borough Council,2519,Fleet Tutors,F449,Education & Inclusion,Supplies and Services,"2,730.00",Mar-23
Slough Borough Council,2460,Forest Bridge School Ltd,F551,Children & Families,Supplies and Services,833.34,Mar-23
Slough Borough Council,2460,Forest Bridge School Ltd,F551,Children & Families,Supplies and Services,793.34,Mar-23
Slough Borough Council,2460,Forest Bridge School Ltd,F551,Children & Families,Supplies and Services,"8,849.33",Mar-23
Slough Borough Council,2460,Forest Bridge School Ltd,F551,Children & Families,Supplies and Services,"8,849.34",Mar-23
Slough Borough Council,2460,Forest Bridge School Ltd,F551,Children & Families,Supplies and Services,"10,158.66",Mar-23
Slough Borough Council,2460,Forest Bridge School Ltd,F551,Children & Families,Supplies and Services,"12,770.66",Mar-23
Slough Borough Council,2460,Forest Bridge School Ltd,F551,Children & Families,Supplies and Services,"10,158.66",Mar-23
Slough Borough Council,2460,Forest Bridge School Ltd,F551,Children & Families,Supplies and Services,"14,638.00",Mar-23
Slough Borough Council,2460,Forest Bridge School Ltd,F551,Children & Families,Supplies and Services,"2,966.66",Mar-23
Slough Borough Council,2460,Forest Bridge School Ltd,F551,Children & Families,Supplies and Services,"8,849.34",Mar-23
Slough Borough Council,2460,Forest Bridge School Ltd,F551,Children & Families,Supplies and Services,"14,638.00",Mar-23
Slough Borough Council,2460,Forest Bridge School Ltd,F551,Children & Families,Supplies and Services,"8,849.34",Mar-23
Slough Borough Council,2460,Forest Bridge School Ltd,F551,Children & Families,Supplies and Services,"12,770.66",Mar-23
Slough Borough Council,2460,Forest Bridge School Ltd,F551,Children & Families,Supplies and Services,"12,770.66",Mar-23
Slough Borough Council,2460,Forest Bridge School Ltd,F551,Children & Families,Supplies and Services,"12,770.66",Mar-23
Slough Borough Council,1204,Forget Me Not,M25C,Adult Social Care Operations,Supplies and Services,"3,400.00",Mar-23
Slough Borough Council,806249,Formact Ltd,P006,Capital,Capital Charges,"6,200.00",Mar-23
Slough Borough Council,647,Foxborough Primary School,E620,Children & Families,Supplies and Services,"6,578.03",Mar-23
Slough Borough Council,806480,Frontier NX Limited,A04C,Adult Social Care Operations,Supplies and Services,763.27,Mar-23
Slough Borough Council,806480,Frontier NX Limited,A04C,Adult Social Care Operations,Supplies and Services,"2,272.50",Mar-23
Slough Borough Council,803540,Furze Platt Senior School,F553,Children & Families,Supplies and Services,"3,098.00",Mar-23
Slough Borough Council,803540,Furze Platt Senior School,F553,Children & Families,Supplies and Services,"3,562.50",Mar-23
Slough Borough Council,804911,GAP Group Limited,D880,Place Operations,Supplies and Services,650.40,Mar-23
Slough Borough Council,804911,GAP Group Limited,D880,Place Operations,Supplies and Services,880.00,Mar-23
Slough Borough Council,1758,Gas Advisory Services Limited,J606,Place Management,Supplies and Services,"5,117.00",Mar-23
Slough Borough Council,1758,Gas Advisory Services Limited,J606,Place Management,Supplies and Services,"2,257.00",Mar-23
Slough Borough Council,1758,Gas Advisory Services Limited,J606,Place Management,Supplies and Services,840.00,Mar-23
Slough Borough Council,806663,General Register Office /Home Office,D333,Customer Services,Supplies and Services,"2,238.50",Mar-23
Slough Borough Council,808711,George Browns LTD,D750,Place Operations,Supplies and Services,"5,571.14",Mar-23
Slough Borough Council,808711,George Browns LTD,P178,Capital,Capital Charges,"21,219.19",Mar-23
Slough Borough Council,808711,George Browns LTD,P178,Capital,Capital Charges,"1,060.96",Mar-23
Slough Borough Council,650,George Lines (Merchants) Ltd,D750,Place Operations,Supplies and Services,"1,252.80",Mar-23
Slough Borough Council,808578,GKM Medical Ltd,A02A,People Adults,Supplies and Services,900.00,Mar-23
Slough Borough Council,808578,GKM Medical Ltd,A02A,People Adults,Supplies and Services,"1,800.00",Mar-23
Slough Borough Council,2830,GR Response Healthcare Ltd,A06C,People Strategy & Commissioning,Supplies and Services,"8,100.00",Mar-23
Slough Borough Council,2830,GR Response Healthcare Ltd,A06C,People Strategy & Commissioning,Supplies and Services,"9,500.00",Mar-23
Slough Borough Council,2830,GR Response Healthcare Ltd,B298,Finance & Commercial,Supplies and Services,"1,951.26",Mar-23
Slough Borough Council,2830,GR Response Healthcare Ltd,M44C,Adult Social Care Operations,Supplies and Services,"2,394.00",Mar-23
Slough Borough Council,2830,GR Response Healthcare Ltd,M44C,Adult Social Care Operations,Supplies and Services,"1,393.08",Mar-23
Slough Borough Council,2830,GR Response Healthcare Ltd,M44C,Adult Social Care Operations,Supplies and Services,"1,500.24",Mar-23
Slough Borough Council,2830,GR Response Healthcare Ltd,M44C,Adult Social Care Operations,Supplies and Services,"1,580.42",Mar-23
Slough Borough Council,2830,GR Response Healthcare Ltd,M44C,Adult Social Care Operations,Supplies and Services,969.00,Mar-23
Slough Borough Council,2830,GR Response Healthcare Ltd,M44C,Adult Social Care Operations,Supplies and Services,"2,394.00",Mar-23
Slough Borough Council,2830,GR Response Healthcare Ltd,M44C,Adult Social Care Operations,Supplies and Services,"2,394.00",Mar-23
Slough Borough Council,2830,GR Response Healthcare Ltd,M44C,Adult Social Care Operations,Supplies and Services,"1,577.00",Mar-23
Slough Borough Council,2830,GR Response Healthcare Ltd,M44C,Adult Social Care Operations,Supplies and Services,"2,375.00",Mar-23
Slough Borough Council,2830,GR Response Healthcare Ltd,M44C,Adult Social Care Operations,Supplies and Services,"2,205.44",Mar-23
Slough Borough Council,2830,GR Response Healthcare Ltd,M44D,Adult Social Care Operations,Supplies and Services,"1,874.76",Mar-23
Slough Borough Council,2830,GR Response Healthcare Ltd,M44D,Adult Social Care Operations,Supplies and Services,"1,508.98",Mar-23
Slough Borough Council,2830,GR Response Healthcare Ltd,M44D,Adult Social Care Operations,Supplies and Services,"2,736.00",Mar-23
Slough Borough Council,2830,GR Response Healthcare Ltd,M44D,Adult Social Care Operations,Supplies and Services,"1,596.00",Mar-23
Slough Borough Council,2830,GR Response Healthcare Ltd,M44D,Adult Social Care Operations,Supplies and Services,931.00,Mar-23
Slough Borough Council,2830,GR Response Healthcare Ltd,M44D,Adult Social Care Operations,Supplies and Services,"2,432.00",Mar-23
Slough Borough Council,2830,GR Response Healthcare Ltd,M44D,Adult Social Care Operations,Supplies and Services,"2,250.08",Mar-23
Slough Borough Council,2830,GR Response Healthcare Ltd,M44D,Adult Social Care Operations,Supplies and Services,"2,250.08",Mar-23
Slough Borough Council,2830,GR Response Healthcare Ltd,M44E,Adult Social Care Operations,Supplies and Services,532.00,Mar-23
Slough Borough Council,2830,GR Response Healthcare Ltd,M44F,Adult Social Care Operations,Supplies and Services,"2,128.00",Mar-23
Slough Borough Council,2830,GR Response Healthcare Ltd,M45C,Adult Social Care Operations,Supplies and Services,"2,250.08",Mar-23
Slough Borough Council,2830,GR Response Healthcare Ltd,M45C,Adult Social Care Operations,Supplies and Services,"2,089.36",Mar-23
Slough Borough Council,804577,Green Monarch ZC2016 c/o Savills(UK) Limited,H205,Housing (People) Services,Premises,"3,583.33",Mar-23
Slough Borough Council,808378,Greensleeves Care,M17C,Adult Social Care Operations,Supplies and Services,"3,614.07",Mar-23
Slough Borough Council,808464,Greenstone Care,M28E,Adult Social Care Operations,Supplies and Services,"15,201.97",Mar-23
Slough Borough Council,805069,Grove Academy,E610,Children & Families,Supplies and Services,"27,907.23",Mar-23
Slough Borough Council,805069,Grove Academy,F002,Community,Government Grants,"1,000.00",Mar-23
Slough Borough Council,804447,Grundon Waste Management Limited,D342,Place Operations,Supplies and Services,"1,424.00",Mar-23
Slough Borough Council,804447,Grundon Waste Management Limited,D342,Place Operations,Supplies and Services,"452,565.07",Mar-23
Slough Borough Council,807858,H J Newman,H253,Community,Supplies and Services,"1,835.00",Mar-23
Slough Borough Council,3228,H Plus Care Ltd,M18C,Adult Social Care Operations,Supplies and Services,"5,314.29",Mar-23
Slough Borough Council,3228,H Plus Care Ltd,M25C,Adult Social Care Operations,Supplies and Services,"5,535.71",Mar-23
Slough Borough Council,3228,H Plus Care Ltd,M26E,Adult Social Care Operations,Supplies and Services,"5,314.29",Mar-23
Slough Borough Council,806681,Hako Machines Ltd,D620,Place Operations,Supplies and Services,597.42,Mar-23
Slough Borough Council,807913,Harrow Council,M99C,Children & Families,Supplies and Services,"4,175.28",Mar-23
Slough Borough Council,804986,Havencare Ltd,M26E,Adult Social Care Operations,Supplies and Services,"1,356.27",Mar-23
Slough Borough Council,804986,Havencare Ltd,M26E,Adult Social Care Operations,Supplies and Services,"1,356.27",Mar-23
Slough Borough Council,804986,Havencare Ltd,M26E,Adult Social Care Operations,Supplies and Services,"1,356.27",Mar-23
Slough Borough Council,804986,Havencare Ltd,M26E,Adult Social Care Operations,Supplies and Services,"1,356.27",Mar-23
Slough Borough Council,1381,Haybrook College,E610,Children & Families,Supplies and Services,"98,297.74",Mar-23
Slough Borough Council,3784,Haybrook College Pru,E610,Children & Families,Supplies and Services,"37,650.00",Mar-23
Slough Borough Council,803248,Haybrook College Trust,F166,Education & Inclusion,Supplies and Services,"21,000.00",Mar-23
Slough Borough Council,803248,Haybrook College Trust,F166,Education & Inclusion,Supplies and Services,"24,855.00",Mar-23
Slough Borough Council,808639,Hazel Care Services Ltd,M42E,Adult Social Care Operations,Supplies and Services,"4,226.60",Mar-23
Slough Borough Council,808639,Hazel Care Services Ltd,M42E,Adult Social Care Operations,Supplies and Services,"2,017.96",Mar-23
Slough Borough Council,808639,Hazel Care Services Ltd,M42E,Adult Social Care Operations,Supplies and Services,"3,847.48",Mar-23
Slough Borough Council,4022,Hbinfo Ltd,H015,Finance & Commercial,Supplies and Services,891.00,Mar-23
Slough Borough Council,803753,Healthcare Homes,M15D,Adult Social Care Operations,Supplies and Services,"2,938.45",Mar-23
Slough Borough Council,803753,Healthcare Homes,M17C,Adult Social Care Operations,Supplies and Services,"4,428.57",Mar-23
Slough Borough Council,803753,Healthcare Homes,M17C,Adult Social Care Operations,Supplies and Services,"2,629.29",Mar-23
Slough Borough Council,803753,Healthcare Homes,M17C,Adult Social Care Operations,Supplies and Services,"4,871.43",Mar-23
Slough Borough Council,803753,Healthcare Homes,M17C,Adult Social Care Operations,Supplies and Services,"4,871.43",Mar-23
Slough Borough Council,803753,Healthcare Homes,M18C,Adult Social Care Operations,Supplies and Services,"4,871.43",Mar-23
Slough Borough Council,803753,Healthcare Homes,M18C,Adult Social Care Operations,Supplies and Services,"4,871.43",Mar-23
Slough Borough Council,803753,Healthcare Homes,M18C,Adult Social Care Operations,Supplies and Services,"4,871.43",Mar-23
Slough Borough Council,803753,Healthcare Homes,M18C,Adult Social Care Operations,Supplies and Services,"4,871.43",Mar-23
Slough Borough Council,803753,Healthcare Homes,M27C,Adult Social Care Operations,Supplies and Services,"3,224.00",Mar-23
Slough Borough Council,803753,Healthcare Homes,M28C,Adult Social Care Operations,Supplies and Services,"4,800.00",Mar-23
Slough Borough Council,805368,Heathermount School,F462,Children & Families,Supplies and Services,"17,445.79",Mar-23
Slough Borough Council,805368,Heathermount School,F462,Children & Families,Supplies and Services,"17,445.79",Mar-23
Slough Borough Council,805368,Heathermount School,F462,Children & Families,Supplies and Services,"17,445.79",Mar-23
Slough Borough Council,1686,Herald Chase,B660,Finance & Commercial,Supplies and Services,"1,922.08",Mar-23
Slough Borough Council,1686,Herald Chase,F382,Children & Families,Supplies and Services,"3,157.83",Mar-23
Slough Borough Council,803447,Herewards House Residential Home,A02E,Adult Social Care Operations,Supplies and Services,"3,764.29",Mar-23
Slough Borough Council,803447,Herewards House Residential Home,M25C,Adult Social Care Operations,Supplies and Services,"3,764.29",Mar-23
Slough Borough Council,803447,Herewards House Residential Home,M27C,Adult Social Care Operations,Supplies and Services,"3,764.29",Mar-23
Slough Borough Council,803447,Herewards House Residential Home,M27C,Adult Social Care Operations,Supplies and Services,"3,764.29",Mar-23
Slough Borough Council,803447,Herewards House Residential Home,M27C,Adult Social Care Operations,Supplies and Services,"2,878.57",Mar-23
Slough Borough Council,803447,Herewards House Residential Home,M29C,Adult Social Care Operations,Supplies and Services,"3,764.28",Mar-23
Slough Borough Council,807998,Heywood's Catering,F382,Children & Families,Supplies and Services,"3,234.00",Mar-23
Slough Borough Council,850,Holy Family Catholic Primary School,E250,Children & Families,Supplies and Services,"190,737.70",Mar-23
Slough Borough Council,808676,Human Engine Limited,B146,Finance & Commercial,Supplies and Services,"27,200.00",Mar-23
Slough Borough Council,1914,Huntcliff Limited,J028,Place Management,Supplies and Services,"1,292.21",Mar-23
Slough Borough Council,2983,Idox Software Ltd,B282,Digital and Strategic IT,Supplies and Services,"11,725.44",Mar-23
Slough Borough Council,804955,Imosphere Limited,A03D,Adult Social Care Operations,Supplies and Services,"45,700.00",Mar-23
Slough Borough Council,2917,Imperial Coaches Ltd,F123,Education & Inclusion,Supplies and Services,"4,700.00",Mar-23
Slough Borough Council,2917,Imperial Coaches Ltd,F123,Education & Inclusion,Supplies and Services,"3,525.00",Mar-23
Slough Borough Council,351,Imperial Polythene Products Ltd,D620,Place Operations,Supplies and Services,"2,765.00",Mar-23
Slough Borough Council,351,Imperial Polythene Products Ltd,D620,Place Operations,Supplies and Services,"3,675.00",Mar-23
Slough Borough Council,351,Imperial Polythene Products Ltd,D620,Place Operations,Supplies and Services,"1,225.00",Mar-23
Slough Borough Council,351,Imperial Polythene Products Ltd,D620,Place Operations,Supplies and Services,"1,862.00",Mar-23
Slough Borough Council,3570,Independent Supported Living And Disabilities Ltd,M42E,Adult Social Care Operations,Supplies and Services,"3,000.00",Mar-23
Slough Borough Council,3570,Independent Supported Living And Disabilities Ltd,M42E,Adult Social Care Operations,Supplies and Services,"3,000.00",Mar-23
Slough Borough Council,3570,Independent Supported Living And Disabilities Ltd,M44D,Adult Social Care Operations,Supplies and Services,"3,044.16",Mar-23
Slough Borough Council,3570,Independent Supported Living And Disabilities Ltd,M44D,Adult Social Care Operations,Supplies and Services,"3,044.16",Mar-23
Slough Borough Council,3570,Independent Supported Living And Disabilities Ltd,M44E,Adult Social Care Operations,Supplies and Services,"1,440.00",Mar-23
Slough Borough Council,3570,Independent Supported Living And Disabilities Ltd,M44E,Adult Social Care Operations,Supplies and Services,"1,050.00",Mar-23
Slough Borough Council,3570,Independent Supported Living And Disabilities Ltd,M44E,Adult Social Care Operations,Supplies and Services,"3,570.00",Mar-23
Slough Borough Council,3570,Independent Supported Living And Disabilities Ltd,M44E,Adult Social Care Operations,Supplies and Services,"4,212.00",Mar-23
Slough Borough Council,3570,Independent Supported Living And Disabilities Ltd,M44E,Adult Social Care Operations,Supplies and Services,"3,570.00",Mar-23
Slough Borough Council,3570,Independent Supported Living And Disabilities Ltd,M44E,Adult Social Care Operations,Supplies and Services,"1,050.00",Mar-23
Slough Borough Council,3570,Independent Supported Living And Disabilities Ltd,M44E,Adult Social Care Operations,Supplies and Services,"1,440.00",Mar-23
Slough Borough Council,3570,Independent Supported Living And Disabilities Ltd,M44E,Adult Social Care Operations,Supplies and Services,"4,212.00",Mar-23
Slough Borough Council,3570,Independent Supported Living And Disabilities Ltd,M44F,Adult Social Care Operations,Supplies and Services,"2,608.00",Mar-23
Slough Borough Council,3570,Independent Supported Living And Disabilities Ltd,M44F,Adult Social Care Operations,Supplies and Services,"2,608.00",Mar-23
Slough Borough Council,807231,Initial Projects Limited,D308,Place Operations,Supplies and Services,"1,047.50",Mar-23
Slough Borough Council,807231,Initial Projects Limited,D308,Place Operations,Supplies and Services,"10,143.18",Mar-23
Slough Borough Council,807231,Initial Projects Limited,D308,Place Operations,Supplies and Services,"10,670.97",Mar-23
Slough Borough Council,803651,Insight Direct (UK) Ltd,B342,Digital and Strategic IT,Supplies and Services,"2,625.00",Mar-23
Slough Borough Council,3172,Intelligent Transport Services,P212,Capital,Capital Charges,600.00,Mar-23
Slough Borough Council,3172,Intelligent Transport Services,P212,Capital,Capital Charges,"1,200.00",Mar-23
Slough Borough Council,3172,Intelligent Transport Services,P238,Capital,Capital Charges,900.00,Mar-23
Slough Borough Council,3172,Intelligent Transport Services,P579,Capital,Capital Charges,"1,068.00",Mar-23
Slough Borough Council,3172,Intelligent Transport Services,P579,Capital,Capital Charges,"2,492.00",Mar-23
Slough Borough Council,3172,Intelligent Transport Services,P579,Capital,Capital Charges,"2,492.00",Mar-23
Slough Borough Council,3500,Iqra Slough Islamic Primary School,E480,Children & Families,Supplies and Services,"122,481.04",Mar-23
Slough Borough Council,998,Iron Mountain Uk Ltd,B282,Digital and Strategic IT,Supplies and Services,"1,548.06",Mar-23
Slough Borough Council,998,Iron Mountain Uk Ltd,B282,Digital and Strategic IT,Supplies and Services,"2,575.39",Mar-23
Slough Borough Council,998,Iron Mountain Uk Ltd,B282,Digital and Strategic IT,Supplies and Services,"3,266.86",Mar-23
Slough Borough Council,2919,Islamic Shakhsiyah Foundation,F909,Children & Families,Supplies and Services,"1,288.20",Mar-23
Slough Borough Council,2919,Islamic Shakhsiyah Foundation,F909,Children & Families,Supplies and Services,"7,394.68",Mar-23
Slough Borough Council,1858,Itso Limited,D512,Place Strategy & Infrastructure,Supplies and Services,"1,226.00",Mar-23
Slough Borough Council,806270,J2 RESEARCH LTD,F210,Community,TP-Other Bodies,"2,565.40",Mar-23
Slough Borough Council,753,Jack In The Box Day Nursery,F909,Children & Families,Supplies and Services,"11,180.32",Mar-23
Slough Borough Council,733,James Elliman  School,B187,Business Services,Premises,"2,980.08",Mar-23
Slough Borough Council,733,James Elliman  School,E620,Children & Families,Supplies and Services,"25,359.23",Mar-23
Slough Borough Council,805666,James Rosental,C322,Community,Supplies and Services,"2,705.00",Mar-23
Slough Borough Council,805226,JD Surfacing & Civil Engineering Limited,D880,Place Operations,Supplies and Services,"18,645.00",Mar-23
Slough Borough Council,805226,JD Surfacing & Civil Engineering Limited,D880,Place Operations,Supplies and Services,"4,000.00",Mar-23
Slough Borough Council,805226,JD Surfacing & Civil Engineering Limited,D880,Place Operations,Supplies and Services,"8,550.00",Mar-23
Slough Borough Council,805226,JD Surfacing & Civil Engineering Limited,D880,Place Operations,Supplies and Services,"18,635.00",Mar-23
Slough Borough Council,805226,JD Surfacing & Civil Engineering Limited,D880,Place Operations,Supplies and Services,"5,040.00",Mar-23
Slough Borough Council,805226,JD Surfacing & Civil Engineering Limited,D880,Place Operations,Supplies and Services,"8,380.00",Mar-23
Slough Borough Council,805226,JD Surfacing & Civil Engineering Limited,D880,Place Operations,Supplies and Services,"18,645.00",Mar-23
Slough Borough Council,805226,JD Surfacing & Civil Engineering Limited,D880,Place Operations,Supplies and Services,"5,880.00",Mar-23
Slough Borough Council,805226,JD Surfacing & Civil Engineering Limited,D880,Place Operations,Supplies and Services,"8,950.00",Mar-23
Slough Borough Council,805226,JD Surfacing & Civil Engineering Limited,D880,Place Operations,Supplies and Services,840.00,Mar-23
Slough Borough Council,805226,JD Surfacing & Civil Engineering Limited,D880,Place Operations,Supplies and Services,"18,245.00",Mar-23
Slough Borough Council,805226,JD Surfacing & Civil Engineering Limited,D880,Place Operations,Supplies and Services,"5,880.00",Mar-23
Slough Borough Council,805226,JD Surfacing & Civil Engineering Limited,D880,Place Operations,Supplies and Services,"7,980.00",Mar-23
Slough Borough Council,805226,JD Surfacing & Civil Engineering Limited,D880,Place Operations,Supplies and Services,"4,500.00",Mar-23
Slough Borough Council,807308,JLA Total Care Ltd,H205,Housing (People) Services,Supplies and Services,760.81,Mar-23
Slough Borough Council,196,Joes Folly,H253,Community,Supplies and Services,"1,960.00",Mar-23
Slough Borough Council,807453,John F Hunt Regeneration Ltd,P405,Capital,Capital Charges,"10,978.52",Mar-23
Slough Borough Council,807453,John F Hunt Regeneration Ltd,P405,Capital,Capital Charges,"11,740.87",Mar-23
Slough Borough Council,807453,John F Hunt Regeneration Ltd,P405,Capital,Capital Charges,"11,740.88",Mar-23
Slough Borough Council,807807,John Gobongitta,A02A,People Adults,Supplies and Services,500.00,Mar-23
Slough Borough Council,807807,John Gobongitta,A02A,People Adults,Supplies and Services,"1,150.00",Mar-23
Slough Borough Council,807807,John Gobongitta,A02A,People Adults,Supplies and Services,650.00,Mar-23
Slough Borough Council,807807,John Gobongitta,A02A,People Adults,Supplies and Services,500.00,Mar-23
Slough Borough Council,808845,Jon Ralphs Consultancy,A01D,People Adults,Supplies and Services,"1,200.00",Mar-23
Slough Borough Council,2200,Joshua Pilmore,C322,Community,Supplies and Services,"1,870.00",Mar-23
Slough Borough Council,803815,Kathys Childcare,F909,Children & Families,Supplies and Services,"2,240.72",Mar-23
Slough Borough Council,2620,Kcare Nursing Agency Ltd,M44C,Adult Social Care Operations,Supplies and Services,"1,342.92",Mar-23
Slough Borough Council,2620,Kcare Nursing Agency Ltd,M44D,Adult Social Care Operations,Supplies and Services,568.55,Mar-23
Slough Borough Council,2620,Kcare Nursing Agency Ltd,M48C,Adult Social Care Operations,Supplies and Services,"1,034.83",Mar-23
Slough Borough Council,2620,Kcare Nursing Agency Ltd,M48C,Adult Social Care Operations,Supplies and Services,"4,000.00",Mar-23
Slough Borough Council,2620,Kcare Nursing Agency Ltd,M48C,Adult Social Care Operations,Supplies and Services,916.34,Mar-23
Slough Borough Council,804887,KCare Nursing Agency Ltd Supported House Living,M42F,Adult Social Care Operations,Supplies and Services,"2,926.00",Mar-23
Slough Borough Council,804887,KCare Nursing Agency Ltd Supported House Living,M44F,Adult Social Care Operations,Supplies and Services,"2,493.50",Mar-23
Slough Borough Council,808146,Kents Hill Care Home,M18C,Adult Social Care Operations,Supplies and Services,"3,788.57",Mar-23
Slough Borough Council,808146,Kents Hill Care Home,M18C,Adult Social Care Operations,Supplies and Services,"3,914.86",Mar-23
Slough Borough Council,808146,Kents Hill Care Home,M18C,Adult Social Care Operations,Supplies and Services,"3,914.86",Mar-23
Slough Borough Council,808146,Kents Hill Care Home,M18C,Adult Social Care Operations,Supplies and Services,"3,536.00",Mar-23
Slough Borough Council,807742,Khalsa Primary School,E620,Children & Families,Supplies and Services,"16,884.90",Mar-23
Slough Borough Council,803916,Kharis Solutions,A07R,Adult Social Care Operations,Supplies and Services,"2,206.40",Mar-23
Slough Borough Council,803916,Kharis Solutions,A07R,Adult Social Care Operations,Supplies and Services,-551.60,Mar-23
Slough Borough Council,803916,Kharis Solutions,M42E,Adult Social Care Operations,Supplies and Services,"8,625.00",Mar-23
Slough Borough Council,803916,Kharis Solutions,M42E,Adult Social Care Operations,Supplies and Services,"9,375.00",Mar-23
Slough Borough Council,803916,Kharis Solutions,M42E,Adult Social Care Operations,Supplies and Services,"10,360.00",Mar-23
Slough Borough Council,803916,Kharis Solutions,M42E,Adult Social Care Operations,Supplies and Services,"10,500.00",Mar-23
Slough Borough Council,803916,Kharis Solutions,M44C,Adult Social Care Operations,Supplies and Services,"1,961.12",Mar-23
Slough Borough Council,803916,Kharis Solutions,M44C,Adult Social Care Operations,Supplies and Services,"2,346.48",Mar-23
Slough Borough Council,803916,Kharis Solutions,M44D,Adult Social Care Operations,Supplies and Services,"1,628.43",Mar-23
Slough Borough Council,803916,Kharis Solutions,M48C,Adult Social Care Operations,Supplies and Services,"2,210.00",Mar-23
Slough Borough Council,806579,Kisimul Group Ltd,F462,Children & Families,Supplies and Services,"26,192.30",Mar-23
Slough Borough Council,806579,Kisimul Group Ltd,F462,Children & Families,Supplies and Services,"4,592.62",Mar-23
Slough Borough Council,807176,Konflux Theatre Education,D509,Place Strategy & Infrastructure,Supplies and Services,850.00,Mar-23
Slough Borough Council,807176,Konflux Theatre Education,D509,Place Strategy & Infrastructure,Supplies and Services,850.00,Mar-23
Slough Borough Council,1728,Kristiina Smith,C322,Community,Supplies and Services,"1,972.00",Mar-23
Slough Borough Council,805130,LABC Central,D218,Planning,Salaries and Wages-Employees Expenses,"2,201.33",Mar-23
Slough Borough Council,808599,lakhwinder Singh,H205,Housing (People) Services,Supplies and Services,"1,400.00",Mar-23
Slough Borough Council,664,Langley Grammar School,B326,Finance & Commercial,Supplies and Services,"3,340.00",Mar-23
Slough Borough Council,664,Langley Grammar School,E610,Children & Families,Supplies and Services,875.00,Mar-23
Slough Borough Council,1699,Langley Hall Primary Academy,E620,Children & Families,Supplies and Services,"4,416.67",Mar-23
Slough Borough Council,3001,Langley Haven Care Homes Ltd,M25C,Adult Social Care Operations,Supplies and Services,"3,985.71",Mar-23
Slough Borough Council,3001,Langley Haven Care Homes Ltd,M25C,Adult Social Care Operations,Supplies and Services,"4,407.00",Mar-23
Slough Borough Council,3001,Langley Haven Care Homes Ltd,M25C,Adult Social Care Operations,Supplies and Services,"3,985.71",Mar-23
Slough Borough Council,3001,Langley Haven Care Homes Ltd,M25C,Adult Social Care Operations,Supplies and Services,"3,985.71",Mar-23
Slough Borough Council,3001,Langley Haven Care Homes Ltd,M25C,Adult Social Care Operations,Supplies and Services,"2,957.14",Mar-23
Slough Borough Council,3001,Langley Haven Care Homes Ltd,M25C,Adult Social Care Operations,Supplies and Services,"3,600.00",Mar-23
Slough Borough Council,3001,Langley Haven Care Homes Ltd,M25D,Adult Social Care Operations,Supplies and Services,"3,985.71",Mar-23
Slough Borough Council,3001,Langley Haven Care Homes Ltd,M25D,Adult Social Care Operations,Supplies and Services,"3,985.71",Mar-23
Slough Borough Council,3001,Langley Haven Care Homes Ltd,M26E,Adult Social Care Operations,Supplies and Services,"4,113.21",Mar-23
Slough Borough Council,3001,Langley Haven Care Homes Ltd,M26E,Adult Social Care Operations,Supplies and Services,"4,113.21",Mar-23
Slough Borough Council,3001,Langley Haven Care Homes Ltd,M27C,Adult Social Care Operations,Supplies and Services,"3,985.71",Mar-23
Slough Borough Council,3001,Langley Haven Care Homes Ltd,M27C,Adult Social Care Operations,Supplies and Services,"3,985.71",Mar-23
Slough Borough Council,3001,Langley Haven Care Homes Ltd,M27C,Adult Social Care Operations,Supplies and Services,"3,985.71",Mar-23
Slough Borough Council,3001,Langley Haven Care Homes Ltd,M27F,Adult Social Care Operations,Supplies and Services,"2,081.07",Mar-23
Slough Borough Council,3001,Langley Haven Care Homes Ltd,M27F,Adult Social Care Operations,Supplies and Services,"4,407.00",Mar-23
Slough Borough Council,3001,Langley Haven Care Homes Ltd,M27F,Adult Social Care Operations,Supplies and Services,"3,985.71",Mar-23
Slough Borough Council,3001,Langley Haven Care Homes Ltd,M27F,Adult Social Care Operations,Supplies and Services,"3,985.71",Mar-23
Slough Borough Council,3001,Langley Haven Care Homes Ltd,M27F,Adult Social Care Operations,Supplies and Services,"3,985.71",Mar-23
Slough Borough Council,3001,Langley Haven Care Homes Ltd,M27F,Adult Social Care Operations,Supplies and Services,"3,985.71",Mar-23
Slough Borough Council,3001,Langley Haven Care Homes Ltd,M28C,Adult Social Care Operations,Supplies and Services,"2,700.00",Mar-23
Slough Borough Council,3001,Langley Haven Care Homes Ltd,M29C,Adult Social Care Operations,Supplies and Services,"3,985.71",Mar-23
Slough Borough Council,3001,Langley Haven Care Homes Ltd,M29C,Adult Social Care Operations,Supplies and Services,"1,542.86",Mar-23
Slough Borough Council,3001,Langley Haven Care Homes Ltd,M29C,Adult Social Care Operations,Supplies and Services,"2,057.14",Mar-23
Slough Borough Council,3001,Langley Haven Care Homes Ltd,M29C,Adult Social Care Operations,Supplies and Services,"3,600.00",Mar-23
Slough Borough Council,803686,Lascelles Park Nursery,F909,Children & Families,Supplies and Services,690.00,Mar-23
Slough Borough Council,803686,Lascelles Park Nursery,F909,Children & Families,Supplies and Services,"3,069.90",Mar-23
Slough Borough Council,803686,Lascelles Park Nursery,F909,Children & Families,Supplies and Services,"17,502.15",Mar-23
Slough Borough Council,1077,Lavat Consulting Limited,B015,Finance & Commercial,Supplies and Services,"5,400.00",Mar-23
Slough Borough Council,1077,Lavat Consulting Limited,B015,Finance & Commercial,Supplies and Services,"21,600.00",Mar-23
Slough Borough Council,1077,Lavat Consulting Limited,B015,Finance & Commercial,Supplies and Services,"1,000.00",Mar-23
Slough Borough Council,808111,Learning Curve Group Ltd,F210,Community,TP-Other Bodies,"30,287.47",Mar-23
Slough Borough Council,3482,Leonard Cheshire Disability,M26E,Adult Social Care Operations,Supplies and Services,"5,943.16",Mar-23
Slough Borough Council,301,Liberata Uk Limited,B048,Finance & Commercial,Supplies and Services,"9,074.30",Mar-23
Slough Borough Council,301,Liberata Uk Limited,B048,Finance & Commercial,Supplies and Services,"8,968.90",Mar-23
Slough Borough Council,808796,Lightsave Ltd,B061,Business Services,Supplies and Services,944.00,Mar-23
Slough Borough Council,808796,Lightsave Ltd,B061,Business Services,Supplies and Services,"1,588.64",Mar-23
Slough Borough Council,808796,Lightsave Ltd,B061,Business Services,Supplies and Services,"3,453.92",Mar-23
Slough Borough Council,804692,Little Diamonds Pre School,F909,Children & Families,Supplies and Services,"53,618.43",Mar-23
Slough Borough Council,804692,Little Diamonds Pre School,F909,Children & Families,Supplies and Services,"20,118.04",Mar-23
Slough Borough Council,3791,Littledown Pru,E610,Children & Families,Supplies and Services,"17,250.00",Mar-23
Slough Borough Council,667,Littledown School,E610,Children & Families,Supplies and Services,"88,560.87",Mar-23
Slough Borough Council,4017,Local Government Information Unit(Lgiu),B203,Finance & Commercial,Supplies and Services,"5,650.00",Mar-23
Slough Borough Council,804544,London Borough of Harrow,B096,Democratic Services,Indirect Employee Expenses,"115,534.63",Mar-23
Slough Borough Council,804544,London Borough of Harrow,B096,Democratic Services,Indirect Employee Expenses,"116,980.77",Mar-23
Slough Borough Council,804544,London Borough of Harrow,H254,Place Regulation,Supplies and Services,"54,183.66",Mar-23
Slough Borough Council,1282,Long Close School,F909,Children & Families,Supplies and Services,"1,663.30",Mar-23
Slough Borough Council,1282,Long Close School,F909,Children & Families,Supplies and Services,"7,247.98",Mar-23
Slough Borough Council,2302,Look Ahead Care And Support,H211,People Adults,Supplies and Services,"13,982.80",Mar-23
Slough Borough Council,2302,Look Ahead Care And Support,H211,People Adults,Supplies and Services,816.68,Mar-23
Slough Borough Council,2302,Look Ahead Care And Support,H211,People Adults,Supplies and Services,556.19,Mar-23
Slough Borough Council,2302,Look Ahead Care And Support,H211,People Adults,Supplies and Services,"13,982.80",Mar-23
Slough Borough Council,2302,Look Ahead Care And Support,H211,People Adults,Supplies and Services,816.68,Mar-23
Slough Borough Council,2302,Look Ahead Care And Support,H211,People Adults,Supplies and Services,556.19,Mar-23
Slough Borough Council,2302,Look Ahead Care And Support,H211,People Adults,Supplies and Services,"13,982.80",Mar-23
Slough Borough Council,2302,Look Ahead Care And Support,H211,People Adults,Supplies and Services,816.68,Mar-23
Slough Borough Council,2302,Look Ahead Care And Support,H211,People Adults,Supplies and Services,556.19,Mar-23
Slough Borough Council,2302,Look Ahead Care And Support,H211,People Adults,Supplies and Services,"13,982.80",Mar-23
Slough Borough Council,2302,Look Ahead Care And Support,H211,People Adults,Supplies and Services,816.68,Mar-23
Slough Borough Council,2302,Look Ahead Care And Support,H211,People Adults,Supplies and Services,"1,633.80",Mar-23
Slough Borough Council,2302,Look Ahead Care And Support,M42F,Adult Social Care Operations,Supplies and Services,"28,184.58",Mar-23
Slough Borough Council,2302,Look Ahead Care And Support,M42F,Adult Social Care Operations,Supplies and Services,"1,715.57",Mar-23
Slough Borough Council,2302,Look Ahead Care And Support,M42F,Adult Social Care Operations,Supplies and Services,"25,457.04",Mar-23
Slough Borough Council,2302,Look Ahead Care And Support,M42F,Adult Social Care Operations,Supplies and Services,"1,633.40",Mar-23
Slough Borough Council,2302,Look Ahead Care And Support,M42F,Adult Social Care Operations,Supplies and Services,"1,808.41",Mar-23
Slough Borough Council,2302,Look Ahead Care And Support,M42F,Adult Social Care Operations,Supplies and Services,"6,820.27",Mar-23
Slough Borough Council,2302,Look Ahead Care And Support,M42F,Adult Social Care Operations,Supplies and Services,"8,808.69",Mar-23
Slough Borough Council,2302,Look Ahead Care And Support,M42F,Adult Social Care Operations,Supplies and Services,808.41,Mar-23
Slough Borough Council,2302,Look Ahead Care And Support,M44D,Adult Social Care Operations,Supplies and Services,"2,828.56",Mar-23
Slough Borough Council,2302,Look Ahead Care And Support,M44F,Adult Social Care Operations,Supplies and Services,819.29,Mar-23
Slough Borough Council,2302,Look Ahead Care And Support,M44F,Adult Social Care Operations,Supplies and Services,"1,808.41",Mar-23
Slough Borough Council,2302,Look Ahead Care And Support,M44F,Adult Social Care Operations,Supplies and Services,"1,808.85",Mar-23
Slough Borough Council,2302,Look Ahead Care And Support,M44F,Adult Social Care Operations,Supplies and Services,"1,808.41",Mar-23
Slough Borough Council,2302,Look Ahead Care And Support,M44F,Adult Social Care Operations,Supplies and Services,"1,565.81",Mar-23
Slough Borough Council,2302,Look Ahead Care And Support,M44F,Adult Social Care Operations,Supplies and Services,"1,567.71",Mar-23
Slough Borough Council,2302,Look Ahead Care And Support,M44F,Adult Social Care Operations,Supplies and Services,"1,808.41",Mar-23
Slough Borough Council,2302,Look Ahead Care And Support,M44F,Adult Social Care Operations,Supplies and Services,"1,567.71",Mar-23
Slough Borough Council,2302,Look Ahead Care And Support,M44F,Adult Social Care Operations,Supplies and Services,"1,565.81",Mar-23
Slough Borough Council,2302,Look Ahead Care And Support,M44F,Adult Social Care Operations,Supplies and Services,"1,567.71",Mar-23
Slough Borough Council,2302,Look Ahead Care And Support,M44F,Adult Social Care Operations,Supplies and Services,"1,414.28",Mar-23
Slough Borough Council,2302,Look Ahead Care And Support,M44F,Adult Social Care Operations,Supplies and Services,"3,131.62",Mar-23
Slough Borough Council,2302,Look Ahead Care And Support,M44F,Adult Social Care Operations,Supplies and Services,-590.78,Mar-23
Slough Borough Council,2302,Look Ahead Care And Support,M44F,Adult Social Care Operations,Supplies and Services,"1,750.07",Mar-23
Slough Borough Council,2302,Look Ahead Care And Support,M44F,Adult Social Care Operations,Supplies and Services,"1,517.14",Mar-23
Slough Borough Council,2302,Look Ahead Care And Support,M44F,Adult Social Care Operations,Supplies and Services,"1,515.30",Mar-23
Slough Borough Council,2302,Look Ahead Care And Support,M44F,Adult Social Care Operations,Supplies and Services,"1,517.14",Mar-23
Slough Borough Council,2302,Look Ahead Care And Support,M44F,Adult Social Care Operations,Supplies and Services,"1,025.54",Mar-23
Slough Borough Council,2302,Look Ahead Care And Support,M44F,Adult Social Care Operations,Supplies and Services,792.86,Mar-23
Slough Borough Council,2302,Look Ahead Care And Support,M44F,Adult Social Care Operations,Supplies and Services,"1,750.07",Mar-23
Slough Borough Council,2302,Look Ahead Care And Support,M44F,Adult Social Care Operations,Supplies and Services,"1,750.50",Mar-23
Slough Borough Council,2302,Look Ahead Care And Support,M44F,Adult Social Care Operations,Supplies and Services,"1,750.07",Mar-23
Slough Borough Council,2302,Look Ahead Care And Support,M44F,Adult Social Care Operations,Supplies and Services,"1,515.30",Mar-23
Slough Borough Council,2302,Look Ahead Care And Support,M44F,Adult Social Care Operations,Supplies and Services,"1,517.14",Mar-23
Slough Borough Council,2302,Look Ahead Care And Support,M44F,Adult Social Care Operations,Supplies and Services,"1,414.28",Mar-23
Slough Borough Council,2302,Look Ahead Care And Support,M44F,Adult Social Care Operations,Supplies and Services,819.29,Mar-23
Slough Borough Council,2302,Look Ahead Care And Support,M44F,Adult Social Care Operations,Supplies and Services,"1,808.41",Mar-23
Slough Borough Council,2302,Look Ahead Care And Support,M44F,Adult Social Care Operations,Supplies and Services,"1,808.41",Mar-23
Slough Borough Council,2302,Look Ahead Care And Support,M44F,Adult Social Care Operations,Supplies and Services,"3,131.75",Mar-23
Slough Borough Council,2302,Look Ahead Care And Support,M44F,Adult Social Care Operations,Supplies and Services,"1,565.81",Mar-23
Slough Borough Council,2302,Look Ahead Care And Support,M44F,Adult Social Care Operations,Supplies and Services,"1,567.71",Mar-23
Slough Borough Council,2302,Look Ahead Care And Support,M44F,Adult Social Care Operations,Supplies and Services,"1,808.41",Mar-23
Slough Borough Council,2302,Look Ahead Care And Support,M44F,Adult Social Care Operations,Supplies and Services,"1,567.71",Mar-23
Slough Borough Council,2302,Look Ahead Care And Support,M44F,Adult Social Care Operations,Supplies and Services,"1,565.81",Mar-23
Slough Borough Council,2302,Look Ahead Care And Support,M44F,Adult Social Care Operations,Supplies and Services,"1,567.71",Mar-23
Slough Borough Council,2302,Look Ahead Care And Support,M44F,Adult Social Care Operations,Supplies and Services,819.29,Mar-23
Slough Borough Council,2302,Look Ahead Care And Support,M44F,Adult Social Care Operations,Supplies and Services,"1,808.41",Mar-23
Slough Borough Council,2302,Look Ahead Care And Support,M44F,Adult Social Care Operations,Supplies and Services,"1,808.85",Mar-23
Slough Borough Council,2302,Look Ahead Care And Support,M44F,Adult Social Care Operations,Supplies and Services,"1,808.41",Mar-23
Slough Borough Council,2302,Look Ahead Care And Support,M44F,Adult Social Care Operations,Supplies and Services,"1,038.02",Mar-23
Slough Borough Council,2302,Look Ahead Care And Support,M44F,Adult Social Care Operations,Supplies and Services,"1,565.81",Mar-23
Slough Borough Council,2302,Look Ahead Care And Support,M44F,Adult Social Care Operations,Supplies and Services,"1,567.71",Mar-23
Slough Borough Council,2302,Look Ahead Care And Support,M44F,Adult Social Care Operations,Supplies and Services,"1,808.41",Mar-23
Slough Borough Council,2302,Look Ahead Care And Support,M44F,Adult Social Care Operations,Supplies and Services,"1,567.71",Mar-23
Slough Borough Council,2302,Look Ahead Care And Support,M44F,Adult Social Care Operations,Supplies and Services,"1,565.81",Mar-23
Slough Borough Council,2302,Look Ahead Care And Support,M44F,Adult Social Care Operations,Supplies and Services,"1,567.71",Mar-23
Slough Borough Council,2302,Look Ahead Care And Support,M44F,Adult Social Care Operations,Supplies and Services,"1,416.00",Mar-23
Slough Borough Council,2302,Look Ahead Care And Support,M44F,Adult Social Care Operations,Supplies and Services,"1,414.28",Mar-23
Slough Borough Council,2302,Look Ahead Care And Support,M44F,Adult Social Care Operations,Supplies and Services,"1,416.00",Mar-23
Slough Borough Council,2302,Look Ahead Care And Support,M44F,Adult Social Care Operations,Supplies and Services,740.00,Mar-23
Slough Borough Council,2302,Look Ahead Care And Support,M44F,Adult Social Care Operations,Supplies and Services,"1,633.40",Mar-23
Slough Borough Council,2302,Look Ahead Care And Support,M44F,Adult Social Care Operations,Supplies and Services,"1,633.40",Mar-23
Slough Borough Council,2302,Look Ahead Care And Support,M44F,Adult Social Care Operations,Supplies and Services,"2,828.68",Mar-23
Slough Borough Council,2302,Look Ahead Care And Support,M44F,Adult Social Care Operations,Supplies and Services,"1,414.28",Mar-23
Slough Borough Council,2302,Look Ahead Care And Support,M44F,Adult Social Care Operations,Supplies and Services,"1,416.00",Mar-23
Slough Borough Council,2302,Look Ahead Care And Support,M44F,Adult Social Care Operations,Supplies and Services,"1,633.40",Mar-23
Slough Borough Council,2302,Look Ahead Care And Support,M44F,Adult Social Care Operations,Supplies and Services,"1,750.50",Mar-23
Slough Borough Council,2302,Look Ahead Care And Support,M44F,Adult Social Care Operations,Supplies and Services,"1,808.85",Mar-23
Slough Borough Council,2302,Look Ahead Care And Support,M44F,Adult Social Care Operations,Supplies and Services,"1,808.41",Mar-23
Slough Borough Council,2302,Look Ahead Care And Support,M44F,Adult Social Care Operations,Supplies and Services,565.81,Mar-23
Slough Borough Council,2302,Look Ahead Care And Support,M44F,Adult Social Care Operations,Supplies and Services,"1,567.71",Mar-23
Slough Borough Council,2302,Look Ahead Care And Support,M44F,Adult Social Care Operations,Supplies and Services,622.46,Mar-23
Slough Borough Council,2302,Look Ahead Care And Support,M44F,Adult Social Care Operations,Supplies and Services,"1,567.71",Mar-23
Slough Borough Council,2302,Look Ahead Care And Support,M44F,Adult Social Care Operations,Supplies and Services,"1,565.81",Mar-23
Slough Borough Council,2302,Look Ahead Care And Support,M44F,Adult Social Care Operations,Supplies and Services,"1,567.71",Mar-23
Slough Borough Council,2302,Look Ahead Care And Support,M44F,Adult Social Care Operations,Supplies and Services,819.29,Mar-23
Slough Borough Council,2302,Look Ahead Care And Support,M44F,Adult Social Care Operations,Supplies and Services,"1,808.41",Mar-23
Slough Borough Council,2302,Look Ahead Care And Support,M44F,Adult Social Care Operations,Supplies and Services,675.44,Mar-23
Slough Borough Council,2302,Look Ahead Care And Support,M44F,Adult Social Care Operations,Supplies and Services,"8,487.44",Mar-23
Slough Borough Council,2302,Look Ahead Care And Support,M44F,Adult Social Care Operations,Supplies and Services,"3,004.95",Mar-23
Slough Borough Council,2302,Look Ahead Care And Support,M44F,Adult Social Care Operations,Supplies and Services,"9,243.33",Mar-23
Slough Borough Council,2302,Look Ahead Care And Support,M44F,Adult Social Care Operations,Supplies and Services,"9,254.57",Mar-23
Slough Borough Council,2302,Look Ahead Care And Support,M44F,Adult Social Care Operations,Supplies and Services,"10,675.44",Mar-23
Slough Borough Council,2302,Look Ahead Care And Support,M44F,Adult Social Care Operations,Supplies and Services,"1,575.10",Mar-23
Slough Borough Council,2302,Look Ahead Care And Support,M44F,Adult Social Care Operations,Supplies and Services,"9,254.57",Mar-23
Slough Borough Council,2302,Look Ahead Care And Support,M44F,Adult Social Care Operations,Supplies and Services,"9,243.33",Mar-23
Slough Borough Council,2302,Look Ahead Care And Support,M44F,Adult Social Care Operations,Supplies and Services,"9,254.57",Mar-23
Slough Borough Council,2302,Look Ahead Care And Support,M44F,Adult Social Care Operations,Supplies and Services,678.05,Mar-23
Slough Borough Council,2302,Look Ahead Care And Support,M44F,Adult Social Care Operations,Supplies and Services,"4,836.43",Mar-23
Slough Borough Council,2302,Look Ahead Care And Support,M44F,Adult Social Care Operations,Supplies and Services,"10,675.44",Mar-23
Slough Borough Council,2302,Look Ahead Care And Support,M44F,Adult Social Care Operations,Supplies and Services,"10,678.05",Mar-23
Slough Borough Council,2302,Look Ahead Care And Support,M44F,Adult Social Care Operations,Supplies and Services,"3,810.85",Mar-23
Slough Borough Council,2302,Look Ahead Care And Support,M44F,Adult Social Care Operations,Supplies and Services,"3,990.71",Mar-23
Slough Borough Council,2302,Look Ahead Care And Support,M44F,Adult Social Care Operations,Supplies and Services,"3,808.69",Mar-23
Slough Borough Council,2302,Look Ahead Care And Support,M44F,Adult Social Care Operations,Supplies and Services,"4,984.84",Mar-23
Slough Borough Council,2302,Look Ahead Care And Support,M44F,Adult Social Care Operations,Supplies and Services,"3,808.69",Mar-23
Slough Borough Council,2302,Look Ahead Care And Support,M44F,Adult Social Care Operations,Supplies and Services,"3,838.92",Mar-23
Slough Borough Council,2302,Look Ahead Care And Support,M44F,Adult Social Care Operations,Supplies and Services,"4,405.32",Mar-23
Slough Borough Council,2302,Look Ahead Care And Support,M44F,Adult Social Care Operations,Supplies and Services,"7,636.29",Mar-23
Slough Borough Council,2302,Look Ahead Care And Support,M44F,Adult Social Care Operations,Supplies and Services,"3,808.69",Mar-23
Slough Borough Council,2302,Look Ahead Care And Support,M44F,Adult Social Care Operations,Supplies and Services,612.51,Mar-23
Slough Borough Council,2302,Look Ahead Care And Support,M44F,Adult Social Care Operations,Supplies and Services,"5,337.59",Mar-23
Slough Borough Council,2302,Look Ahead Care And Support,M44F,Adult Social Care Operations,Supplies and Services,"4,404.24",Mar-23
Slough Borough Council,2302,Look Ahead Care And Support,M44F,Adult Social Care Operations,Supplies and Services,"4,404.45",Mar-23
Slough Borough Council,2302,Look Ahead Care And Support,M44F,Adult Social Care Operations,Supplies and Services,"7,636.29",Mar-23
Slough Borough Council,2302,Look Ahead Care And Support,M44F,Adult Social Care Operations,Supplies and Services,"7,627.01",Mar-23
Slough Borough Council,2302,Look Ahead Care And Support,M44F,Adult Social Care Operations,Supplies and Services,"7,636.29",Mar-23
Slough Borough Council,2302,Look Ahead Care And Support,M44F,Adult Social Care Operations,Supplies and Services,"1,808.41",Mar-23
Slough Borough Council,2302,Look Ahead Care And Support,M44F,Adult Social Care Operations,Supplies and Services,904.40,Mar-23
Slough Borough Council,2302,Look Ahead Care And Support,M44F,Adult Social Care Operations,Supplies and Services,"1,567.71",Mar-23
Slough Borough Council,2302,Look Ahead Care And Support,M44F,Adult Social Care Operations,Supplies and Services,"1,808.41",Mar-23
Slough Borough Council,2302,Look Ahead Care And Support,M44F,Adult Social Care Operations,Supplies and Services,904.18,Mar-23
Slough Borough Council,2302,Look Ahead Care And Support,M44F,Adult Social Care Operations,Supplies and Services,904.23,Mar-23
Slough Borough Council,2302,Look Ahead Care And Support,M44F,Adult Social Care Operations,Supplies and Services,"1,567.71",Mar-23
Slough Borough Council,2302,Look Ahead Care And Support,M44F,Adult Social Care Operations,Supplies and Services,"1,565.81",Mar-23
Slough Borough Council,2302,Look Ahead Care And Support,M44F,Adult Social Care Operations,Supplies and Services,"1,808.85",Mar-23
Slough Borough Council,2302,Look Ahead Care And Support,M44F,Adult Social Care Operations,Supplies and Services,819.29,Mar-23
Slough Borough Council,2302,Look Ahead Care And Support,M44F,Adult Social Care Operations,Supplies and Services,"1,808.41",Mar-23
Slough Borough Council,2302,Look Ahead Care And Support,M44F,Adult Social Care Operations,Supplies and Services,808.85,Mar-23
Slough Borough Council,807659,Looking Local Ltd,A106,Customer Services,Supplies and Services,"14,000.00",Mar-23
Slough Borough Council,1195,Lynch Hill (Foundation Primary) School,E620,Children & Families,Supplies and Services,"25,228.22",Mar-23
Slough Borough Council,290,Lyreco Uk Limited,A106,Customer Services,Supplies and Services,669.00,Mar-23
Slough Borough Council,290,Lyreco Uk Limited,A106,Customer Services,Supplies and Services,529.74,Mar-23
Slough Borough Council,3424,M D Homes,M15F,Adult Social Care Operations,Supplies and Services,"5,115.00",Mar-23
Slough Borough Council,807217,Macadamia Support Limited,M42E,Adult Social Care Operations,Supplies and Services,"1,609.71",Mar-23
Slough Borough Council,807217,Macadamia Support Limited,M42E,Adult Social Care Operations,Supplies and Services,"-51,081.79",Mar-23
Slough Borough Council,807217,Macadamia Support Limited,M42E,Adult Social Care Operations,Supplies and Services,"51,081.79",Mar-23
Slough Borough Council,807217,Macadamia Support Limited,M42E,Adult Social Care Operations,Supplies and Services,"6,931.20",Mar-23
Slough Borough Council,807217,Macadamia Support Limited,M42E,Adult Social Care Operations,Supplies and Services,"5,269.71",Mar-23
Slough Borough Council,807217,Macadamia Support Limited,M42E,Adult Social Care Operations,Supplies and Services,"3,973.20",Mar-23
Slough Borough Council,807217,Macadamia Support Limited,M42E,Adult Social Care Operations,Supplies and Services,"9,373.00",Mar-23
Slough Borough Council,807217,Macadamia Support Limited,M42E,Adult Social Care Operations,Supplies and Services,"7,308.00",Mar-23
Slough Borough Council,807217,Macadamia Support Limited,M42E,Adult Social Care Operations,Supplies and Services,"3,589.12",Mar-23
Slough Borough Council,807217,Macadamia Support Limited,M42E,Adult Social Care Operations,Supplies and Services,"3,973.20",Mar-23
Slough Borough Council,807217,Macadamia Support Limited,M42E,Adult Social Care Operations,Supplies and Services,"6,931.20",Mar-23
Slough Borough Council,807217,Macadamia Support Limited,M42E,Adult Social Care Operations,Supplies and Services,"9,373.00",Mar-23
Slough Borough Council,807217,Macadamia Support Limited,M42E,Adult Social Care Operations,Supplies and Services,"1,609.71",Mar-23
Slough Borough Council,807217,Macadamia Support Limited,M42E,Adult Social Care Operations,Supplies and Services,"3,589.12",Mar-23
Slough Borough Council,807217,Macadamia Support Limited,M44C,Adult Social Care Operations,Supplies and Services,"3,591.56",Mar-23
Slough Borough Council,807217,Macadamia Support Limited,M44C,Adult Social Care Operations,Supplies and Services,"3,591.56",Mar-23
Slough Borough Council,807217,Macadamia Support Limited,M44D,Adult Social Care Operations,Supplies and Services,"5,523.00",Mar-23
Slough Borough Council,807217,Macadamia Support Limited,M44D,Adult Social Care Operations,Supplies and Services,"5,523.00",Mar-23
Slough Borough Council,807217,Macadamia Support Limited,M44D,Adult Social Care Operations,Supplies and Services,"5,523.00",Mar-23
Slough Borough Council,1874,Maccabee Pets Hotel,H253,Community,Supplies and Services,"1,848.00",Mar-23
Slough Borough Council,1874,Maccabee Pets Hotel,H253,Community,Supplies and Services,"2,464.00",Mar-23
Slough Borough Council,1874,Maccabee Pets Hotel,H253,Community,Supplies and Services,"1,860.00",Mar-23
Slough Borough Council,1874,Maccabee Pets Hotel,H253,Community,Supplies and Services,"2,660.00",Mar-23
Slough Borough Council,1395,Manage4U Chartered Surveyors,P242,Capital,Capital Charges,"3,000.00",Mar-23
Slough Borough Council,1941,Manor Green School,F449,Education & Inclusion,Supplies and Services,"1,653.75",Mar-23
Slough Borough Council,1941,Manor Green School,F551,Children & Families,Supplies and Services,"15,490.00",Mar-23
Slough Borough Council,1941,Manor Green School,F551,Children & Families,Supplies and Services,"28,401.50",Mar-23
Slough Borough Council,3768,Marish Academy Trust,B191,Business Services,Premises,"3,454.00",Mar-23
Slough Borough Council,3768,Marish Academy Trust,B191,Business Services,Premises,"5,392.17",Mar-23
Slough Borough Council,529,Marish Primary School,E620,Children & Families,Supplies and Services,"98,364.79",Mar-23
Slough Borough Council,1886,Matrix Scm,B023,Finance & Commercial,Agency Staff,"552,223.21",Mar-23
Slough Borough Council,1886,Matrix Scm,B023,Finance & Commercial,Agency Staff,"566,165.42",Mar-23
Slough Borough Council,1886,Matrix Scm,B023,Finance & Commercial,Agency Staff,"459,714.50",Mar-23
Slough Borough Council,807684,Maverick Care  Ltd T/A Christies Care Windsor & Maidenhead,M44C,Adult Social Care Operations,Supplies and Services,"2,524.50",Mar-23
Slough Borough Council,807684,Maverick Care  Ltd T/A Christies Care Windsor & Maidenhead,M44D,Adult Social Care Operations,Supplies and Services,"2,448.00",Mar-23
Slough Borough Council,2237,Metts Ltd,M50A,Place Operations,Transport,"1,435.57",Mar-23
Slough Borough Council,2237,Metts Ltd,M50A,Place Operations,Transport,575.40,Mar-23
Slough Borough Council,2237,Metts Ltd,M50A,Place Operations,Transport,561.52,Mar-23
Slough Borough Council,1496,Mighty Acorns Day Nursery Ltd,F909,Children & Families,Supplies and Services,720.00,Mar-23
Slough Borough Council,1496,Mighty Acorns Day Nursery Ltd,F909,Children & Families,Supplies and Services,"13,642.99",Mar-23
Slough Borough Council,808571,Miguel MaTu LTD,F146,Children & Families,Indirect Employee Expenses,924.00,Mar-23
Slough Borough Council,808716,Mini Todds Ltd,F909,Children & Families,Supplies and Services,"1,306.80",Mar-23
Slough Borough Council,808145,Miss Agnieszka Mostowy,F123,Education & Inclusion,Supplies and Services,596.25,Mar-23
Slough Borough Council,805121,MMCG (2) Limited,A02E,Adult Social Care Operations,Supplies and Services,"2,267.46",Mar-23
Slough Borough Council,805121,MMCG (2) Limited,A02E,Adult Social Care Operations,Supplies and Services,"3,341.52",Mar-23
Slough Borough Council,805121,MMCG (2) Limited,A02E,Adult Social Care Operations,Supplies and Services,"1,312.74",Mar-23
Slough Borough Council,805121,MMCG (2) Limited,A03E,Adult Social Care Operations,Supplies and Services,"4,121.24",Mar-23
Slough Borough Council,805121,MMCG (2) Limited,A03E,Adult Social Care Operations,Supplies and Services,"2,474.01",Mar-23
Slough Borough Council,805121,MMCG (2) Limited,M15D,Adult Social Care Operations,Supplies and Services,"3,341.52",Mar-23
Slough Borough Council,805121,MMCG (2) Limited,M15D,Adult Social Care Operations,Supplies and Services,"3,341.52",Mar-23
Slough Borough Council,805121,MMCG (2) Limited,M15D,Adult Social Care Operations,Supplies and Services,"3,341.52",Mar-23
Slough Borough Council,805121,MMCG (2) Limited,M15F,Adult Social Care Operations,Supplies and Services,"1,620.00",Mar-23
Slough Borough Council,805121,MMCG (2) Limited,M15F,Adult Social Care Operations,Supplies and Services,"3,341.52",Mar-23
Slough Borough Council,805121,MMCG (2) Limited,M15F,Adult Social Care Operations,Supplies and Services,"2,560.36",Mar-23
Slough Borough Council,805121,MMCG (2) Limited,M17C,Adult Social Care Operations,Supplies and Services,"3,341.52",Mar-23
Slough Borough Council,805121,MMCG (2) Limited,M17C,Adult Social Care Operations,Supplies and Services,"4,121.24",Mar-23
Slough Borough Council,805121,MMCG (2) Limited,M17C,Adult Social Care Operations,Supplies and Services,"3,341.52",Mar-23
Slough Borough Council,805121,MMCG (2) Limited,M17C,Adult Social Care Operations,Supplies and Services,"1,790.10",Mar-23
Slough Borough Council,805121,MMCG (2) Limited,M17C,Adult Social Care Operations,Supplies and Services,"3,341.52",Mar-23
Slough Borough Council,805121,MMCG (2) Limited,M17C,Adult Social Care Operations,Supplies and Services,"3,341.52",Mar-23
Slough Borough Council,805121,MMCG (2) Limited,M18C,Adult Social Care Operations,Supplies and Services,"3,341.52",Mar-23
Slough Borough Council,805121,MMCG (2) Limited,M18C,Adult Social Care Operations,Supplies and Services,"3,341.52",Mar-23
Slough Borough Council,805121,MMCG (2) Limited,M18C,Adult Social Care Operations,Supplies and Services,"3,341.52",Mar-23
Slough Borough Council,805121,MMCG (2) Limited,M18C,Adult Social Care Operations,Supplies and Services,"-3,699.54",Mar-23
Slough Borough Council,805121,MMCG (2) Limited,M18C,Adult Social Care Operations,Supplies and Services,"4,121.24",Mar-23
Slough Borough Council,805121,MMCG (2) Limited,M18C,Adult Social Care Operations,Supplies and Services,"4,121.24",Mar-23
Slough Borough Council,805121,MMCG (2) Limited,M18C,Adult Social Care Operations,Supplies and Services,"-2,267.46",Mar-23
Slough Borough Council,805121,MMCG (2) Limited,M18C,Adult Social Care Operations,Supplies and Services,"3,341.52",Mar-23
Slough Borough Council,805121,MMCG (2) Limited,M18C,Adult Social Care Operations,Supplies and Services,"3,787.04",Mar-23
Slough Borough Council,805121,MMCG (2) Limited,M18C,Adult Social Care Operations,Supplies and Services,"3,341.52",Mar-23
Slough Borough Council,805121,MMCG (2) Limited,M18C,Adult Social Care Operations,Supplies and Services,"3,699.54",Mar-23
Slough Borough Council,805121,MMCG (2) Limited,M18C,Adult Social Care Operations,Supplies and Services,"3,102.84",Mar-23
Slough Borough Council,805121,MMCG (2) Limited,M18C,Adult Social Care Operations,Supplies and Services,"3,580.20",Mar-23
Slough Borough Council,805121,MMCG (2) Limited,M18C,Adult Social Care Operations,Supplies and Services,"3,699.54",Mar-23
Slough Borough Council,805121,MMCG (2) Limited,M25C,Adult Social Care Operations,Supplies and Services,"3,341.52",Mar-23
Slough Borough Council,805121,MMCG (2) Limited,M25C,Adult Social Care Operations,Supplies and Services,"3,341.52",Mar-23
Slough Borough Council,805121,MMCG (2) Limited,M25C,Adult Social Care Operations,Supplies and Services,"3,341.52",Mar-23
Slough Borough Council,805121,MMCG (2) Limited,M25C,Adult Social Care Operations,Supplies and Services,"3,341.52",Mar-23
Slough Borough Council,805121,MMCG (2) Limited,M25C,Adult Social Care Operations,Supplies and Services,"3,341.52",Mar-23
Slough Borough Council,805121,MMCG (2) Limited,M26D,Adult Social Care Operations,Supplies and Services,"2,028.78",Mar-23
Slough Borough Council,805121,MMCG (2) Limited,M26D,Adult Social Care Operations,Supplies and Services,"3,699.54",Mar-23
Slough Borough Council,805121,MMCG (2) Limited,M27C,Adult Social Care Operations,Supplies and Services,"3,341.52",Mar-23
Slough Borough Council,805121,MMCG (2) Limited,M27C,Adult Social Care Operations,Supplies and Services,"3,341.52",Mar-23
Slough Borough Council,805121,MMCG (2) Limited,M27C,Adult Social Care Operations,Supplies and Services,"3,341.52",Mar-23
Slough Borough Council,805121,MMCG (2) Limited,M27C,Adult Social Care Operations,Supplies and Services,"3,341.52",Mar-23
Slough Borough Council,805121,MMCG (2) Limited,M27C,Adult Social Care Operations,Supplies and Services,"3,341.52",Mar-23
Slough Borough Council,805121,MMCG (2) Limited,M27C,Adult Social Care Operations,Supplies and Services,"3,341.52",Mar-23
Slough Borough Council,805121,MMCG (2) Limited,M28C,Adult Social Care Operations,Supplies and Services,"3,580.20",Mar-23
Slough Borough Council,805121,MMCG (2) Limited,M28C,Adult Social Care Operations,Supplies and Services,"3,699.54",Mar-23
Slough Borough Council,804815,Molly Southall,C322,Community,Supplies and Services,"1,150.50",Mar-23
Slough Borough Council,2115,Montagu Evans Llp,P242,Capital,Capital Charges,"9,888.14",Mar-23
Slough Borough Council,3970,Montem Academy,B297,Finance & Commercial,Government Grants,"3,324.00",Mar-23
Slough Borough Council,1140,Montem Guesthouse,H205,Housing (People) Services,Supplies and Services,"59,349.00",Mar-23
Slough Borough Council,3302,Montem Primary School,E620,Children & Families,Supplies and Services,"39,842.55",Mar-23
Slough Borough Council,3302,Montem Primary School,F002,Community,Government Grants,"1,000.00",Mar-23
Slough Borough Council,806484,Mrs Parwinder Kaur Bhandal,H205,Housing (People) Services,Supplies and Services,"2,911.00",Mar-23
Slough Borough Council,806484,Mrs Parwinder Kaur Bhandal,H205,Housing (People) Services,Supplies and Services,"4,340.00",Mar-23
Slough Borough Council,806484,Mrs Parwinder Kaur Bhandal,H205,Housing (People) Services,Supplies and Services,"7,420.00",Mar-23
Slough Borough Council,804936,Ms. Marinela Caldarus,F382,Children & Families,Supplies and Services,"3,247.75",Mar-23
Slough Borough Council,806858,MUDDY BOOTS DAY NURSERY LTD,F909,Children & Families,Supplies and Services,"12,314.10",Mar-23
Slough Borough Council,806858,MUDDY BOOTS DAY NURSERY LTD,F909,Children & Families,Supplies and Services,"7,313.33",Mar-23
Slough Borough Council,804927,My Safe Home Limited,P395,Capital,Capital Charges,"12,145.00",Mar-23
Slough Borough Council,1074,Ncfe,F210,Community,Supplies and Services,995.00,Mar-23
Slough Borough Council,808068,NEC Software Solutions UK Limited,J160,Place Management,Supplies and Services,"42,000.00",Mar-23
Slough Borough Council,1945,Neem Tree Care Ltd,M17C,Adult Social Care Operations,Supplies and Services,"3,255.84",Mar-23
Slough Borough Council,1216,Network Rail Infrastructure Ltd,D411,Place Strategy & Infrastructure,Supplies and Services,"4,101.04",Mar-23
Slough Borough Council,2469,Newlands Girls School,F552,Children & Families,Supplies and Services,"24,141.00",Mar-23
Slough Borough Council,601,Nfer Trading Ltd,C001,Place Operations,Premises,"9,853.80",Mar-23
Slough Borough Council,601,Nfer Trading Ltd,C001,Place Operations,Premises,"2,376.11",Mar-23
Slough Borough Council,601,Nfer Trading Ltd,C001,Place Operations,Premises,"1,441.16",Mar-23
Slough Borough Council,601,Nfer Trading Ltd,C001,Place Operations,Premises,"1,427.38",Mar-23
Slough Borough Council,808540,NHS Frimley ICB,H254,Place Regulation,Supplies and Services,"11,600.00",Mar-23
Slough Borough Council,1949,Nhs Supply Chain,A01P,Public Health,Supplies and Services,739.60,Mar-23
Slough Borough Council,1864,Noahs Ark Environmental Services Ltd,H253,Community,Supplies and Services,"2,886.47",Mar-23
Slough Borough Council,3717,Norwood Schools Limited,M26E,Adult Social Care Operations,Supplies and Services,"4,253.92",Mar-23
Slough Borough Council,3717,Norwood Schools Limited,M26E,Adult Social Care Operations,External Receipts,-641.20,Mar-23
Slough Borough Council,1343,Novacroft,D512,Place Strategy & Infrastructure,Supplies and Services,"5,735.14",Mar-23
Slough Borough Council,803238,Oasis Care and Training Agency,A07R,Adult Social Care Operations,Supplies and Services,790.75,Mar-23
Slough Borough Council,803238,Oasis Care and Training Agency,M44C,Adult Social Care Operations,Supplies and Services,962.64,Mar-23
Slough Borough Council,803238,Oasis Care and Training Agency,M44C,Adult Social Care Operations,Supplies and Services,722.00,Mar-23
Slough Borough Council,803238,Oasis Care and Training Agency,M44C,Adult Social Care Operations,Supplies and Services,"2,045.60",Mar-23
Slough Borough Council,803238,Oasis Care and Training Agency,M44C,Adult Social Care Operations,Supplies and Services,520.00,Mar-23
Slough Borough Council,803238,Oasis Care and Training Agency,M44C,Adult Social Care Operations,Supplies and Services,"1,082.96",Mar-23
Slough Borough Council,803238,Oasis Care and Training Agency,M44C,Adult Social Care Operations,Supplies and Services,722.00,Mar-23
Slough Borough Council,803238,Oasis Care and Training Agency,M44C,Adult Social Care Operations,Supplies and Services,"1,100.16",Mar-23
Slough Borough Council,803238,Oasis Care and Training Agency,M44C,Adult Social Care Operations,Supplies and Services,"1,151.72",Mar-23
Slough Borough Council,803238,Oasis Care and Training Agency,M44C,Adult Social Care Operations,Supplies and Services,"2,681.64",Mar-23
Slough Borough Council,803238,Oasis Care and Training Agency,M44C,Adult Social Care Operations,Supplies and Services,"2,784.80",Mar-23
Slough Borough Council,803238,Oasis Care and Training Agency,M44C,Adult Social Care Operations,Supplies and Services,"1,564.28",Mar-23
Slough Borough Council,803238,Oasis Care and Training Agency,M44C,Adult Social Care Operations,Supplies and Services,911.07,Mar-23
Slough Borough Council,803238,Oasis Care and Training Agency,M44C,Adult Social Care Operations,Supplies and Services,"1,564.28",Mar-23
Slough Borough Council,803238,Oasis Care and Training Agency,M44C,Adult Social Care Operations,Supplies and Services,601.64,Mar-23
Slough Borough Council,803238,Oasis Care and Training Agency,M44C,Adult Social Care Operations,Supplies and Services,"1,194.71",Mar-23
Slough Borough Council,803238,Oasis Care and Training Agency,M44C,Adult Social Care Operations,Supplies and Services,842.32,Mar-23
Slough Borough Council,803238,Oasis Care and Training Agency,M44C,Adult Social Care Operations,Supplies and Services,962.64,Mar-23
Slough Borough Council,803238,Oasis Care and Training Agency,M44C,Adult Social Care Operations,Supplies and Services,601.64,Mar-23
Slough Borough Council,803238,Oasis Care and Training Agency,M44C,Adult Social Care Operations,Supplies and Services,722.00,Mar-23
Slough Borough Council,803238,Oasis Care and Training Agency,M44C,Adult Social Care Operations,Supplies and Services,"2,045.60",Mar-23
Slough Borough Council,803238,Oasis Care and Training Agency,M44C,Adult Social Care Operations,Supplies and Services,739.16,Mar-23
Slough Borough Council,803238,Oasis Care and Training Agency,M44D,Adult Social Care Operations,Supplies and Services,859.52,Mar-23
Slough Borough Council,803238,Oasis Care and Training Agency,M44D,Adult Social Care Operations,Supplies and Services,842.32,Mar-23
Slough Borough Council,803238,Oasis Care and Training Agency,M44D,Adult Social Care Operations,Supplies and Services,"1,340.84",Mar-23
Slough Borough Council,803238,Oasis Care and Training Agency,M44D,Adult Social Care Operations,Supplies and Services,"2,165.96",Mar-23
Slough Borough Council,803238,Oasis Care and Training Agency,M44D,Adult Social Care Operations,Supplies and Services,979.84,Mar-23
Slough Borough Council,803238,Oasis Care and Training Agency,M44D,Adult Social Care Operations,Supplies and Services,670.40,Mar-23
Slough Borough Council,803238,Oasis Care and Training Agency,M44D,Adult Social Care Operations,Supplies and Services,"1,323.64",Mar-23
Slough Borough Council,803238,Oasis Care and Training Agency,M44D,Adult Social Care Operations,Supplies and Services,833.72,Mar-23
Slough Borough Council,803238,Oasis Care and Training Agency,M44D,Adult Social Care Operations,Supplies and Services,"2,165.96",Mar-23
Slough Borough Council,803238,Oasis Care and Training Agency,M44F,Adult Social Care Operations,Supplies and Services,"4,331.88",Mar-23
Slough Borough Council,803238,Oasis Care and Training Agency,M44F,Adult Social Care Operations,Supplies and Services,"1,375.20",Mar-23
Slough Borough Council,803238,Oasis Care and Training Agency,M44F,Adult Social Care Operations,Supplies and Services,"4,331.88",Mar-23
Slough Borough Council,803238,Oasis Care and Training Agency,M45C,Adult Social Care Operations,Supplies and Services,876.68,Mar-23
Slough Borough Council,803238,Oasis Care and Training Agency,M48C,Adult Social Care Operations,Supplies and Services,524.30,Mar-23
Slough Borough Council,1129,Ocean Media Group Ltd,J028,Place Management,Supplies and Services,555.00,Mar-23
Slough Borough Council,1767,Olive Tree Montessori Ltd,F909,Children & Families,Supplies and Services,720.00,Mar-23
Slough Borough Council,1767,Olive Tree Montessori Ltd,F909,Children & Families,Supplies and Services,"56,415.60",Mar-23
Slough Borough Council,1767,Olive Tree Montessori Ltd,F909,Children & Families,Supplies and Services,"20,439.93",Mar-23
Slough Borough Council,808738,Oliver Landpower Ltd,P178,Capital,Capital Charges,"218,780.80",Mar-23
Slough Borough Council,3603,Olympia Transport Limited,F123,Education & Inclusion,Supplies and Services,"1,692.00",Mar-23
Slough Borough Council,3603,Olympia Transport Limited,F123,Education & Inclusion,Supplies and Services,"10,471.71",Mar-23
Slough Borough Council,332,Olympic Workwear,B061,Business Services,Supplies and Services,"3,214.00",Mar-23
Slough Borough Council,804687,Optalis Limited,M42E,Adult Social Care Operations,Supplies and Services,"5,642.13",Mar-23
Slough Borough Council,804687,Optalis Limited,M42E,Adult Social Care Operations,Supplies and Services,"4,807.26",Mar-23
Slough Borough Council,803490,Optimum Specialised Home Limited,M26E,Adult Social Care Operations,Supplies and Services,"8,400.00",Mar-23
Slough Borough Council,803490,Optimum Specialised Home Limited,M26E,Adult Social Care Operations,Supplies and Services,"7,200.00",Mar-23
Slough Borough Council,803490,Optimum Specialised Home Limited,M26E,Adult Social Care Operations,Supplies and Services,"7,180.00",Mar-23
Slough Borough Council,805011,Osborne Property Services Limited,H206,Community,Premises,"7,083.32",Mar-23
Slough Borough Council,805011,Osborne Property Services Limited,H206,Community,Premises,"4,359.32",Mar-23
Slough Borough Council,805011,Osborne Property Services Limited,H206,Community,Premises,"2,442.51",Mar-23
Slough Borough Council,805011,Osborne Property Services Limited,H206,Community,Premises,"11,626.18",Mar-23
Slough Borough Council,805011,Osborne Property Services Limited,J606,Place Management,Supplies and Services,"116,169.61",Mar-23
Slough Borough Council,805011,Osborne Property Services Limited,J606,Place Management,Supplies and Services,"253,814.12",Mar-23
Slough Borough Council,805011,Osborne Property Services Limited,J607,Place Management,Premises,"50,402.94",Mar-23
Slough Borough Council,805011,Osborne Property Services Limited,J607,Place Management,Supplies and Services,"60,088.21",Mar-23
Slough Borough Council,805011,Osborne Property Services Limited,J607,Place Management,Supplies and Services,"207,395.21",Mar-23
Slough Borough Council,805011,Osborne Property Services Limited,J607,Place Management,Supplies and Services,695.29,Mar-23
Slough Borough Council,805011,Osborne Property Services Limited,P412,Capital,Capital Charges,"80,106.94",Mar-23
Slough Borough Council,805011,Osborne Property Services Limited,P413,Capital,Capital Charges,"37,770.22",Mar-23
Slough Borough Council,805011,Osborne Property Services Limited,P419,Capital,Capital Charges,"133,147.72",Mar-23
Slough Borough Council,805011,Osborne Property Services Limited,P419,Capital,Capital Charges,"24,767.77",Mar-23
Slough Borough Council,805011,Osborne Property Services Limited,P419,Capital,Capital Charges,"55,154.50",Mar-23
Slough Borough Council,805011,Osborne Property Services Limited,P431,Capital,Capital Charges,"166,361.82",Mar-23
Slough Borough Council,805011,Osborne Property Services Limited,P547,Capital,Capital Charges,"49,000.00",Mar-23
Slough Borough Council,3371,Our Lady Of Peace Catholic Primary and Nursery School,E340,Children & Families,Supplies and Services,"28,125.39",Mar-23
Slough Borough Council,680,Oxford House Community Care,A07R,Adult Social Care Operations,Supplies and Services,965.69,Mar-23
Slough Borough Council,680,Oxford House Community Care,A07R,Adult Social Care Operations,Supplies and Services,"1,014.80",Mar-23
Slough Borough Council,680,Oxford House Community Care,M44C,Adult Social Care Operations,Supplies and Services,"2,608.60",Mar-23
Slough Borough Council,680,Oxford House Community Care,M44C,Adult Social Care Operations,Supplies and Services,"3,149.58",Mar-23
Slough Borough Council,680,Oxford House Community Care,M44C,Adult Social Care Operations,Supplies and Services,"1,248.00",Mar-23
Slough Borough Council,680,Oxford House Community Care,M44C,Adult Social Care Operations,Supplies and Services,"1,313.08",Mar-23
Slough Borough Council,680,Oxford House Community Care,M44C,Adult Social Care Operations,Supplies and Services,597.14,Mar-23
Slough Borough Council,680,Oxford House Community Care,M44C,Adult Social Care Operations,Supplies and Services,"1,387.84",Mar-23
Slough Borough Council,680,Oxford House Community Care,M44C,Adult Social Care Operations,Supplies and Services,643.50,Mar-23
Slough Borough Council,680,Oxford House Community Care,M44C,Adult Social Care Operations,Supplies and Services,"1,176.08",Mar-23
Slough Borough Council,680,Oxford House Community Care,M44C,Adult Social Care Operations,Supplies and Services,"2,786.90",Mar-23
Slough Borough Council,680,Oxford House Community Care,M44C,Adult Social Care Operations,Supplies and Services,881.50,Mar-23
Slough Borough Council,680,Oxford House Community Care,M44C,Adult Social Care Operations,Supplies and Services,"1,092.00",Mar-23
Slough Borough Council,680,Oxford House Community Care,M44C,Adult Social Care Operations,Supplies and Services,"2,265.90",Mar-23
Slough Borough Council,680,Oxford House Community Care,M44C,Adult Social Care Operations,Supplies and Services,751.08,Mar-23
Slough Borough Council,680,Oxford House Community Care,M44C,Adult Social Care Operations,Supplies and Services,"1,296.11",Mar-23
Slough Borough Council,680,Oxford House Community Care,M44C,Adult Social Care Operations,Supplies and Services,643.50,Mar-23
Slough Borough Council,680,Oxford House Community Care,M44C,Adult Social Care Operations,Supplies and Services,"1,278.03",Mar-23
Slough Borough Council,680,Oxford House Community Care,M44C,Adult Social Care Operations,Supplies and Services,"1,314.36",Mar-23
Slough Borough Council,680,Oxford House Community Care,M44C,Adult Social Care Operations,Supplies and Services,"3,003.00",Mar-23
Slough Borough Council,680,Oxford House Community Care,M44C,Adult Social Care Operations,Supplies and Services,"2,572.40",Mar-23
Slough Borough Council,680,Oxford House Community Care,M44C,Adult Social Care Operations,Supplies and Services,868.41,Mar-23
Slough Borough Council,680,Oxford House Community Care,M44C,Adult Social Care Operations,Supplies and Services,925.43,Mar-23
Slough Borough Council,680,Oxford House Community Care,M44C,Adult Social Care Operations,Supplies and Services,595.84,Mar-23
Slough Borough Council,680,Oxford House Community Care,M44C,Adult Social Care Operations,Supplies and Services,"1,092.00",Mar-23
Slough Borough Council,680,Oxford House Community Care,M44C,Adult Social Care Operations,Supplies and Services,"2,343.80",Mar-23
Slough Borough Council,680,Oxford House Community Care,M44C,Adult Social Care Operations,Supplies and Services,"1,443.00",Mar-23
Slough Borough Council,680,Oxford House Community Care,M44C,Adult Social Care Operations,Supplies and Services,"3,022.02",Mar-23
Slough Borough Council,680,Oxford House Community Care,M44C,Adult Social Care Operations,Supplies and Services,"1,094.81",Mar-23
Slough Borough Council,680,Oxford House Community Care,M44D,Adult Social Care Operations,Supplies and Services,819.00,Mar-23
Slough Borough Council,680,Oxford House Community Care,M44D,Adult Social Care Operations,Supplies and Services,"1,161.40",Mar-23
Slough Borough Council,680,Oxford House Community Care,M44D,Adult Social Care Operations,Supplies and Services,682.50,Mar-23
Slough Borough Council,680,Oxford House Community Care,M44D,Adult Social Care Operations,Supplies and Services,"2,316.93",Mar-23
Slough Borough Council,680,Oxford House Community Care,M44D,Adult Social Care Operations,Supplies and Services,"2,457.00",Mar-23
Slough Borough Council,680,Oxford House Community Care,M44D,Adult Social Care Operations,Supplies and Services,656.93,Mar-23
Slough Borough Council,680,Oxford House Community Care,M44D,Adult Social Care Operations,Supplies and Services,819.00,Mar-23
Slough Borough Council,680,Oxford House Community Care,M44D,Adult Social Care Operations,Supplies and Services,"1,163.32",Mar-23
Slough Borough Council,680,Oxford House Community Care,M44F,Adult Social Care Operations,Supplies and Services,518.14,Mar-23
Slough Borough Council,680,Oxford House Community Care,M45C,Adult Social Care Operations,Supplies and Services,"1,270.15",Mar-23
Slough Borough Council,680,Oxford House Community Care,M48C,Adult Social Care Operations,Supplies and Services,608.68,Mar-23
Slough Borough Council,680,Oxford House Community Care,M48C,Adult Social Care Operations,Supplies and Services,883.74,Mar-23
Slough Borough Council,680,Oxford House Community Care,M48C,Adult Social Care Operations,Supplies and Services,"1,092.00",Mar-23
Slough Borough Council,680,Oxford House Community Care,M48C,Adult Social Care Operations,Supplies and Services,818.70,Mar-23
Slough Borough Council,680,Oxford House Community Care,M48C,Adult Social Care Operations,Supplies and Services,897.00,Mar-23
Slough Borough Council,680,Oxford House Community Care,M48C,Adult Social Care Operations,Supplies and Services,"1,092.00",Mar-23
Slough Borough Council,518,Oxford House Nursing Home,M15D,Adult Social Care Operations,Supplies and Services,"3,235.76",Mar-23
Slough Borough Council,518,Oxford House Nursing Home,M15D,Adult Social Care Operations,Supplies and Services,"3,235.76",Mar-23
Slough Borough Council,518,Oxford House Nursing Home,M18C,Adult Social Care Operations,Supplies and Services,"-12,943.04",Mar-23
Slough Borough Council,518,Oxford House Nursing Home,M18C,Adult Social Care Operations,Supplies and Services,"-12,943.04",Mar-23
Slough Borough Council,518,Oxford House Nursing Home,M18C,Adult Social Care Operations,Supplies and Services,"-12,943.04",Mar-23
Slough Borough Council,518,Oxford House Nursing Home,M18C,Adult Social Care Operations,Supplies and Services,"38,829.12",Mar-23
Slough Borough Council,518,Oxford House Nursing Home,M18C,Adult Social Care Operations,Supplies and Services,"5,129.85",Mar-23
Slough Borough Council,518,Oxford House Nursing Home,M18C,Adult Social Care Operations,Supplies and Services,"38,829.12",Mar-23
Slough Borough Council,518,Oxford House Nursing Home,M18C,Adult Social Care Operations,Supplies and Services,"5,200.00",Mar-23
Slough Borough Council,518,Oxford House Nursing Home,M18C,Adult Social Care Operations,Supplies and Services,"3,235.76",Mar-23
Slough Borough Council,518,Oxford House Nursing Home,M18C,Adult Social Care Operations,Supplies and Services,"3,235.76",Mar-23
Slough Borough Council,518,Oxford House Nursing Home,M28C,Adult Social Care Operations,Supplies and Services,"-2,289.45",Mar-23
Slough Borough Council,807442,Pantheon Care Ltd,M44F,Adult Social Care Operations,Supplies and Services,"1,600.00",Mar-23
Slough Borough Council,2520,Paradigm Housing Group Ltd,H205,Housing (People) Services,Premises,"6,862.62",Mar-23
Slough Borough Council,808421,Paramjit Saib,F253,Children & Families,Agency Staff,"1,155.00",Mar-23
Slough Borough Council,808679,PARBHAN LTD,H205,Housing (People) Services,Supplies and Services,"4,620.00",Mar-23
Slough Borough Council,2461,PARK NOW LIMITED,D123,Place Strategy & Infrastructure,Supplies and Services,"6,070.86",Mar-23
Slough Borough Council,2461,PARK NOW LIMITED,D123,Place Strategy & Infrastructure,Supplies and Services,"7,529.04",Mar-23
Slough Borough Council,3271,Partnership In Care Ltd,M27F,Adult Social Care Operations,Supplies and Services,"2,036.39",Mar-23
